{"text_format":"1","workbook":"xlsx","n_sheets":11,"sheets":["Hoofdmenu","Toelichting","NAW_gegevens","Voorblad","Kostenverzamelstaat","Specifieke informatie A","Specifieke informatie C","Contractinformatie","Controleoverzicht","Blad1","Parameters"],"not_rendered":{"charts":0,"images":1,"macros":1,"external_links":0,"defined_names":224,"comments":1,"pivot_tables":0},"unopened":[],"bounds":{"document_bytes":16777216,"sheet_cells":100000,"rows_first":2000,"rows_last":500,"rows_between":2000,"halvings":0,"cell_chars":16384,"cell_head_chars":4096},"cells_cut":0,"cells_raw":0,"read":"whole","date_system":"1900"}

{"sheet":"Hoofdmenu","index":0,"n_rows":3,"n_cols":2,"rows_kept":3,"cut":false,"hidden":false,"merged":[[0,0,0,1],[1,0,1,1]]}
["HOOFDMENU"]
["JAARSTAAT ZVW 2025"]
["Navigatie","Afdrukken"]

{"sheet":"Toelichting","index":1,"n_rows":3,"n_cols":2,"rows_kept":3,"cut":false,"hidden":false,"merged":[]}
[]
[]
[null,{"$f":"CONCATENATE(\" JAARSTAAT ZVW \",jaar_id,\" (VERSIE: \",document_id,\")\")","v":" JAARSTAAT ZVW 2025 (VERSIE: JS2025ZVW.B)"}]

{"sheet":"NAW_gegevens","index":2,"n_rows":36,"n_cols":5,"rows_kept":36,"cut":false,"hidden":false,"merged":[[2,0,2,1],[3,0,3,1]]}
[]
[]
["NAW-GEGEVENS"]
["JAARSTAAT ZVW  2025"]
[" Selecteer uw nummer:>","0000 KIES UW UZOVI-NUMMER"]
[" Uzovi-nummer:",{"$f":"MID(keuze_uzovi_nummer,1,4)","v":"0000"}]
[" Verzekeraar:",{"$f":"MID(keuze_uzovi_nummer,6,40)","v":"KIES UW UZOVI-NUMMER"}]
[" Plaats:",{"$f":"VLOOKUP(naw_uzovi_zorgverzekeraar,A17:E36,5,FALSE)","v":{"$error":"#N/A"}}]
[" Contactpersoon:"]
[" Telefoonnummer:"]
[" E-mail:"]
[]
[]
["Let op dat u het goede UZOVI-nummer invult, zie onderstaand overzicht:"]
[]
["UZOVI","NAAM",null,null,"PLAATS"]
["0101","N.V. UNIVÉ ZORG",null,null,"ARNHEM"]
["0104","CENTRALE ZORGVERZEKERINGEN NZV N.V.",null,null,"TILBURG"]
["0201","OHRA ZORGVERZEKERINGEN N.V.",null,null,"TILBURG"]
["0403","ASR BASIS ZIEKTEKOSTENVERZEKERINGEN N.V.",null,null,"UTRECHT"]
["0699","IZA ZORGVERZEKERAAR N.V.",null,null,"ARNHEM"]
["0736","N.V. ZORGVERZEKERAAR UMC",null,null,"ARNHEM"]
["3311","ZILVEREN KRUIS ACHMEA ZORGVERZEKERINGEN N.V.",null,null,"UTRECHT"]
["3313","INTERPOLIS ZORGVERZEKERINGEN N.V.",null,null,"UTRECHT"]
[3332,"MENZIS ZORGVERZEKERAAR NV",null,null,"WAGENINGEN"]
[3333,"ANDERZORG NV",null,null,"WAGENINGEN"]
[3343,"ONVZ ZIEKTEKOSTENVERZEKERAAR N.V.",null,null,"HOUTEN"]
[3347,"SALLAND ZORGVERZEKERAAR N.V.",null,null,"DEVENTER"]
[3351,"FBTO ZORGVERZEKERINGEN N.V.",null,null,"LEEUWARDEN"]
[3358,"DE FRIESLAND ZORGVERZEKERAAR N.V.",null,null,"LEEUWARDEN"]
[3359,"EUCARE INSURANCE PCC LTD",null,null,"TA' XBIEX"]
["7029","OWM ZORGVERZEKERAAR 'DSW' U.A.",null,null,"SCHIEDAM"]
["7037","STAD HOLLAND ZORGVERZEKERAAR OWM U.A.",null,null,"SCHIEDAM"]
["7085","OWM ZORGVERZEKERAAR ZORG EN ZEKERHEID U.A.",null,null,"LEIDEN"]
["7095","VGZ ZORGVERZEKERAAR N.V.",null,null,"ARNHEM"]
["7119","CZ ZORGVERZEKERINGEN N.V.",null,null,"TILBURG"]

{"sheet":"Voorblad","index":3,"n_rows":33,"n_cols":4,"rows_kept":33,"cut":false,"hidden":false,"merged":[[13,3,14,11],[15,3,16,11],[19,3,20,11],[21,3,22,11]]}
[null,null,"VOORBLAD"]
[]
[]
[]
[]
["Pagina 1"]
[]
[]
[]
[]
[]
[]
[]
[]
[]
[null,null,null,{"$f":"CONCATENATE(\"JAARSTAAT ZVW \",jaar_id)","v":"JAARSTAAT ZVW 2025"}]
[]
[]
[]
[null,null,null,"SPECIFIEKE INFORMATIE"]
[]
[]
[]
[null,null,null,"  SPECIFIEKE INFORMATIE A (met accountantsverklaring)"]
[null,null,null,"     ● Kostenverzamelstaat (pagina 1 t/m 3)"]
[null,null,null,"     ● Specificatie informatie A (pagina 1 t/m 3)"]
[]
[null,null,null,"  SPECIFIEKE INFORMATIE C (beleidsinformatie zonder accountantsverklaring)"]
[null,null,null,"     ● Specificaties van kosten en productie (pagina 1 t/m 3)"]
[]
[null,null,null,"  CONTRACTINFORMATIE (pagina 1 t/m 2)"]
[]
[null,null,null,"  CONTROLEOVERZICHT (pagina 1 t/m 6)"]

{"sheet":"Kostenverzamelstaat","index":4,"n_rows":129,"n_cols":16,"rows_kept":129,"cut":false,"hidden":false,"merged":[[121,12,122,12],[10,12,11,12],[12,12,13,12],[89,12,90,12],[91,12,92,12],[82,9,82,12],[82,3,82,4],[66,3,66,6],[67,3,67,6],[59,3,59,6],[70,3,70,6],[72,3,72,6],[75,3,75,6],[68,3,68,6],[69,3,69,6],[77,3,77,6],[78,3,78,6],[124,3,124,6],[128,3,128,4],[121,9,122,9],[121,10,122,10],[121,11,122,11],[121,3,122,6],[121,7,122,7],[121,8,122,8],[123,3,123,6],[89,3,92,6],[89,8,90,9],[89,10,90,11],[91,7,92,7],[91,8,92,8],[91,9,92,9],[91,10,92,10],[91,11,92,11],[95,3,95,6],[96,3,96,6],[98,3,98,7],[94,3,94,6],[41,9,41,12],[48,10,49,11],[50,7,51,7],[50,8,51,8],[50,9,51,9],[50,10,51,10],[50,11,51,11],[48,12,49,12],[50,12,51,12],[48,3,51,6],[55,3,55,6],[57,3,57,6],[19,3,19,6],[41,3,41,4],[40,3,40,4],[20,3,20,6],[21,3,21,6],[22,3,22,6],[10,3,13,6],[10,8,11,9],[10,10,11,11],[12,7,13,7],[12,8,13,8],[12,9,13,9],[12,10,13,10],[12,11,13,11],[58,3,58,6],[48,8,49,9],[76,3,76,6],[60,3,60,6],[61,3,61,6],[64,3,64,6],[65,3,65,6]]}
[null,null,"INVULSPECIFICATIES SPECIFIEKE INFORMATIE A"]
[]
[]
[]
[]
["Pagina 1",null,null,{"$f":"CONCATENATE(\"JAARSTAAT ZVW \", jaar_id)","v":"JAARSTAAT ZVW 2025"}]
[null,null,null,"SPECIFIEKE INFORMATIE A: KOSTENVERZAMELSTAAT"]
[null,null,null,{"$f":"IF(naw_uzovi_zorgverzekeraar<>\"0000\",CONCATENATE(UPPER(naw_naam_zorgverzekeraar),\", \",UPPER(naw_plaats_zorgverzekeraar)),\"\")","v":""},null,null,null,null,null,null,null,null,{"$f":"CONCATENATE(\"UZOVI: \",naw_uzovi_zorgverzekeraar)","v":"UZOVI: 0000"}]
[null,null,null,"SPECIFICATIES INFORMATIE RISICOVEREVENING"]
[null,null,null,{"$f":"$D$7","v":"SPECIFIEKE INFORMATIE A: KOSTENVERZAMELSTAAT"}]
[null,null,null," KOSTENRUBRIEK",null,null,null,null,{"$f":"CONCATENATE(\"LASTEN \",jaar_id)","v":"LASTEN 2025"},null,{"$f":"CONCATENATE(\"LASTEN \",jaar_id-1)","v":"LASTEN 2024"},null,{"$f":"CONCATENATE(\"LASTEN \",jaar_id-2)","v":"LASTEN 2023"}]
[]
[null,null,null,null,null,null,null,"Code",{"$f":"CONCATENATE(\"LASTEN \",jaar_id,\" inclusief balanspost \")","v":"LASTEN 2025 inclusief balanspost "},{"$f":"CONCATENATE(\"Ontvangen en geaccepteerde declaraties m.b.t. \",jaar_id)","v":"Ontvangen en geaccepteerde declaraties m.b.t. 2025"},{"$f":"CONCATENATE(\"LASTEN \",jaar_id-1,\" inclusief balanspost \")","v":"LASTEN 2024 inclusief balanspost "},{"$f":"CONCATENATE(\"Ontvangen en geaccepteerde declaraties m.b.t. \",jaar_id-1)","v":"Ontvangen en geaccepteerde declaraties m.b.t. 2024"},{"$f":"CONCATENATE(\"Ontvangen en geaccepteerde declaraties m.b.t. \",jaar_id-2, \" en ouder\")","v":"Ontvangen en geaccepteerde declaraties m.b.t. 2023 en ouder"}]
[null,null,null,null,null,null,null,null,null,"Ontvangen en geaccepteerde declaraties mbt jaar T",null,"Ontvangen en geaccepteerde declaraties mbt jaar T","Ontvangen en geaccepteerde declaraties mbt jaar T"]
[null,null,null," 01  HUISARTSENZORG en MDZ"]
[null,null,null," Bijzondere betalingen",null,null,null,"503   ",null,null,null,null,null,null,null,{"$f":"IF(OR((I16-J16)/IF(I16=0,1,I16)<-10%,(K16-L16)/IF(K16=0,1,K16)<-10%),\"De balans is < -10%, als dit plausibel is dan vragen wij u dit nader toe te lichten bij de opmerkingen, zo niet dan dient u uw raming aan te scherpen.\",\"\")","v":""}]
[null,null,null," Avond-, nacht- en weekenddiensten",null,null,null,"504   ",null,null,null,null,null,null,null,""]
[null,null,null," Inschrijftarieven",null,null,null,"505   ",null,null,null,null,null,null,null,""]
[null,null,null," Consulttarieven",null,null,null,"506   ",null,null,null,null,null,null,null,""]
[null,null,null," Overige tarieven",null,null,null,"507   ",null,null,null,null,null,null,null,""]
[null,null,null," Multidisciplinaire zorg",null,null,null,"510   ",null,null,null,null,null,null,null,""]
[null,null,null," Resultaatbeloning en zorgvernieuwing huisartsen",null,null,null,"515   ",null,null,null,null,null,null,null,""]
[null,null,null," Resultaatbeloning en zorgvernieuwing MDZ",null,null,null,"516   ",null,null,null,null,null,null,null,""]
[null,null,null," TOTAAL RUBRIEK 01",null,null,null,null,{"$f":"SUM(I16:I23)","v":0},{"$f":"SUM(J16:J23)","v":0},{"$f":"SUM(K16:K23)","v":0},{"$f":"SUM(L16:L23)","v":0},{"$f":"SUM(M16:M23)","v":0},null,null,""]
[null,null,null," 02 FARMACEUTISCHE ZORG"]
[null,null,null," Farmaceutische zorg",null,null,null,"520   ",null,null,null,null,null,null,null,{"$f":"IF(OR((I26-J26)/IF(I26=0,1,I26)<-10%,(K26-L26)/IF(K26=0,1,K26)<-10%),\"De balans is < -10%, als dit plausibel is dan vragen wij u dit nader toe te lichten bij de opmerkingen, zo niet dan dient u uw raming aan te scherpen.\",\"\")","v":""}]
[null,null,null," TOTAAL RUBRIEK 02",null,null,null,null,{"$f":"SUM(I26:I26)","v":0},{"$f":"SUM(J26:J26)","v":0},{"$f":"SUM(K26:K26)","v":0},{"$f":"SUM(L26:L26)","v":0},{"$f":"SUM(M26:M26)","v":0},null,null,{"$f":"IF(OR((I27-J27)/IF(I27=0,1,I27)<-10%,(K27-L27)/IF(K27=0,1,K27)<-10%),\"De balans is < -10%, als dit plausibel is dan vragen wij u dit nader toe te lichten bij de opmerkingen, zo niet dan dient u uw raming aan te scherpen.\",\"\")","v":""}]
[null,null,null," 03 VERPLEGING EN VERZORGING"]
[null,null,null," Kosten van verpleging en verzorging ",null,null,null,"530   ",null,null,null,null,null,null,null,{"$f":"IF(OR((I29-J29)/IF(I29=0,1,I29)<-10%,(K29-L29)/IF(K29=0,1,K29)<-10%),\"De balans is < -10%, als dit plausibel is dan vragen wij u dit nader toe te lichten bij de opmerkingen, zo niet dan dient u uw raming aan te scherpen.\",\"\")","v":""}]
[null,null,null," TOTAAL RUBRIEK 03",null,null,null,null,{"$f":"SUM(I29:I29)","v":0},0,0,0,0,null,null,{"$f":"IF(OR((I30-J30)/IF(I30=0,1,I30)<-10%,(K30-L30)/IF(K30=0,1,K30)<-10%),\"De balans is < -10%, als dit plausibel is dan vragen wij u dit nader toe te lichten bij de opmerkingen, zo niet dan dient u uw raming aan te scherpen.\",\"\")","v":""}]
[null,null,null," 04  MONDZORG"]
[null,null,null," Kosten mondzorg volwassen verzekerden",null,null,null,"560.1",null,null,null,null,null,null,null,{"$f":"IF(OR((I32-J32)/IF(I32=0,1,I32)<-10%,(K32-L32)/IF(K32=0,1,K32)<-10%),\"De balans is < -10%, als dit plausibel is dan vragen wij u dit nader toe te lichten bij de opmerkingen, zo niet dan dient u uw raming aan te scherpen.\",\"\")","v":""}]
[null,null,null," Kosten mondzorg jeugdige verzekerden",null,null,null,"560.2",null,null,null,null,null,null,null,{"$f":"IF(OR((I33-J33)/IF(I33=0,1,I33)<-10%,(K33-L33)/IF(K33=0,1,K33)<-10%),\"De balans is < -10%, als dit plausibel is dan vragen wij u dit nader toe te lichten bij de opmerkingen, zo niet dan dient u uw raming aan te scherpen.\",\"\")","v":""}]
[null,null,null," Kosten gebitsprothesen",null,null,null,"561   ",null,null,null,null,null,null,null,{"$f":"IF(OR((I34-J34)/IF(I34=0,1,I34)<-10%,(K34-L34)/IF(K34=0,1,K34)<-10%),\"De balans is < -10%, als dit plausibel is dan vragen wij u dit nader toe te lichten bij de opmerkingen, zo niet dan dient u uw raming aan te scherpen.\",\"\")","v":""}]
[null,null,null," TOTAAL RUBRIEK 04",null,null,null,null,{"$f":"SUM(I32:I34)","v":0},{"$f":"SUM(J32:J34)","v":0},{"$f":"SUM(K32:K34)","v":0},{"$f":"SUM(L32:L34)","v":0},{"$f":"SUM(M32:M34)","v":0},null,null,{"$f":"IF(OR((I35-J35)/IF(I35=0,1,I35)<-10%,(K35-L35)/IF(K35=0,1,K35)<-10%),\"De balans is < -10%, als dit plausibel is dan vragen wij u dit nader toe te lichten bij de opmerkingen, zo niet dan dient u uw raming aan te scherpen.\",\"\")","v":""}]
[null,null,null," 05  VERLOSKUNDIGE ZORG"]
[null,null,null," Kosten verloskundige zorg door verloskundigen",null,null,null,"580   ",null,null,null,null,null,null,null,{"$f":"IF(OR((I37-J37)/IF(I37=0,1,I37)<-10%,(K37-L37)/IF(K37=0,1,K37)<-10%),\"De balans is < -10%, als dit plausibel is dan vragen wij u dit nader toe te lichten bij de opmerkingen, zo niet dan dient u uw raming aan te scherpen.\",\"\")","v":""}]
[null,null,null," Kosten Integrale geboortezorg ",null,null,null,"582   ",null,null,null,null,null,null,null,{"$f":"IF(OR((I38-J38)/IF(I38=0,1,I38)<-10%,(K38-L38)/IF(K38=0,1,K38)<-10%),\"De balans is < -10%, als dit plausibel is dan vragen wij u dit nader toe te lichten bij de opmerkingen, zo niet dan dient u uw raming aan te scherpen.\",\"\")","v":""}]
[null,null,null," TOTAAL RUBRIEK 05",null,null,null,null,{"$f":"SUM(I37:I38)","v":0},{"$f":"SUM(J37:J38)","v":0},{"$f":"SUM(K37:K38)","v":0},{"$f":"SUM(L37:L38)","v":0},{"$f":"SUM(M37:M38)","v":0},null,null,{"$f":"IF(OR((I39-J39)/IF(I39=0,1,I39)<-10%,(K39-L39)/IF(K39=0,1,K39)<-10%),\"De balans is < -10%, als dit plausibel is dan vragen wij u dit nader toe te lichten bij de opmerkingen, zo niet dan dient u uw raming aan te scherpen.\",\"\")","v":""}]
[]
[]
[null,null,null,{"$f":"NOW()","v":"2026-03-26T10:56:01.280"},null,null,null,null,null,{"$f":"CONCATENATE(\"Specifieke informatie A: kostenverzamelstaat \",\"2025\",\", \",LOWER(A6))","v":"Specifieke informatie A: kostenverzamelstaat 2025, pagina 1"}]
[]
["Pagina 2",null,null,{"$f":"CONCATENATE(\"JAARSTAAT ZVW \", jaar_id)","v":"JAARSTAAT ZVW 2025"}]
[null,null,null,{"$f":"$D$7","v":"SPECIFIEKE INFORMATIE A: KOSTENVERZAMELSTAAT"}]
[null,null,null,{"$f":"IF(naw_uzovi_zorgverzekeraar<>\"0000\",CONCATENATE(UPPER(naw_naam_zorgverzekeraar),\", \",UPPER(naw_plaats_zorgverzekeraar)),\"\")","v":""}]
[null,null,null,"SPECIFICATIES INFORMATIE RISICOVEREVENING"]
[null,null,null,"SPECIFIEKE INFORMATIE A: KOSTENVERZAMELSTAAT - vervolg"]
[null,null,null," KOSTENRUBRIEK",null,null,null,null,{"$f":"I11","v":"LASTEN 2025"},null,{"$f":"K11","v":"LASTEN 2024"},null,{"$f":"M11","v":"LASTEN 2023"}]
[]
[null,null,null,null,null,null,null,"Code",{"$f":"I$13","v":"LASTEN 2025 inclusief balanspost "},{"$f":"J$13","v":"Ontvangen en geaccepteerde declaraties m.b.t. 2025"},"LASTEN 2024 inclusief balanspost ","Ontvangen en geaccepteerde declaraties m.b.t. 2024","Ontvangen en geaccepteerde declaraties m.b.t. 2023 en ouder"]
[]
[null,null,null," 06  MEDISCH SPECIALISTISCHE ZORG"]
[null,null,null," Kosten specialisten mondziekten en kaakchirurgie",null,null,null,"545   ",null,null,null,null,null,null,null,{"$f":"IF(OR((I54-J54)/IF(I54=0,1,I54)<-10%,(K54-L54)/IF(K54=0,1,K54)<-10%),\"De balans is < -10%, als dit plausibel is dan vragen wij u dit nader toe te lichten bij de opmerkingen, zo niet dan dient u uw raming aan te scherpen.\",\"\")","v":""}]
[null,null,null," NTS",null,null,null,"610.1",null,null,null,null,null,null,null,""]
[null,null,null,"Eerstelijnsdiagnostiek aangevraagd door eerstelijnszorg-aanbieders geleverd door huisartsenlaboratoria en Trombosediensten",null,null,null,"610.2",null,null,null,null,null,null,null,""]
[null,null,null," Overige zorgproducten ",null,null,null,"611   ",null,null,null,null,null,null,null,""]
[null,null,null," Kosten add-ons - Dure geneesmiddelen",null,null,null,"  612.1   ",null,null,null,null,null,null,null,""]
[null,null,null," Kosten add-ons - IC",null,null,null,"  612.2   ",null,null,null,null,null,null,null,""]
[null,null,null," Integrale kosten DBC-zorgproduct gereguleerde segment ",null,null,null,"613.1",null,null,null,null,null,null,null,""]
[null,null,null," Integrale kosten DBC-zorgproduct vrije segment ",null,null,null,"615.1",null,null,null,null,null,null,null,""]
[null,null,null," Integrale kosten extramuraal werkende \n specialisten",null,null,null,"619   ",null,null,null,null,null,null,null,""]
[null,null,null," Meerkosten COVID-19, toeslagen",null,null,null,"806.2 ",null,null,null,null,null,null,null,""]
[null,null,null," TOTAAL RUBRIEK 06",null,null,null,null,{"$f":"SUM(I54:I63)","v":0},0,0,0,0,null,null,""]
[null,null,null," 07  PARAMEDISCHE ZORG",null,null,null,null,null,null,null,null,null,null,null,""]
[null,null,null," Kosten fysiotherapie",null,null,null,"620   ",null,null,null,null,null,null,null,""]
[null,null,null," Kosten oefentherapie Mensendieck/Cesar",null,null,null,"621   ",null,null,null,null,null,null,null,""]
[null,null,null," Kosten logopedie",null,null,null,"623   ",null,null,null,null,null,null,null,""]
[null,null,null," Kosten ergotherapie",null,null,null,"624   ",null,null,null,null,null,null,null,""]
[null,null,null," Kosten dieetadvisering",null,null,null,"625   ",null,null,null,null,null,null,null,""]
[null,null,null," Gecombineerde Leefstijl Interventie (GLI)",null,null,null,"626   ",null,null,null,null,null,null,null,""]
[null,null,null," TOTAAL RUBRIEK 07",null,null,null,null,{"$f":"SUM(I66:I71)","v":0},{"$f":"SUM(J66:J71)","v":0},{"$f":"SUM(K66:K71)","v":0},{"$f":"SUM(L66:L71)","v":0},{"$f":"SUM(M66:M71)","v":0},null,null,""]
[null,null,null," 08  HULPMIDDELENZORG"]
[null,null,null," Hulpmiddelenzorg ",null,null,null,"640   ",null,null,null,null,null,null,null,{"$f":"IF(OR((I74-J74)/IF(I74=0,1,I74)<-10%,(K74-L74)/IF(K74=0,1,K74)<-10%),\"De balans is < -10%, als dit plausibel is dan vragen wij u dit nader toe te lichten bij de opmerkingen, zo niet dan dient u uw raming aan te scherpen.\",\"\")","v":""}]
[null,null,null," TOTAAL RUBRIEK 08",null,null,null,null,{"$f":"SUM(I74:I74)","v":0},0,0,0,0,null,null,{"$f":"IF(OR((I75-J75)/IF(I75=0,1,I75)<-10%,(K75-L75)/IF(K75=0,1,K75)<-10%),\"De balans is < -10%, als dit plausibel is dan vragen wij u dit nader toe te lichten bij de opmerkingen, zo niet dan dient u uw raming aan te scherpen.\",\"\")","v":""}]
[null,null,null," 09  ZIEKENVERVOER"]
[null,null,null," Kosten vervoer per ambulance/helikopter",null,null,null,"650   ",null,null,null,null,null,null,null,{"$f":"IF(OR((I77-J77)/IF(I77=0,1,I77)<-10%,(K77-L77)/IF(K77=0,1,K77)<-10%),\"De balans is < -10%, als dit plausibel is dan vragen wij u dit nader toe te lichten bij de opmerkingen, zo niet dan dient u uw raming aan te scherpen.\",\"\")","v":""}]
[null,null,null," Opbrengstenverrekeningen regionale ambulancevoorzieningen ",null,null,null,"650.1",null,null,null,null,null,null,null,{"$f":"IF(OR((I78-J78)/IF(I78=0,1,I78)<-10%,(K78-L78)/IF(K78=0,1,K78)<-10%),\"De balans is < -10%, als dit plausibel is dan vragen wij u dit nader toe te lichten bij de opmerkingen, zo niet dan dient u uw raming aan te scherpen.\",\"\")","v":""}]
[null,null,null," Kosten vervoer per openbaar vervoer, taxi \n en eigen auto",null,null,null,"651   ",null,null,null,null,null,null,null,{"$f":"IF(OR((I79-J79)/IF(I79=0,1,I79)<-10%,(K79-L79)/IF(K79=0,1,K79)<-10%),\"De balans is < -10%, als dit plausibel is dan vragen wij u dit nader toe te lichten bij de opmerkingen, zo niet dan dient u uw raming aan te scherpen.\",\"\")","v":""}]
[null,null,null," TOTAAL RUBRIEK 09",null,null,null,null,{"$f":"SUM(I77:I79)","v":0},0,0,0,0,null,null,{"$f":"IF(OR((I80-J80)/IF(I80=0,1,I80)<-10%,(K80-L80)/IF(K80=0,1,K80)<-10%),\"De balans is < -10%, als dit plausibel is dan vragen wij u dit nader toe te lichten bij de opmerkingen, zo niet dan dient u uw raming aan te scherpen.\",\"\")","v":""}]
[]
[]
[null,null,null,{"$f":"NOW()","v":"2026-03-26T10:56:01.280"},null,null,null,null,null,{"$f":"CONCATENATE(\"Specifieke informatie A: kostenverzamelstaat \",\"2025\",\", \",LOWER(A44))","v":"Specifieke informatie A: kostenverzamelstaat 2025, pagina 2"}]
[]
["Pagina 3",null,null,{"$f":"CONCATENATE(\"JAARSTAAT ZVW \", jaar_id)","v":"JAARSTAAT ZVW 2025"}]
[null,null,null,{"$f":"D7","v":"SPECIFIEKE INFORMATIE A: KOSTENVERZAMELSTAAT"}]
[null,null,null,{"$f":"IF(naw_uzovi_zorgverzekeraar<>\"0000\",CONCATENATE(UPPER(naw_naam_zorgverzekeraar),\", \",UPPER(naw_plaats_zorgverzekeraar)),\"\")","v":""},null,null,null,null,null,null,null,null,{"$f":"CONCATENATE(\"UZOVI: \",naw_uzovi_zorgverzekeraar)","v":"UZOVI: 0000"}]
[null,null,null,"SPECIFICATIES INFORMATIE RISICOVEREVENING"]
[null,null,null,{"$f":"D48","v":"SPECIFIEKE INFORMATIE A: KOSTENVERZAMELSTAAT - vervolg"}]
[null,null,null," KOSTENRUBRIEK",null,null,null,null,{"$f":"I11","v":"LASTEN 2025"},null,{"$f":"K11","v":"LASTEN 2024"},null,{"$f":"M11","v":"LASTEN 2023"}]
[]
[null,null,null,null,null,null,null,"Code",{"$f":"I$13","v":"LASTEN 2025 inclusief balanspost "},{"$f":"J$13","v":"Ontvangen en geaccepteerde declaraties m.b.t. 2025"},"LASTEN 2024 inclusief balanspost ","Ontvangen en geaccepteerde declaraties m.b.t. 2024","Ontvangen en geaccepteerde declaraties m.b.t. 2023 en ouder"]
[]
[null,null,null," 10 GENEESKUNDIGE GEESTELIJKE GEZONDHEIDSZORG  \n     "]
[null,null,null," Kosten consulten GGZ",null,null,null,"    666   ",null,null,null,null,null,null,null,{"$f":"IF(OR((I95-J95)/IF(I95=0,1,I95)<-10%,(K95-L95)/IF(K95=0,1,K95)<-10%),\"De balans is < -10%, als dit plausibel is dan vragen wij u dit nader toe te lichten bij de opmerkingen, zo niet dan dient u uw raming aan te scherpen.\",\"\")","v":""}]
[null,null,null," Kosten intramuraal verblijf GGZ",null,null,null,"    667   ",null,null,null,null,null,null,null,{"$f":"IF(OR((I96-J96)/IF(I96=0,1,I96)<-10%,(K96-L96)/IF(K96=0,1,K96)<-10%),\"De balans is < -10%, als dit plausibel is dan vragen wij u dit nader toe te lichten bij de opmerkingen, zo niet dan dient u uw raming aan te scherpen.\",\"\")","v":""}]
[null,null,null," Kosten overige prestaties GGZ",null,null,null,"    668   ",null,null,null,null,null,null,null,{"$f":"IF(OR((I97-J97)/IF(I97=0,1,I97)<-10%,(K97-L97)/IF(K97=0,1,K97)<-10%),\"De balans is < -10%, als dit plausibel is dan vragen wij u dit nader toe te lichten bij de opmerkingen, zo niet dan dient u uw raming aan te scherpen.\",\"\")","v":""}]
[null,null,null," TOTAAL RUBRIEK 10",null,null,null,null,{"$f":"SUM(I95:I97)","v":0},0,0,0,0,null,null,{"$f":"IF(OR((I98-J98)/IF(I98=0,1,I98)<-10%,(K98-L98)/IF(K98=0,1,K98)<-10%),\"De balans is < -10%, als dit plausibel is dan vragen wij u dit nader toe te lichten bij de opmerkingen, zo niet dan dient u uw raming aan te scherpen.\",\"\")","v":""}]
[null,null,null," 11 GRZ, ELV EN GZSP"]
[null,null,null," Geriatrische Revalidatie ",null,null,null,"670   ",null,null,null,null,null,null,null,{"$f":"IF(OR((I100-J100)/IF(I100=0,1,I100)<-10%,(K100-L100)/IF(K100=0,1,K100)<-10%),\"De balans is < -10%, als dit plausibel is dan vragen wij u dit nader toe te lichten bij de opmerkingen, zo niet dan dient u uw raming aan te scherpen.\",\"\")","v":""}]
[null,null,null," Eerstelijnsverblijf ",null,null,null,"671   ",null,null,null,null,null,null,null,{"$f":"IF(OR((I101-J101)/IF(I101=0,1,I101)<-10%,(K101-L101)/IF(K101=0,1,K101)<-10%),\"De balans is < -10%, als dit plausibel is dan vragen wij u dit nader toe te lichten bij de opmerkingen, zo niet dan dient u uw raming aan te scherpen.\",\"\")","v":""}]
[null,null,null," Generalistische Geneeskundige Zorg Specifieke Patiëntgroepen",null,null,null,"672   ",null,null,null,null,null,null,null,{"$f":"IF(OR((I102-J102)/IF(I102=0,1,I102)<-10%,(K102-L102)/IF(K102=0,1,K102)<-10%),\"De balans is < -10%, als dit plausibel is dan vragen wij u dit nader toe te lichten bij de opmerkingen, zo niet dan dient u uw raming aan te scherpen.\",\"\")","v":""}]
[null,null,null," TOTAAL RUBRIEK 11",null,null,null,null,{"$f":"SUM(I100:I102)","v":0},0,0,0,0,null,null,{"$f":"IF(OR((I103-J103)/IF(I103=0,1,I103)<-10%,(K103-L103)/IF(K103=0,1,K103)<-10%),\"De balans is < -10%, als dit plausibel is dan vragen wij u dit nader toe te lichten bij de opmerkingen, zo niet dan dient u uw raming aan te scherpen.\",\"\")","v":""}]
[null,null,null," 12  KRAAMZORG"]
[null,null,null," Kraamzorg",null,null,null,"680   ",null,null,null,null,null,null,null,{"$f":"IF(OR((I105-J105)/IF(I105=0,1,I105)<-10%,(K105-L105)/IF(K105=0,1,K105)<-10%),\"De balans is < -10%, als dit plausibel is dan vragen wij u dit nader toe te lichten bij de opmerkingen, zo niet dan dient u uw raming aan te scherpen.\",\"\")","v":""}]
[null,null,null," TOTAAL RUBRIEK 12",null,null,null,null,{"$f":"SUM(I105:I105)","v":0},0,0,0,0,null,null,{"$f":"IF(OR((I106-J106)/IF(I106=0,1,I106)<-10%,(K106-L106)/IF(K106=0,1,K106)<-10%),\"De balans is < -10%, als dit plausibel is dan vragen wij u dit nader toe te lichten bij de opmerkingen, zo niet dan dient u uw raming aan te scherpen.\",\"\")","v":""}]
[null,null,null," 13  DIVERSE OVERIGE KOSTEN"]
[null,null,null," Overige kosten",null,null,null,"700   ",null,null,null,null,null,null,null,{"$f":"IF(OR((I108-J108)/IF(I108=0,1,I108)<-10%,(K108-L108)/IF(K108=0,1,K108)<-10%),\"De balans is < -10%, als dit plausibel is dan vragen wij u dit nader toe te lichten bij de opmerkingen, zo niet dan dient u uw raming aan te scherpen.\",\"\")","v":""}]
[null,null,null," Overige geneeskundige zorg",null,null,null,"701   ",null,null,null,null,null,null,null,{"$f":"IF(OR((I109-J109)/IF(I109=0,1,I109)<-10%,(K109-L109)/IF(K109=0,1,K109)<-10%),\"De balans is < -10%, als dit plausibel is dan vragen wij u dit nader toe te lichten bij de opmerkingen, zo niet dan dient u uw raming aan te scherpen.\",\"\")","v":""}]
[null,null,null," Kosten van zorg zintuiglijk gehandicapten",null,null,null,"702   ",null,null,null,null,null,null,null,{"$f":"IF(OR((I110-J110)/IF(I110=0,1,I110)<-10%,(K110-L110)/IF(K110=0,1,K110)<-10%),\"De balans is < -10%, als dit plausibel is dan vragen wij u dit nader toe te lichten bij de opmerkingen, zo niet dan dient u uw raming aan te scherpen.\",\"\")","v":""}]
[null,null,null," Transformatiemiddelen IZA",null,null,null,"703   ",null,null,null,null,null,null,null,{"$f":"IF(OR((I111-J111)/IF(I111=0,1,I111)<-10%,(K111-L111)/IF(K111=0,1,K111)<-10%),\"De balans is < -10%, als dit plausibel is dan vragen wij u dit nader toe te lichten bij de opmerkingen, zo niet dan dient u uw raming aan te scherpen.\",\"\")","v":""}]
[null,null,null," TOTAAL RUBRIEK 13",null,null,null,null,{"$f":"SUM(I108:I111)","v":0},0,0,0,0,null,null,{"$f":"IF(OR((I112-J112)/IF(I112=0,1,I112)<-10%,(K112-L112)/IF(K112=0,1,K112)<-10%),\"De balans is < -10%, als dit plausibel is dan vragen wij u dit nader toe te lichten bij de opmerkingen, zo niet dan dient u uw raming aan te scherpen.\",\"\")","v":""}]
[null,null,null," 15  GRENSOVERSCHRIJDENDE ZORG"]
[null,null,null," Kosten via verzekeraar",null,null,null,"720   ",null,null,null,null,null,null,null,{"$f":"IF(OR((I114-J114)/IF(I114=0,1,I114)<-10%,(K114-L114)/IF(K114=0,1,K114)<-10%),\"De balans is < -10%, als dit plausibel is dan vragen wij u dit nader toe te lichten bij de opmerkingen, zo niet dan dient u uw raming aan te scherpen.\",\"\")","v":""}]
[null,null,null," Kosten via verbindingsorgaan",null,null,null,"721   ",null,null,null,null,null,null,null,{"$f":"IF(OR((I115-J115)/IF(I115=0,1,I115)<-10%,(K115-L115)/IF(K115=0,1,K115)<-10%),\"De balans is < -10%, als dit plausibel is dan vragen wij u dit nader toe te lichten bij de opmerkingen, zo niet dan dient u uw raming aan te scherpen.\",\"\")","v":""}]
[null,null,null," TOTAAL RUBRIEK 15",null,null,null,null,{"$f":"SUM(I114:I115)","v":0},{"$f":"SUM(J114:J115)","v":0},0,0,0,null,null,{"$f":"IF(OR((I116-J116)/IF(I116=0,1,I116)<-10%,(K116-L116)/IF(K116=0,1,K116)<-10%),\"De balans is < -10%, als dit plausibel is dan vragen wij u dit nader toe te lichten bij de opmerkingen, zo niet dan dient u uw raming aan te scherpen.\",\"\")","v":""}]
[null,null,null," 16  KWALITEITSGELDEN",null,null,null,"   "]
[null,null,null," Kwaliteitsgelden",null,null,null,"730",null,null,null,null,null,null,null,{"$f":"IF(OR((I118-J118)/IF(I118=0,1,I118)<-10%,(K118-L118)/IF(K118=0,1,K118)<-10%),\"De balans is < -10%, als dit plausibel is dan vragen wij u dit nader toe te lichten bij de opmerkingen, zo niet dan dient u uw raming aan te scherpen.\",\"\")","v":""}]
[null,null,null," TOTAAL RUBRIEK 16",null,null,null,null,{"$f":"SUM(I118)","v":0},{"$f":"SUM(J118)","v":0},0,0,0,null,null,{"$f":"IF(OR((I119-J119)/IF(I119=0,1,I119)<-10%,(K119-L119)/IF(K119=0,1,K119)<-10%),\"De balans is < -10%, als dit plausibel is dan vragen wij u dit nader toe te lichten bij de opmerkingen, zo niet dan dient u uw raming aan te scherpen.\",\"\")","v":""}]
[null,null,null," TOTAAL LASTEN  (bruto-schade, definitie ZIN)",null,null,null,null,{"$f":"SUM(I24,I27,I30,I35,I39,I64,I72,I75,I80,I98,I103,I106,I112,I116,I119)","v":0},0,0,0,0,null,null,{"$f":"IF(OR((I120-J120)/IF(I120=0,1,I120)<-10%,(K120-L120)/IF(K120=0,1,K120)<-10%),\"De balans is < -10%, als dit plausibel is dan vragen wij u dit nader toe te lichten bij de opmerkingen, zo niet dan dient u uw raming aan te scherpen.\",\"\")","v":""}]
[]
[null,null,null," BATEN ZVW",null,null,null,"Code",{"$f":"CONCATENATE(\"Totale baten \",jaar_id,\" inclusief balanspost \")","v":"Totale baten 2025 inclusief balanspost "},{"$f":"CONCATENATE(\"Waarvan ontvangen  m.b.t. \",jaar_id)","v":"Waarvan ontvangen  m.b.t. 2025"},{"$f":"CONCATENATE(\"Totale baten \",jaar_id-1,\" inclusief balanspost \")","v":"Totale baten 2024 inclusief balanspost "},{"$f":"CONCATENATE(\"Waarvan ontvangen  m.b.t. \",jaar_id-1)","v":"Waarvan ontvangen  m.b.t. 2024"},{"$f":"CONCATENATE(\"Totale ontvangen baten m.b.t. \",jaar_id-2,\" en ouder\")","v":"Totale ontvangen baten m.b.t. 2023 en ouder"}]
[null,null,null,null,null,null,null,null,null,"waarvan ontvangen  t/m 3e Kwartaal 2019",null,"waarvan ontvangen  t/m 3e Kwartaal 2019"]
[null,null,null," OPBRENGSTEN VERHAAL",null,null,null,"890.1",null,null,null,null,null,null,null,{"$f":"IF(OR((I124-J124)/IF(I124=0,1,I124)<-10%,(K124-L124)/IF(K124=0,1,K124)<-10%),\"De balans is < -10%, als dit plausibel is dan vragen wij u dit nader toe te lichten bij de opmerkingen, zo niet dan dient u uw raming aan te scherpen.\",\"\")","v":""}]
[null,null,null," SCHADE T.L.V. HET VRIJWILLIG EIGEN RISICO",null,null,null,"910   ",null,null,null,null,null,null,null,{"$f":"IF(OR((I125-J125)/IF(I125=0,1,I125)<-10%,(K125-L125)/IF(K125=0,1,K125)<-10%),\"De balans is < -10%, als dit plausibel is dan vragen wij u dit nader toe te lichten bij de opmerkingen, zo niet dan dient u uw raming aan te scherpen.\",\"\")","v":""}]
[null,null,null," SCHADE T.L.V. HET VERPLICHT EIGEN RISICO",null,null,null,"915   ",null,null,null,null,null,null,null,{"$f":"IF(OR((I126-J126)/IF(I126=0,1,I126)<-10%,(K126-L126)/IF(K126=0,1,K126)<-10%),\"De balans is < -10%, als dit plausibel is dan vragen wij u dit nader toe te lichten bij de opmerkingen, zo niet dan dient u uw raming aan te scherpen.\",\"\")","v":""}]
[null,null,null," NETTO PREMIEOPBRENGSTEN",null,null,null,"940   ",null,null,null,null,null,null,null,{"$f":"IF(OR((I127-J127)/IF(I127=0,1,I127)<-10%,(K127-L127)/IF(K127=0,1,K127)<-10%),\"De balans is < -10%, als dit plausibel is dan vragen wij u dit nader toe te lichten bij de opmerkingen, zo niet dan dient u uw raming aan te scherpen.\",\"\")","v":""}]
[]
[null,null,null,{"$f":"NOW()","v":"2026-03-26T10:56:01.280"},null,null,null,null,null,null,null,{"$f":"CONCATENATE(\"Specifieke informatie A: kostenverzamelstaat \",\"2025\",\", \",LOWER(A85))","v":"Specifieke informatie A: kostenverzamelstaat 2025, pagina 3"}]

{"sheet":"Specifieke informatie A","index":5,"n_rows":99,"n_cols":20,"rows_kept":99,"cut":false,"hidden":false,"merged":[[40,11,41,11],[46,11,47,11],[52,11,53,11],[29,11,30,11],[24,11,25,11],[24,10,25,10],[15,3,15,9],[16,3,16,9],[29,10,30,10],[29,3,30,9],[27,3,27,9],[40,3,41,9],[43,3,43,9],[31,3,31,9],[26,3,26,9],[42,3,42,9],[13,3,13,9],[11,10,12,10],[11,3,12,9],[14,3,14,9],[11,11,12,11],[19,10,20,10],[21,3,21,9],[22,3,22,9],[24,3,25,9],[19,3,20,9],[19,11,20,11],[63,3,63,4],[46,3,47,9],[46,10,47,10],[33,3,33,4],[54,3,56,4],[54,5,54,9],[55,5,55,9],[56,5,56,9],[52,3,53,9],[52,10,53,10],[57,3,57,9],[60,3,60,9],[61,3,61,9],[40,10,41,10],[48,3,48,9],[49,3,49,9],[50,3,50,9],[71,16,71,17],[71,18,71,19],[72,3,73,7],[72,8,73,8],[72,9,73,9],[72,10,73,10],[72,11,73,11],[72,12,73,12],[72,13,73,13],[72,14,73,14],[72,15,73,15],[72,16,73,16],[72,17,73,17],[72,18,73,18],[72,19,73,19],[70,3,71,7],[71,8,71,9],[71,10,71,11],[71,12,71,13],[71,14,71,15],[79,3,79,7],[80,3,80,7],[81,3,81,7],[82,3,82,7],[83,3,83,7],[74,3,74,7],[75,3,75,7],[76,3,76,7],[77,3,77,7],[78,3,78,7],[89,3,89,7],[90,3,90,7],[91,3,91,7],[92,3,92,7],[93,3,93,7],[84,3,84,7],[85,3,85,7],[86,3,86,7],[87,3,87,7],[88,3,88,7],[96,3,96,7],[98,3,98,4],[93,18,93,19],[94,3,95,7],[94,8,94,9],[94,10,94,11],[94,12,94,13],[94,14,94,15],[94,16,94,17],[94,18,94,19],[95,8,95,9],[95,10,95,11],[95,12,95,13],[95,14,95,15],[95,16,95,17],[95,18,95,19],[93,8,93,9],[93,10,93,11],[93,12,93,13],[93,14,93,15],[93,16,93,17]]}
[null,null,"INVULSPECIFICATIES SPECIFIEKE INFORMATIE A"]
[]
[]
[]
[]
["Pagina 1",null,null,{"$f":"CONCATENATE(\"JAARSTAAT ZVW \", jaar_id)","v":"JAARSTAAT ZVW 2025"}]
[null,null,null,"SPECIFIEKE INFORMATIE A  2025: DETAILINFORMATIE RVE"]
[null,null,null,{"$f":"IF(naw_uzovi_zorgverzekeraar<>\"0000\",CONCATENATE(UPPER(naw_naam_zorgverzekeraar),\", \",UPPER(naw_plaats_zorgverzekeraar)),\"\")","v":""},null,null,null,null,null,null,null,{"$f":"CONCATENATE(\"UZOVI: \",naw_uzovi_zorgverzekeraar)","v":"UZOVI: 0000"}]
[]
[null,null,null,"SPECIFICATIES INFORMATIE RISICOVEREVENING"]
[null,null,null,"KOSTEN NAAR DEELBIJDRAGE"]
[null,null,null," KOSTEN NAAR DEELBIJDRAGE",null,null,null,null,null,null,{"$f":"CONCATENATE(\"LASTEN \",jaar_id,\" inclusief balanspost \")","v":"LASTEN 2025 inclusief balanspost "},{"$f":"CONCATENATE(\"LASTEN \",jaar_id-2,\" ontvangen en geaccepteerde declaraties en ouder \")","v":"LASTEN 2023 ontvangen en geaccepteerde declaraties en ouder "}]
[]
[null,null,null," Variabele zorgkosten"]
[null,null,null," Vaste zorgkosten "]
[null,null,null," Kosten geneeskundige geestelijke gezondheidszorg"]
[null,null,null," TOTAAL kosten ",null,null,null,null,null,null,{"$f":"SUM(K14:K16)","v":0},{"$f":"SUM(L14:L16)","v":0}]
[]
[null,null,null,"RUBRIEK 02 FARMACEUTISCHE ZORG"]
[null,null,null," CODE 520 - KOSTEN VAN BEPAALDE DURE EXTRAMURALE GENEESMIDDELEN",null,null,null,null,null,null,{"$f":"K$12","v":"LASTEN 2025 inclusief balanspost "},{"$f":"L$12","v":"LASTEN 2023 ontvangen en geaccepteerde declaraties en ouder "}]
[]
[null,null,null," Kosten van dure extramurale geneesmiddelen (artikel 1, regeling risicoverevening)"]
[]
[null,null,null,"RUBRIEK 06 MEDISCH SPECIALISTISCHE ZORG"]
[null,null,null," CODE 612.1  - KOSTEN ADD-ONS DURE GENEESMIDDELEN",null,null,null,null,null,null,{"$f":"K$12","v":"LASTEN 2025 inclusief balanspost "},{"$f":"L$12","v":"LASTEN 2023 ontvangen en geaccepteerde declaraties en ouder "}]
[]
[null,null,null," Add-ons dure intramurale geneesmiddelen en ozp-stollingsfactoren (artikel 1, regeling risicoverevening)"]
[]
[null,null,null,"RUBRIEK 10 GEESTELIJKE GEZONDHEIDSZORG"]
[null,null,null," CODE 666 - KOSTEN VAN BEPAALDE DURE INTRAMURALE GENEESMIDDELEN",null,null,null,null,null,null,{"$f":"K$12","v":"LASTEN 2025 inclusief balanspost "},{"$f":"L$12","v":"LASTEN 2023 ontvangen en geaccepteerde declaraties en ouder "}]
[]
[null,null,null," Kosten van dure intramurale geneesmiddelen (artikel 1, regeling risicoverevening)"]
[]
[null,null,null,{"$f":"NOW()","v":"2026-03-26T10:56:01.280"},null,null,null,null,null,null,null,{"$f":"CONCATENATE(\"Specifieke informatie A  2025: detailinformatie RVE, \",LOWER(A6))","v":"Specifieke informatie A  2025: detailinformatie RVE, pagina 1"}]
[]
["Pagina 2",null,null,{"$f":"CONCATENATE(\"JAARSTAAT ZVW \", jaar_id)","v":"JAARSTAAT ZVW 2025"}]
[null,null,null,{"$f":"D7","v":"SPECIFIEKE INFORMATIE A  2025: DETAILINFORMATIE RVE"}]
[null,null,null,{"$f":"IF(naw_uzovi_zorgverzekeraar<>\"0000\",CONCATENATE(UPPER(naw_naam_zorgverzekeraar),\", \",UPPER(naw_plaats_zorgverzekeraar)),\"\")","v":""},null,null,null,null,null,null,null,{"$f":"CONCATENATE(\"UZOVI: \",naw_uzovi_zorgverzekeraar)","v":"UZOVI: 0000"}]
[null,null,null,"SPECIFICATIES INFORMATIE RISICOVEREVENING"]
[null,null,null,"RUBRIEK 13 DIVERSE OVERIGE KOSTEN"]
[null,null,null," CODE 703 - TRANSFORMATIEMIDDELEN IZA",null,null,null,null,null,null,{"$f":"K$12","v":"LASTEN 2025 inclusief balanspost "},{"$f":"L$12","v":"LASTEN 2023 ontvangen en geaccepteerde declaraties en ouder "}]
[]
[null,null,null," Transformatiemiddelen IZA"]
[null,null,null," TOTAAL CODE 703 Transformatiemiddelen IZA",null,null,null,null,null,null,{"$f":"SUM(K43:K43)","v":0},{"$f":"SUM(L43:L43)","v":0}]
[]
[null,null,null,"RUBRIEK 15 GRENSOVERSCHRIJDENDE ZORG"]
[null,null,null," CODE 720 - KOSTEN GRENSOVERSCHRIJDENDE ZORG VIA VERZEKERAAR",null,null,null,null,null,null,{"$f":"K$12","v":"LASTEN 2025 inclusief balanspost "},{"$f":"L$12","v":"LASTEN 2023 ontvangen en geaccepteerde declaraties en ouder "}]
[]
[null,null,null," Variabele zorgkosten"]
[null,null,null," Kosten van geneeskundige geestelijke gezondheidszorg"]
[null,null,null," TOTAAL CODE 720 kosten gemaakt in het buitenland, via verzekeraar",null,null,null,null,null,null,{"$f":"SUM(K49:K50)","v":0},{"$f":"SUM(L49:L50)","v":0}]
[]
[null,null,null," CODE 721 - KOSTEN GRENSOVERSCHRIJDENDE ZORG VIA VERBINDINGSORGAAN",null,null,null,null,null,null,{"$f":"K$12","v":"LASTEN 2025 inclusief balanspost "},{"$f":"L$12","v":"LASTEN 2023 ontvangen en geaccepteerde declaraties en ouder "}]
[]
[null,null,null," Toepassing verordening  \n of verdrag inzake sociale  \n zekerheid, via CAK ",null," Behandeling in het buitenland met toepassing van artikel 20. \n EG-verordening 883/2004 of overeenkomstige verdragsbepaling"]
[null,null,null,null,null," Kosten gemaakt bij tijdelijk verblijf in het buitenland van Zvw \n verzekerden die wonen in Nederland"]
[null,null,null,null,null," Kosten gemaakt in het buitenland van Zvw verzekerden die wonen  in het buitenland\n"]
[null,null,null," TOTAAL CODE 721 kosten gemaakt in het buitenland, via verbindingsorgaan",null,null,null,null,null,null,{"$f":"SUM(K55:K57)","v":0},{"$f":"SUM(L55:L57)","v":0}]
[]
[null,null,null,"BEREKENDE NOMINALE REKENPREMIES GEDETINEERDEN"]
[null,null,null,null,null,null,null,null,null,null,"BEDRAG"]
[null,null,null," Totaal berekende nominale rekenpremies 2025 tijdens de detentieperiode van verzekerden van 18 jaar en ouder                                                                                                                                                                                                                                                                                                                                                                                                                                                                                                                                                                                         "]
[]
[null,null,null,{"$f":"NOW()","v":"2026-03-26T10:56:01.280"},null,null,null,null,null,null,null,{"$f":"CONCATENATE(\"Specifieke informatie A  2025: detailinformatie RVE, \",LOWER(A36))","v":"Specifieke informatie A  2025: detailinformatie RVE, pagina 2"}]
[]
["Pagina 3",null,null,{"$f":"CONCATENATE(\"JAARSTAAT ZVW \", jaar_id)","v":"JAARSTAAT ZVW 2025"}]
[null,null,null,{"$f":"D7","v":"SPECIFIEKE INFORMATIE A  2025: DETAILINFORMATIE RVE"}]
[null,null,null,{"$f":"IF(naw_uzovi_zorgverzekeraar<>\"0000\",CONCATENATE(UPPER(naw_naam_zorgverzekeraar),\", \",UPPER(naw_plaats_zorgverzekeraar)),\"\")","v":""},null,null,null,null,null,null,null,null,null,null,null,null,null,null,{"$f":"CONCATENATE(\"UZOVI: \",naw_uzovi_zorgverzekeraar)","v":"UZOVI: 0000"}]
[null,null,null,"SPECIFICATIES INFORMATIE RISICOVEREVENING"]
[]
[null,null,null," KOSTEN NAAR MODELOVEREENKOMST",null,null,null,null,"MODELOVEREENKOMST",null,"MODELOVEREENKOMST",null,"MODELOVEREENKOMST",null,"MODELOVEREENKOMST",null,"MODELOVEREENKOMST",null,"MODELOVEREENKOMST"]
[]
[null,null,null,null,null,null,null,null,"LASTEN 2023 inclusief balanspost ","Ontvangen en geaccepteerde declaraties 2023 en ouder","LASTEN 2023 inclusief balanspost ","Ontvangen en geaccepteerde declaraties 2023 en ouder","LASTEN 2023 inclusief balanspost ","Ontvangen en geaccepteerde declaraties 2023 en ouder","LASTEN 2023 inclusief balanspost ","Ontvangen en geaccepteerde declaraties 2023 en ouder","LASTEN 2023 inclusief balanspost ","Ontvangen en geaccepteerde declaraties 2023 en ouder","LASTEN 2023 inclusief balanspost ","Ontvangen en geaccepteerde declaraties 2023 en ouder"]
[]
[null,null,null,"TOTAAL  Variabele zorgkosten"]
[null,null,null,"TOTAAL Rubriek 01 Huisartsenzorg en MDZ"]
[null,null,null,"TOTAAL Rubriek 02 Farmaceutische zorg "]
[null,null,null,"Kostencode 520 - Kosten van bepaalde dure extramurale geneesmiddelen"]
[null,null,null,"TOTAAL Rubriek 03 Verpleging en verzorging "]
[null,null,null,"TOTAAL Rubriek 04 Mondzorg"]
[null,null,null,"TOTAAL Rubriek 05 Verloskundige zorg "]
[null,null,null,"TOTAAL Rubriek 06 Medisch specialistische zorg "]
[null,null,null,"Kostencode 612.1 - Kosten van Add-ons - bepaalde dure intramurale geneesmiddelen, inclusief stollingsmiddelen"]
[null,null,null,"TOTAAL Rubriek 07 Paramedische zorg "]
[null,null,null,"TOTAAL Rubriek 08 Hulpmiddelenzorg "]
[null,null,null,"TOTAAL Rubriek 09 Ziekenvervoer"]
[null,null,null,"TOTAAL Rubriek 11 Geriatrische revalidatiezorg, Eerstelijnsverblijf en Geneeskundige Zorg Specifieke Patiëntengroepen"]
[null,null,null,"TOTAAL Rubriek 12 Kraamzorg"]
[null,null,null,"TOTAAL Rubriek 13 Diverse overige kosten"]
[null,null,null,"Kostencode 703 – Transformatiemiddelen IZA"]
[null,null,null,"TOTAAL Rubriek 15 Grensoverschrijdende zorg "]
[null,null,null,"Kostencode 720 - Kosten via Verzekeraar - Geneeskundige GGZ"]
[null,null,null,"TOTAAL Rubriek 16 Kwaliteitsgelden "]
[null,null,null,null,null,null,null,null,"MODELOVEREENKOMST",null,"MODELOVEREENKOMST",null,"MODELOVEREENKOMST",null,"MODELOVEREENKOMST",null,"MODELOVEREENKOMST",null,"MODELOVEREENKOMST"]
[null,null,null,null,null,null,null,null,{"$f":"IF(I72=\"\",\"\",I72)","v":""},null,{"$f":"IF(K72=\"\",\"\",K72)","v":""},null,{"$f":"IF(M72=\"\",\"\",M72)","v":""},null,{"$f":"IF(O72=\"\",\"\",O72)","v":""},null,{"$f":"IF(Q72=\"\",\"\",Q72)","v":""},null,{"$f":"IF(S72=\"\",\"\",S72)","v":""}]
[null,null,null,null,null,null,null,null,"Bedrag",null,"bedrag",null,"bedrag",null,"bedrag",null,"bedrag",null,"bedrag"]
[null,null,null,"Totale berekende nominale rekenpremies 2023 tijdens de detentieperiode van verzekerden van 18 jaar en ouder"]
[]
[null,null,null,{"$f":"NOW()","v":"2026-03-26T10:56:01.280"},null,null,null,null,null,null,null,null,null,null,null,null,null,null,null,{"$f":"CONCATENATE(\"Specifieke informatie A  2025: detailinformatie RVE, \",LOWER(A66))","v":"Specifieke informatie A  2025: detailinformatie RVE, pagina 3"}]

{"sheet":"Specifieke informatie C","index":6,"n_rows":102,"n_cols":12,"rows_kept":102,"cut":false,"hidden":false,"merged":[[62,11,63,11],[87,5,87,9],[23,3,23,6],[17,7,17,8],[18,10,19,10],[34,3,34,4],[54,5,54,6],[55,3,55,6],[56,3,56,6],[68,3,68,6],[69,3,69,6],[54,7,54,11],[67,3,67,6],[57,3,57,6],[58,3,58,6],[66,3,66,6],[48,3,48,6],[24,3,24,6],[21,3,21,6],[18,8,19,8],[18,11,19,11],[17,9,17,10],[18,9,19,9],[18,7,19,7],[14,3,14,6],[11,11,12,11],[17,3,19,6],[10,3,12,6],[10,7,10,8],[10,9,10,10],[11,7,12,7],[11,8,12,8],[11,9,12,9],[11,10,12,10],[13,3,13,6],[27,11,28,11],[29,3,29,6],[51,9,51,10],[51,3,53,4],[51,7,51,8],[30,3,30,6],[31,3,31,6],[32,3,32,6],[33,3,33,6],[40,3,42,6],[40,7,40,8],[40,9,40,10],[41,7,42,7],[52,11,53,11],[52,9,53,9],[52,7,53,7],[26,3,28,6],[26,7,26,8],[26,9,26,10],[27,7,28,7],[27,8,28,8],[27,9,28,9],[27,10,28,10],[41,11,42,11],[61,9,61,10],[62,7,63,7],[62,8,63,8],[54,3,54,4],[52,10,53,10],[41,9,42,9],[41,10,42,10],[62,9,63,9],[62,10,63,10],[43,3,43,6],[44,3,44,6],[45,3,45,6],[46,3,46,6],[47,3,47,6],[51,5,53,6],[52,8,53,8],[41,8,42,8],[61,3,63,4],[61,5,63,6],[61,7,61,8],[22,3,22,6],[20,3,20,6],[101,3,101,4],[92,11,93,11],[94,3,95,4],[94,5,94,9],[95,5,95,9],[96,3,96,9],[97,3,97,9],[85,3,86,9],[85,10,86,10],[85,11,86,11],[87,3,88,4],[90,3,90,9],[92,3,93,9],[92,10,93,10],[89,3,89,9],[64,5,64,6],[59,3,59,6],[64,3,64,4],[79,3,79,4],[64,7,64,11],[65,3,65,6],[88,5,88,9]]}
[null,null,"INVULSPECIFICATIES SPECIFIEKE INFORMATIE C"]
[]
[]
[]
[]
["Pagina 1",null,null,{"$f":"CONCATENATE(\"JAARSTAAT ZVW \", jaar_id)","v":"JAARSTAAT ZVW 2025"}]
[null,null,null,"SPECIFIEKE INFORMATIE C: SPECIFICATIES VAN KOSTEN EN PRODUCTIE"]
[null,null,null,{"$f":"IF(naw_uzovi_zorgverzekeraar<>\"0000\",CONCATENATE(UPPER(naw_naam_zorgverzekeraar),\", \",UPPER(naw_plaats_zorgverzekeraar)),\"\")","v":""},null,null,null,null,null,null,null,{"$f":"CONCATENATE(\"UZOVI: \",naw_uzovi_zorgverzekeraar)","v":"UZOVI: 0000"}]
[null,null,null,"SPECIFICATIES VAN KOSTEN EN PRODUCTIE"]
[null,null,null,"RUBRIEK 06 MEDISCH SPECIALISTISCHE ZORG"]
[null,null,null," CODE 610.2\n ",null,null,null,{"$f":"CONCATENATE(\"LASTEN \",jaar_id)","v":"LASTEN 2025"},null,{"$f":"CONCATENATE(\"LASTEN \",jaar_id-1)","v":"LASTEN 2024"},null,{"$f":"CONCATENATE(\"LASTEN \",jaar_id-2)","v":"LASTEN 2023"}]
[null,null,null,null,null,null,null,{"$f":"CONCATENATE(\"LASTEN \",jaar_id,\" inclusief balanspost \")","v":"LASTEN 2025 inclusief balanspost "},{"$f":"CONCATENATE(\"Ontvangen en geaccepteerde declaraties m.b.t. \",jaar_id)","v":"Ontvangen en geaccepteerde declaraties m.b.t. 2025"},{"$f":"CONCATENATE(\"LASTEN \",jaar_id-1,\" inclusief balanspost \")","v":"LASTEN 2024 inclusief balanspost "},{"$f":"CONCATENATE(\"Ontvangen en geaccepteerde declaraties m.b.t. \",jaar_id-1)","v":"Ontvangen en geaccepteerde declaraties m.b.t. 2024"},{"$f":"CONCATENATE(\"Ontvangen en geaccepteerde declaraties m.b.t. \",jaar_id-2, \" en ouder\")","v":"Ontvangen en geaccepteerde declaraties m.b.t. 2023 en ouder"}]
[null,null,null,null,null,null,null,null,"Ontvangen en geaccepteerde declaraties mbt jaar T-1",null,"Ontvangen en geaccepteerde declaraties mbt jaar T-1","Ontvangen en geaccepteerde declaraties mbt jaar T-1"]
[null,null,null," Kosten van eerstelijnsdiagnostiek aangevraagd \n door eerstelijns zorgaanbieders, geleverd door \n huisartsenlaboratoria"]
[null,null,null," Trombosediensten"]
[null,null,null," TOTAAL code 610.2",null,null,null,{"$f":"SUM(H14:H15)","v":0},{"$f":"SUM(I14:I15)","v":0},{"$f":"SUM(J14:J15)","v":0},{"$f":"SUM(K14:K15)","v":0},{"$f":"SUM(L14:L15)","v":0}]
[]
[null,null,null," CODE 611 - OVERIGE ZORGPRODUCTEN NAAR INSTELLINGEN",null," ",null,{"$f":"$H$11","v":"LASTEN 2025"},null,{"$f":"$J$11","v":"LASTEN 2024"},null,{"$f":"$L$11","v":"LASTEN 2023"}]
[null,null,null,null,null,null,null,{"$f":"$H$12","v":"LASTEN 2025 inclusief balanspost "},{"$f":"$I$12","v":"Ontvangen en geaccepteerde declaraties m.b.t. 2025"},{"$f":"$J$12","v":"LASTEN 2024 inclusief balanspost "},{"$f":"$K$12","v":"Ontvangen en geaccepteerde declaraties m.b.t. 2024"},{"$f":"$L$12","v":"Ontvangen en geaccepteerde declaraties m.b.t. 2023 en ouder"}]
[]
[null,null,null," Academische ziekenhuizen"]
[null,null,null," Algemene ziekenhuizen"]
[null,null,null," Zelfstandige behandelcentra"]
[null,null,null," Overige zorgaanbieders "]
[null,null,null," TOTAAL code 611",null,null,null,{"$f":"SUM(H21:H24)","v":0},{"$f":"SUM(I21:I24)","v":0},{"$f":"SUM(J21:J24)","v":0},{"$f":"SUM(K21:K24)","v":0},{"$f":"SUM(L21:L24)","v":0}]
[]
[null,null,null,"CODE 612.1 - KOSTEN ADD-ONS                                      DURE GENEESMIDDELEN",null,null,null,{"$f":"$H$11","v":"LASTEN 2025"},null,{"$f":"$J$11","v":"LASTEN 2024"},null,{"$f":"$L$11","v":"LASTEN 2023"}]
[null,null,null,null,null,null,null,{"$f":"$H$12","v":"LASTEN 2025 inclusief balanspost "},{"$f":"$I$12","v":"Ontvangen en geaccepteerde declaraties m.b.t. 2025"},{"$f":"$J$12","v":"LASTEN 2024 inclusief balanspost "},{"$f":"$K$12","v":"Ontvangen en geaccepteerde declaraties m.b.t. 2024"},{"$f":"$L$12","v":"Ontvangen en geaccepteerde declaraties m.b.t. 2023 en ouder"}]
[]
[null,null,null," Academische ziekenhuizen"]
[null,null,null," Algemene ziekenhuizen"]
[null,null,null," Zelfstandige behandelcentra"]
[null,null,null," Overige zorgaanbieders "]
[null,null,null," TOTAAL code 612.1",null,null,null,{"$f":"SUM(H30:H33)","v":0},{"$f":"SUM(I30:I33)","v":0},{"$f":"SUM(J30:J33)","v":0},{"$f":"SUM(K30:K33)","v":0},{"$f":"SUM(L30:L33)","v":0}]
[null,null,null,{"$f":"NOW()","v":"2026-03-26T10:56:01.280"},null,null,null,null,null,null,null,{"$f":"CONCATENATE(\"Specifieke informatie C: specificaties van kosten en productie, \",LOWER(A6))","v":"Specifieke informatie C: specificaties van kosten en productie, pagina 1"}]
[]
["Pagina 2",null,null,{"$f":"CONCATENATE(\"JAARSTAAT ZVW \", jaar_id)","v":"JAARSTAAT ZVW 2025"}]
[null,null,null,{"$f":"D7","v":"SPECIFIEKE INFORMATIE C: SPECIFICATIES VAN KOSTEN EN PRODUCTIE"}]
[null,null,null,{"$f":"IF(naw_uzovi_zorgverzekeraar<>\"0000\",CONCATENATE(UPPER(naw_naam_zorgverzekeraar),\", \",UPPER(naw_plaats_zorgverzekeraar)),\"\")","v":""},null,null,null,null,null,null,null,{"$f":"CONCATENATE(\"UZOVI: \",naw_uzovi_zorgverzekeraar)","v":"UZOVI: 0000"}]
[]
[null,null,null,"CODE 612.2 - KOSTEN ADD-ONS  IC",null,null,null,{"$f":"$H$11","v":"LASTEN 2025"},null,{"$f":"$J$11","v":"LASTEN 2024"},null,{"$f":"$L$11","v":"LASTEN 2023"}]
[null,null,null,null,null,null,null,{"$f":"$H$12","v":"LASTEN 2025 inclusief balanspost "},{"$f":"$I$12","v":"Ontvangen en geaccepteerde declaraties m.b.t. 2025"},{"$f":"$J$12","v":"LASTEN 2024 inclusief balanspost "},{"$f":"$K$12","v":"Ontvangen en geaccepteerde declaraties m.b.t. 2024"},{"$f":"$L$12","v":"Ontvangen en geaccepteerde declaraties m.b.t. 2023 en ouder"}]
[]
[null,null,null," Academische ziekenhuizen"]
[null,null,null," Algemene ziekenhuizen"]
[null,null,null," Zelfstandige behandelcentra"]
[null,null,null," Overige zorgaanbieders "]
[null,null,null," TOTAAL code 612.2",null,null,null,{"$f":"SUM(H44:H47)","v":0},{"$f":"SUM(I44:I47)","v":0},{"$f":"SUM(J44:J47)","v":0},{"$f":"SUM(K44:K47)","v":0},{"$f":"SUM(L44:L47)","v":0}]
[null,null,null," TOTAAL code 612",null,null,null,{"$f":"SUM(H44:H47)+SUM(H30:H33)","v":0},0,{"$f":"SUM(J44:J47)+SUM(J30:J33)","v":0},{"$f":"SUM(K44:K47)+SUM(K30:K33)","v":0},0]
[]
[null,null,null,"RUBRIEK 06 MEDISCH SPECIALISTISCHE ZORG - vervolg"]
[null,null,null,"DBC-zorgproducten NAAR INSTELLING",null,"Code",null,{"$f":"$H$11","v":"LASTEN 2025"},null,{"$f":"$J$11","v":"LASTEN 2024"},null,{"$f":"$L$11","v":"LASTEN 2023"}]
[null,null,null,null,null,null,null,{"$f":"$H$12","v":"LASTEN 2025 inclusief balanspost "},{"$f":"$I$12","v":"Ontvangen en geaccepteerde declaraties m.b.t. 2025"},{"$f":"$J$12","v":"LASTEN 2024 inclusief balanspost "},{"$f":"$K$12","v":"Ontvangen en geaccepteerde declaraties m.b.t. 2024"},{"$f":"$L$12","v":"Ontvangen en geaccepteerde declaraties m.b.t. 2023 en ouder"}]
[]
[null,null,null," Integrale kosten DBC-zorgproducten \n gereguleerde segment",null,"613.1"]
[null,null,null," Academische ziekenhuizen"]
[null,null,null," Algemene ziekenhuizen"]
[null,null,null," Zelfstandige behandelcentra"]
[null,null,null," Overige zorgaanbieders "]
[null,null,null," TOTAAL code 613.1",null,null,null,{"$f":"SUM(H56:H59)","v":0},{"$f":"SUM(I56:I59)","v":0},{"$f":"SUM(J56:J59)","v":0},{"$f":"SUM(K56:K59)","v":0},{"$f":"SUM(L56:L59)","v":0}]
[]
[null,null,null,"DBC-zorgproducten NAAR INSTELLING",null,"Code",null,{"$f":"$H$11","v":"LASTEN 2025"},null,{"$f":"$J$11","v":"LASTEN 2024"},null,{"$f":"$L$11","v":"LASTEN 2023"}]
[null,null,null,null,null,null,null,{"$f":"$H$12","v":"LASTEN 2025 inclusief balanspost "},{"$f":"$I$12","v":"Ontvangen en geaccepteerde declaraties m.b.t. 2025"},{"$f":"$J$12","v":"LASTEN 2024 inclusief balanspost "},{"$f":"$K$12","v":"Ontvangen en geaccepteerde declaraties m.b.t. 2024"},{"$f":"$L$12","v":"Ontvangen en geaccepteerde declaraties m.b.t. 2023 en ouder"}]
[]
[null,null,null," Integrale kosten DBC-zorgproduct \n vrije segment",null,"615.1"]
[null,null,null," Academische ziekenhuizen"]
[null,null,null," Algemene ziekenhuizen"]
[null,null,null," Zelfstandige behandelcentra"]
[null,null,null," Overige zorgaanbieders "]
[null,null,null," TOTAAL code 615.1",null,null,null,{"$f":"SUM(H66:H69)","v":0},{"$f":"SUM(I66:I69)","v":0},{"$f":"SUM(J66:J69)","v":0},0,{"$f":"SUM(L66:L69)","v":0}]
[]
[]
[]
[]
[]
[]
[]
[]
[]
[null,null,null,{"$f":"NOW()","v":"2026-03-26T10:56:01.280"},null,null,null,null,null,null,null,{"$f":"CONCATENATE(\"Specifieke informatie C: specificaties van kosten en productie, \",LOWER(A37))","v":"Specifieke informatie C: specificaties van kosten en productie, pagina 2"}]
[]
["Pagina 3",null,null,{"$f":"CONCATENATE(\"JAARSTAAT ZVW \", jaar_id)","v":"JAARSTAAT ZVW 2025"}]
[null,null,null,"SPECIFIEKE INFORMATIE C: SPECIFICATIES VAN KOSTEN EN PRODUCTIE"]
[null,null,null,{"$f":"IF(naw_uzovi_zorgverzekeraar<>\"0000\",CONCATENATE(UPPER(naw_naam_zorgverzekeraar),\", \",UPPER(naw_plaats_zorgverzekeraar)),\"\")","v":""},null,null,null,null,null,null,null,{"$f":"CONCATENATE(\"UZOVI: \",naw_uzovi_zorgverzekeraar)","v":"UZOVI: 0000"}]
[null,null,null,"RUBRIEK 15 GRENSOVERSCHRIJDENDE ZORG"]
[null,null,null,"  CODE 720 - KOSTEN GRENSOVERSCHRIJDENDE ZORG VIA VERZEKERAAR",null,null,null,null,null,null,{"$f":"CONCATENATE(\"Ontvangen en geaccepteerde declaraties m.b.t. \",jaar_id)","v":"Ontvangen en geaccepteerde declaraties m.b.t. 2025"},{"$f":"CONCATENATE(\"Ontvangen en geaccepteerde declaraties m.b.t. \",jaar_id-1)","v":"Ontvangen en geaccepteerde declaraties m.b.t. 2024"}]
[null,null,null,null,null,null,null,null,null,null,"Ontvangen en geaccepteerde declaraties mbt jaar T","Ontvangen en geaccepteerde declaraties mbt jaar T-1"]
[null,null,null," Kosten gemaakt in het buitenland \n van Zvw verzekerden die wonen in \n Nederland",null," Op basis van een contract "]
[null,null,null,null,null," Niet op basis van een contract "]
[null,null,null," Kosten gemaakt in het buitenland van Zvw verzekerden die wonen in het buitenland"]
[null,null,null," TOTAAL code 720",null,null,null,null,null,null,{"$f":"SUM(K88:K90)","v":0},{"$f":"SUM(L88:L90)","v":0}]
[]
[null,null,null,"  CODE 720 - GRENSOVERSCHRIJDENDE ZORG VIA VERZEKERAAR",null,null,null,null,null,null,{"$f":"CONCATENATE(\"Aantal verzekerden m.b.t. \",jaar_id)","v":"Aantal verzekerden m.b.t. 2025"},{"$f":"CONCATENATE(\"Aantal verzekerden m.b.t. \",jaar_id-1)","v":"Aantal verzekerden m.b.t. 2024"}]
[null,null,null,null,null,null,null,null,null,null,"Ontvangen en geaccepteerde declaraties mbt jaar T","Ontvangen en geaccepteerde declaraties mbt jaar T"]
[null,null,null," Kosten gemaakt in het buitenland \n van Zvw verzekerden die wonen in \n Nederland",null," Op basis van een contract"]
[null,null,null,null,null," Niet op basis van een contract"]
[null,null,null," Kosten gemaakt in het buitenland van Zvw verzekerden die wonen in het buitenland"]
[null,null,null," TOTAAL code 720",null,null,null,null,null,null,{"$f":"SUM(K95:K97)","v":0},{"$f":"SUM(L95:L97)","v":0}]
[]
[]
[]
[null,null,null,{"$f":"NOW()","v":"2026-03-26T10:56:01.280"},null,null,null,null,null,null,null,{"$f":"CONCATENATE(\"Specifieke informatie C: specificaties van kosten en productie, \",LOWER(A82))","v":"Specifieke informatie C: specificaties van kosten en productie, pagina 3"}]

{"sheet":"Contractinformatie","index":7,"n_rows":87,"n_cols":12,"rows_kept":87,"cut":false,"hidden":false,"merged":[[86,3,86,4],[77,3,77,11],[64,11,65,11],[64,10,65,10],[69,5,69,9],[69,3,69,4],[71,10,72,10],[71,11,72,11],[73,3,73,11],[71,9,72,9],[64,9,65,9],[64,3,65,8],[71,3,72,8],[74,3,74,8],[81,3,81,11],[43,3,43,8],[39,3,39,8],[50,9,51,9],[37,3,37,8],[38,3,38,8],[42,3,42,8],[40,3,40,8],[50,11,51,11],[23,10,24,10],[50,10,51,10],[31,11,32,11],[23,11,24,11],[31,10,32,10],[23,9,24,9],[10,11,11,11],[16,3,16,11],[12,3,12,11],[10,10,11,10],[10,9,11,9],[14,3,14,8],[15,3,15,8],[23,3,24,8],[17,3,17,8],[18,3,18,8],[19,3,19,8],[20,3,20,8],[31,9,32,9],[58,3,58,8],[70,3,70,10],[75,3,75,8],[76,3,76,8],[50,3,51,8],[52,3,52,8],[53,3,53,8],[54,3,54,8],[55,3,55,8],[56,3,56,8],[57,3,57,8],[31,3,32,8],[35,3,35,8],[36,3,36,8],[44,3,44,4]]}
[null,null,"INVULSPECIFICATIES SPECIFIEKE INFORMATIE C"]
[]
[]
[]
[]
["Pagina 1",null,null,{"$f":"CONCATENATE(\"JAARSTAAT ZVW \", jaar_id)","v":"JAARSTAAT ZVW 2025"}]
[null,null,null,"SPECIFIEKE INFORMATIE C (CONTRACTINFORMATIE)"]
[null,null,null,{"$f":"IF(naw_uzovi_zorgverzekeraar<>\"0000\",CONCATENATE(UPPER(naw_naam_zorgverzekeraar),\", \",UPPER(naw_plaats_zorgverzekeraar)),\"\")","v":""},null,null,null,null,null,null,null,{"$f":"CONCATENATE(\"UZOVI: \",naw_uzovi_zorgverzekeraar)","v":"UZOVI: 0000"}]
[]
[null,null,null,"CONTRACTINFORMATIE HUISARTSENZORG EN MULTIDISCIPLINAIRE ZORG, rubriek 01"]
[null,null,null,null,null,null,null,null,null,{"$f":"CONCATENATE(\"LASTEN \",jaar_id,\" inclusief balanspost \")","v":"LASTEN 2025 inclusief balanspost "},{"$f":"CONCATENATE(\"LASTEN \",jaar_id-1,\" inclusief balanspost \")","v":"LASTEN 2024 inclusief balanspost "},{"$f":"CONCATENATE(\"LASTEN \",jaar_id-2,\" inclusief balanspost \")","v":"LASTEN 2023 inclusief balanspost "}]
[null,null,null,null,null,null,null,null,null,"Ontvangen en geaccepteerde declaraties mbt jaar T","Ontvangen en geaccepteerde declaraties mbt jaar T","Ontvangen en geaccepteerde declaraties mbt jaar T"]
[null,null,null," Huisartsenzorg, codes 503, 504, 505, 506,507, 515"]
[null,null,null," Gecontracteerde zorg"]
[null,null,null," Niet gecontracteerde zorg"]
[null,null,null," Subtotaal huisartsenzorg",null,null,null,null,null,{"$f":"SUM(J14:J15)","v":0},0,{"$f":"SUM(L14:L15)","v":0}]
[null,null,null," Multidisciplinaire zorg, codes 510 en 516"]
[null,null,null," Gecontracteerde zorg"]
[null,null,null," Niet gecontracteerde zorg"]
[null,null,null," Subtotaal multidisciplinaire zorg",null,null,null,null,null,{"$f":"SUM(J18:J19)","v":0},{"$f":"SUM(K18:K19)","v":0},{"$f":"SUM(L18:L19)","v":0}]
[null,null,null," TOTAAL RUBRIEK 01",null,null,null,null,null,{"$f":"J16+J20","v":0},{"$f":"K16+K20","v":0},0]
[]
[null,null,null,"CONTRACTINFORMATIE VERPLEGING EN VERZORGING, rubriek 03"]
[null,null,null,null,null,null,null,null,null,{"$f":"J11","v":"LASTEN 2025 inclusief balanspost "},{"$f":"K11","v":"LASTEN 2024 inclusief balanspost "},{"$f":"L11","v":"LASTEN 2023 inclusief balanspost "}]
[null,null,null,null,null,null,null,null,null,"Ontvangen en geaccepteerde declaraties mbt jaar T","Ontvangen en geaccepteerde declaraties mbt jaar T","Ontvangen en geaccepteerde declaraties mbt jaar T"]
[null,null,null," Gecontracteerde zorg"]
[null,null,null," Niet gecontracteerde zorg"]
[null,null,null," PGB"]
[null,null,null," TOTAAL RUBRIEK 03",null,null,null,null,null,{"$f":"SUM(J26:J28)","v":0},{"$f":"SUM(K26:K28)","v":0},{"$f":"SUM(L26:L28)","v":0}]
[]
[null,null,null,"CONTRACTINFORMATIE MEDISCH SPECIALISTISCHE ZORG, rubriek 06"]
[null,null,null,null,null,null,null,null,null,{"$f":"J11","v":"LASTEN 2025 inclusief balanspost "},{"$f":"K11","v":"LASTEN 2024 inclusief balanspost "},{"$f":"L11","v":"LASTEN 2023 inclusief balanspost "}]
[null,null,null,null,null,null,null,null,null,"Ontvangen en geaccepteerde declaraties mbt jaar T","Ontvangen en geaccepteerde declaraties mbt jaar T","Ontvangen en geaccepteerde declaraties mbt jaar T"]
[null,null,null," Gecontracteerde zorg: aanneemsom"]
[null,null,null," Gecontracteerde zorg: plafond"]
[null,null,null," Gecontracteerde zorg: nacalculatie bij aanneemsommen en plafondcontracten"]
[null,null,null," Gecontracteerde zorg: open einde contract"]
[null,null,null," Subtotaal gecontracteerde zorg",null,null,null,null,null,{"$f":"SUM(J34:J37)","v":0},{"$f":"SUM(K34:K37)","v":0},{"$f":"SUM(L34:L37)","v":0}]
[null,null,null," Niet gecontracteerde zorg"]
[null,null,null," Meerkosten Corona, indirect en toeslagen, gecontracteerd, niet gecontracteerd"]
[null,null,null," TOTAAL RUBRIEK 06",null,null,null,null,null,{"$f":"SUM(J38:J39)","v":0},{"$f":"SUM(K38:K39)","v":0},{"$f":"SUM(L38:L40)","v":0}]
[]
[null,null,null,null,null,null,null,null,null,{"$f":"jaar_id","v":2025},{"$f":"jaar_id-1","v":2024},{"$f":"jaar_id-2","v":2023}]
[null,null,null," Totaal afgesproken maximum omzet plafondcontracten"]
[null,null,null,{"$f":"NOW()","v":"2026-03-26T10:56:01.280"},null,null,null,null,null,null,null,{"$f":"CONCATENATE(\"Contractinformatie, \",LOWER(A6))","v":"Contractinformatie, pagina 1"}]
[]
["Pagina 2",null,null,{"$f":"CONCATENATE(\"JAARSTAAT ZVW \", jaar_id)","v":"JAARSTAAT ZVW 2025"}]
[null,null,null,"SPECIFIEKE INFORMATIE C (CONTRACTINFORMATIE)"]
[null,null,null,{"$f":"IF(naw_uzovi_zorgverzekeraar<>\"0000\",CONCATENATE(UPPER(naw_naam_zorgverzekeraar),\", \",UPPER(naw_plaats_zorgverzekeraar)),\"\")","v":""},null,null,null,null,null,null,null,{"$f":"CONCATENATE(\"UZOVI: \",naw_uzovi_zorgverzekeraar)","v":"UZOVI: 0000"}]
[null,null,null,"CONTRACTINFORMATIE GGZ, rubriek 10"]
[null,null,null,null,null,null,null,null,null,{"$f":"J11","v":"LASTEN 2025 inclusief balanspost "},{"$f":"K11","v":"LASTEN 2024 inclusief balanspost "},{"$f":"L11","v":"LASTEN 2023 inclusief balanspost "}]
[null,null,null,null,null,null,null,null,null,"Ontvangen en geaccepteerde declaraties mbt jaar T","Ontvangen en geaccepteerde declaraties mbt jaar T","Ontvangen en geaccepteerde declaraties mbt jaar T"]
[null,null,null," Gecontracteerde zorg: aanneemsom"]
[null,null,null," Gecontracteerde zorg: plafond"]
[null,null,null," Gecontracteerde zorg: nacalculatie bij aanneemsommen en plafondcontracten"]
[null,null,null," Gecontracteerde zorg: open einde contract"]
[null,null,null," Subtotaal gecontracteerde zorg",null,null,null,null,null,{"$f":"SUM(J53:J56)","v":0},{"$f":"SUM(K53:K56)","v":0},{"$f":"SUM(L53:L56)","v":0}]
[null,null,null," Niet gecontracteerde zorg"]
[null,null,null," TOTAAL RUBRIEK 10",null,null,null,null,null,{"$f":"SUM(J57:J58)","v":0},{"$f":"SUM(K57:K58)","v":0},{"$f":"SUM(L57:L58)","v":0}]
[]
[null,null,null,null,null,null,null,null,null,{"$f":"jaar_id","v":2025},{"$f":"jaar_id-1","v":2024},{"$f":"jaar_id-2","v":2023}]
[null,null,null," Totaal afgesproken maximum omzet plafondcontracten"]
[]
[null,null,null,"CONTRACTINFORMATIE ZINTUIGLIJK GEHANDICAPTEN, code 702"]
[null,null,null,null,null,null,null,null,null,{"$f":"J11","v":"LASTEN 2025 inclusief balanspost "},{"$f":"K11","v":"LASTEN 2024 inclusief balanspost "},{"$f":"L11","v":"LASTEN 2023 inclusief balanspost "}]
[null,null,null,null,null,null,null,null,null,"Ontvangen en geaccepteerde declaraties mbt jaar T","Ontvangen en geaccepteerde declaraties mbt jaar T","Ontvangen en geaccepteerde declaraties mbt jaar T"]
[null,null,null," Gecontracteerde zorg"]
[null,null,null," Niet gecontracteerde zorg"]
[null,null,null," TOTAAL CODE 702",null,null,null,null,null,{"$f":"SUM(J67:J68)","v":0},{"$f":"SUM(K67:K68)","v":0},{"$f":"SUM(L67:L68)","v":0}]
[]
[null,null,null,"CONTRACTINFORMATIE GERIATRISCHE REVALIDATIE, EERSTELIJNSVERBLIJF EN GENEESKUNDIGE ZORG SPECIFIEKE PATIENTGROEPEN, rubriek 11"]
[null,null,null,null,null,null,null,null,null,{"$f":"J11","v":"LASTEN 2025 inclusief balanspost "},{"$f":"K11","v":"LASTEN 2024 inclusief balanspost "},{"$f":"L11","v":"LASTEN 2023 inclusief balanspost "}]
[null,null,null,null,null,null,null,null,null,"Ontvangen en geaccepteerde declaraties mbt jaar T","Ontvangen en geaccepteerde declaraties mbt jaar T","Ontvangen en geaccepteerde declaraties mbt jaar T"]
[null,null,null," Geriatrische Revalidatie, code 670"]
[null,null,null," Gecontracteerde zorg"]
[null,null,null," Niet gecontracteerde zorg"]
[null,null,null," Subtotaal Geriatrische Revalidatie ",null,null,null,null,null,{"$f":"SUM(J75:J76)","v":0},{"$f":"SUM(K75:K76)","v":0},{"$f":"SUM(L75:L76)","v":0}]
[null,null,null," Eerstelijnsverblijf, code 671"]
[null,null,null," Gecontracteerde zorg"]
[null,null,null," Niet gecontracteerde zorg"]
[null,null,null," Subtotaal Eerstelijnsverblijf ",null,null,null,null,null,{"$f":"SUM(J79:J80)","v":0},{"$f":"SUM(K79:K80)","v":0},{"$f":"SUM(L79:L80)","v":0}]
[null,null,null," Geneeskundige Zorg Specifieke Patiëntgroepen, code 672"]
[null,null,null," Gecontracteerde zorg"]
[null,null,null," Niet gecontracteerde zorg"]
[null,null,null," Subtotaal Geneeskundige Zorg Specifieke Patiëntgroepen",null,null,null,null,null,{"$f":"SUM(J83:J84)","v":0},{"$f":"SUM(K83:K84)","v":0},{"$f":"SUM(L83:L84)","v":0}]
[null,null,null," TOTAAL RUBRIEK 11",null,null,null,null,null,{"$f":"SUM(J77,J81,J85)","v":0},{"$f":"SUM(K77,K81,K85)","v":0},{"$f":"SUM(L77,L81,L85)","v":0}]
[null,null,null,{"$f":"NOW()","v":"2026-03-26T10:56:01.280"},null,null,null,null,null,null,null,{"$f":"CONCATENATE(\"Contractinformatie, \",LOWER(A47))","v":"Contractinformatie, pagina 2"}]

{"sheet":"Controleoverzicht","index":8,"n_rows":217,"n_cols":12,"rows_kept":217,"cut":false,"hidden":false,"merged":[[180,3,180,8],[173,3,173,8],[174,3,174,8],[158,3,158,8],[159,3,159,8],[153,3,153,8],[134,3,135,8],[128,3,128,8],[142,3,142,8],[140,3,140,8],[141,3,141,8],[179,3,179,8],[176,3,176,8],[178,3,178,8],[177,3,177,8],[129,3,129,8],[138,3,138,8],[146,3,147,8],[137,3,137,8],[148,3,148,8],[171,10,172,10],[171,11,172,11],[175,3,175,8],[160,3,160,8],[156,3,157,8],[171,9,172,9],[161,3,161,8],[162,3,162,8],[165,3,165,8],[164,3,164,8],[171,3,172,8],[163,3,163,8],[87,3,87,9],[85,3,85,9],[69,3,69,9],[54,3,54,9],[53,3,53,9],[58,3,58,9],[61,3,61,9],[60,3,60,9],[63,3,63,9],[64,3,64,9],[65,3,65,9],[59,3,59,9],[57,3,57,9],[66,3,66,9],[67,3,67,9],[68,3,68,9],[70,3,70,9],[81,11,82,11],[9,11,10,11],[9,9,10,9],[13,9,14,9],[9,3,10,8],[9,10,10,10],[17,10,18,10],[17,9,18,9],[19,3,19,8],[13,3,14,8],[17,11,18,11],[13,11,14,11],[11,3,11,8],[15,3,15,8],[17,3,18,8],[13,10,14,10],[28,10,29,10],[24,3,24,8],[22,11,23,11],[22,10,23,10],[22,9,23,9],[22,3,23,8],[25,3,25,8],[28,11,29,11],[111,3,112,8],[119,3,119,8],[100,10,101,10],[100,11,101,11],[115,3,115,8],[117,3,117,8],[118,3,118,8],[116,3,116,8],[100,9,101,9],[107,3,107,8],[104,3,104,8],[100,3,101,8],[102,3,102,8],[103,3,103,8],[113,3,113,8],[50,11,51,11],[28,3,29,9],[40,3,40,9],[41,3,41,9],[33,3,33,9],[37,3,37,9],[20,3,20,8],[97,3,97,9],[73,3,73,9],[74,3,74,9],[72,3,72,9],[81,3,82,9],[90,3,90,9],[86,3,86,9],[84,3,84,9],[88,3,88,9],[89,3,89,9],[95,3,95,8],[92,3,92,9],[94,3,94,8],[83,3,83,9],[93,3,93,8],[96,3,96,8],[34,3,34,9],[30,3,30,9],[127,3,127,8],[139,3,139,8],[50,10,51,10],[31,3,31,9],[50,3,51,9],[55,3,55,9],[71,3,71,9],[56,3,56,9],[43,3,43,9],[105,3,105,8],[81,10,82,10],[36,3,36,9],[42,3,42,9],[39,3,39,9],[52,3,52,9],[35,3,35,9],[32,3,32,9],[106,3,106,8],[108,3,108,8],[114,3,114,8],[62,3,62,9],[38,3,38,9],[111,10,112,10],[146,11,147,11],[146,9,147,9],[146,10,147,10],[125,11,126,11],[134,11,135,11],[156,11,157,11],[156,9,157,9],[156,10,157,10],[91,3,91,9],[134,10,135,10],[136,3,136,8],[149,3,149,8],[150,3,150,8],[152,3,152,8],[151,3,151,8],[134,9,135,9],[131,3,131,8],[125,10,126,10],[132,3,132,8],[130,3,130,8],[125,3,126,8],[125,9,126,9],[111,11,112,11],[111,9,112,9],[190,3,191,7],[190,8,191,8],[190,9,191,10],[190,11,191,11],[192,3,192,7],[192,9,192,10],[193,3,193,7],[193,9,193,10],[210,3,210,7],[210,9,210,10],[194,3,194,7],[194,9,194,10],[195,3,195,7],[195,9,195,10],[196,3,196,7],[196,9,196,10],[197,3,197,7],[197,9,197,10],[211,3,211,7],[211,9,211,10],[198,3,198,7],[198,9,198,10],[199,3,199,7],[199,9,199,10],[200,3,200,7],[200,9,200,10],[201,3,201,7],[201,9,201,10],[202,3,202,7],[202,9,202,10],[208,3,209,7],[208,8,209,8],[208,9,209,10],[208,11,209,11],[213,3,213,7],[213,9,213,10],[203,3,203,7],[203,9,203,10],[204,3,204,7],[204,9,204,10],[205,3,205,7],[205,9,205,10],[212,3,212,7],[212,9,212,10],[206,3,206,7],[206,9,206,10]]}
[null,null,"SPECIFICATIES CONTROLEOVERZICHT"]
[]
[]
[]
[]
["Pagina 1",null,null,{"$f":"CONCATENATE(\"JAARSTAAT ZVW \", jaar_id)","v":"JAARSTAAT ZVW 2025"}]
[null,null,null,"CONTROLEOVERZICHT",null,null,null,null,null,null,null,{"$f":"CONCATENATE(\"UZOVI: \",naw_uzovi_zorgverzekeraar)","v":"UZOVI: 0000"}]
[null,null,null,{"$f":"IF(naw_uzovi_zorgverzekeraar<>\"0000\",CONCATENATE(UPPER(naw_naam_zorgverzekeraar),\", \",UPPER(naw_plaats_zorgverzekeraar)),\"\")","v":""}]
[null,null,null,"VERGELIJKING KOSTENVERZAMELSTAAT EN SPECIFIEKE INFORMATIE A "]
[null,null,null," SPECIFICATIES KOSTEN NAAR DEELBIJDRAGE",null,null,null,null,null,{"$f":"CONCATENATE(\"LASTEN \",jaar_id,\" inclusief balanspost \")","v":"LASTEN 2025 inclusief balanspost "},"Kosten naar deelbijdrage","Verschil"]
[]
[null,null,null," Totaal kosten naar deelbijdrage (totaal lasten t/m rubriek 16) - \n inclusief balanspost",null,null,null,null,null,{"$f":"Kostenverzamelstaat!I120","v":0},{"$f":"'Specifieke informatie A'!K17","v":0},{"$f":"IF(J12<>K12,J12-K12,\"\")","v":""}]
[]
[null,null,null," SPECIFICATIES KOSTEN NAAR DEELBIJDRAGE",null,null,null,null,null,{"$f":"CONCATENATE(\"LASTEN \",jaar_id-2,\" ontvangen en geaccepteerde declaraties \")","v":"LASTEN 2023 ontvangen en geaccepteerde declaraties "},"Kosten naar deelbijdrage","Verschil"]
[]
[null,null,null," Totaal kosten naar deelbijdrage (totaal lasten t/m rubriek 16)",null,null,null,null,null,{"$f":"Kostenverzamelstaat!M120","v":0},{"$f":"'Specifieke informatie A'!L17","v":0},{"$f":"IF(J16<>K16,J16-K16,\"\")","v":""}]
[]
[null,null,null," KOSTEN PER CODENUMMER - LASTEN 2025 INCLUSIEF BALANSPOST",null,null,null,null,null,"Volgens\nkostenver- \nzamelstaat","Volgens\ndetail- \nspecificatie ","Verschil"]
[]
[null,null,null," 720 Grensoverschrijdende zorg -Kosten via verzekeraar",null,null,null,null,null,{"$f":"Kostenverzamelstaat!I114","v":0},{"$f":"'Specifieke informatie A'!K51","v":0},{"$f":"IF(J20<>K20,J20-K20,\"\")","v":""}]
[null,null,null," 721 Grensoverschrijdende zorg - Kosten via verbindingsorgaan",null,null,null,null,null,{"$f":"Kostenverzamelstaat!I115","v":0},{"$f":"'Specifieke informatie A'!K58","v":0},{"$f":"IF(J21<>K21,J21-K21,\"\")","v":""}]
[]
[null,null,null," KOSTEN PER CODENUMMER - ONTVANGEN EN GEACCEPTEERDE \n                                            DECLARATIES MBT 2023",null,null,null,null,null,"Volgens\nkostenver- \nzamelstaat","Volgens\ndetail- \nspecificatie ","Verschil"]
[]
[null,null,null," 720 Grensoverschrijdende zorg -Kosten via verzekeraar",null,null,null,null,null,{"$f":"Kostenverzamelstaat!M114","v":0},{"$f":"'Specifieke informatie A'!L51","v":0},{"$f":"IF(J25<>K25,J25-K25,\"\")","v":""}]
[null,null,null," 721 Grensoverschrijdende zorg - Kosten via verbindingsorgaan",null,null,null,null,null,{"$f":"Kostenverzamelstaat!M115","v":0},{"$f":"'Specifieke informatie A'!L58","v":0},{"$f":"IF(J26<>K26,J26-K26,\"\")","v":""}]
[]
[null,null,null,"VERGELIJKING KOSTENVERZAMELSTAAT 2025 "]
[null,null,null," KOSTENVERZAMELSTAAT",null,null,null,null,null,null,{"$f":"CONCATENATE(\"Kosten balanspost m.b.t. \",jaar_id)","v":"Kosten balanspost m.b.t. 2025"},{"$f":"CONCATENATE(\"Kosten balanspost m.b.t. \",jaar_id-1)","v":"Kosten balanspost m.b.t. 2024"}]
[]
[null,null,null," 503 Bijzondere betalingen",null,null,null,null,null,null,{"$f":"Kostenverzamelstaat!I16-Kostenverzamelstaat!J16","v":0},{"$f":"Kostenverzamelstaat!K16-Kostenverzamelstaat!L16","v":0}]
[null,null,null," 504 Avond-, nacht- en weekenddiensten",null,null,null,null,null,null,{"$f":"Kostenverzamelstaat!I17-Kostenverzamelstaat!J17","v":0},{"$f":"Kostenverzamelstaat!K17-Kostenverzamelstaat!L17","v":0}]
[null,null,null," 505 Inschrijftarieven",null,null,null,null,null,null,{"$f":"Kostenverzamelstaat!I18-Kostenverzamelstaat!J18","v":0},{"$f":"Kostenverzamelstaat!K18-Kostenverzamelstaat!L18","v":0}]
[null,null,null," 506 Consulttarieven",null,null,null,null,null,null,{"$f":"Kostenverzamelstaat!I19-Kostenverzamelstaat!J19","v":0},{"$f":"Kostenverzamelstaat!K19-Kostenverzamelstaat!L19","v":0}]
[null,null,null," 507 Overige tarieven",null,null,null,null,null,null,{"$f":"Kostenverzamelstaat!I20-Kostenverzamelstaat!J20","v":0},{"$f":"Kostenverzamelstaat!K20-Kostenverzamelstaat!L20","v":0}]
[null,null,null," 510 Multidisciplinaire zorg ",null,null,null,null,null,null,{"$f":"Kostenverzamelstaat!I21-Kostenverzamelstaat!J21","v":0},{"$f":"Kostenverzamelstaat!K21-Kostenverzamelstaat!L21","v":0}]
[null,null,null," 515 Resultaatbeloning en zorgvernieuwing huisartsen",null,null,null,null,null,null,{"$f":"Kostenverzamelstaat!I22-Kostenverzamelstaat!J22","v":0},{"$f":"Kostenverzamelstaat!K22-Kostenverzamelstaat!L22","v":0}]
[null,null,null," 516 Resultaatbeloning en zorgvernieuwing MDZ",null,null,null,null,null,null,{"$f":"Kostenverzamelstaat!I23-Kostenverzamelstaat!J23","v":0},{"$f":"Kostenverzamelstaat!K23-Kostenverzamelstaat!L23","v":0}]
[null,null,null," 520 Farmaceutische hulp",null,null,null,null,null,null,{"$f":"Kostenverzamelstaat!I26-Kostenverzamelstaat!J26","v":0},{"$f":"Kostenverzamelstaat!K26-Kostenverzamelstaat!L26","v":0}]
[null,null,null," 530 Kosten van verpleging en verzorging",null,null,null,null,null,null,{"$f":"Kostenverzamelstaat!I29-Kostenverzamelstaat!J29","v":0},{"$f":"Kostenverzamelstaat!K29-Kostenverzamelstaat!L29","v":0}]
[null,null,null," 545 Kosten specialisten mondziekten en kaakchirurgie",null,null,null,null,null,null,{"$f":"Kostenverzamelstaat!I54-Kostenverzamelstaat!J54","v":0},{"$f":"Kostenverzamelstaat!K54-Kostenverzamelstaat!L54","v":0}]
[null,null,null," 560.1 Kosten mondzorg volwassen verzekerden",null,null,null,null,null,null,{"$f":"Kostenverzamelstaat!I32-Kostenverzamelstaat!J32","v":0},{"$f":"Kostenverzamelstaat!K32-Kostenverzamelstaat!L32","v":0}]
[null,null,null," 560.2 Kosten mondzorg jeugdige verzekerden",null,null,null,null,null,null,{"$f":"Kostenverzamelstaat!I33-Kostenverzamelstaat!J33","v":0},{"$f":"Kostenverzamelstaat!K33-Kostenverzamelstaat!L33","v":0}]
[null,null,null," 561 Kosten gebitsprothesen",null,null,null,null,null,null,{"$f":"Kostenverzamelstaat!I34-Kostenverzamelstaat!J34","v":0},{"$f":"Kostenverzamelstaat!K34-Kostenverzamelstaat!L34","v":0}]
[null,null,null,{"$f":"NOW()","v":"2026-03-26T10:56:01.280"},null,null,null,null,null,null,{"$f":"CONCATENATE(\"Controleoverzicht \",LOWER(A6))","v":"Controleoverzicht pagina 1"}]
[]
["Pagina 2",null,null,{"$f":"CONCATENATE(\"JAARSTAAT ZVW \", jaar_id)","v":"JAARSTAAT ZVW 2025"}]
[null,null,null,"CONTROLEOVERZICHT",null,null,null,null,null,null,null,{"$f":"CONCATENATE(\"UZOVI: \",naw_uzovi_zorgverzekeraar)","v":"UZOVI: 0000"}]
[null,null,null,{"$f":"IF(naw_uzovi_zorgverzekeraar<>\"0000\",CONCATENATE(UPPER(naw_naam_zorgverzekeraar),\", \",UPPER(naw_plaats_zorgverzekeraar)),\"\")","v":""}]
[null,null,null,"VERGELIJKING KOSTENVERZAMELSTAAT 2025 - vervolg"]
[null,null,null," KOSTENVERZAMELSTAAT",null,null,null,null,null,null,{"$f":"CONCATENATE(\"Kosten balanspost m.b.t. \",jaar_id)","v":"Kosten balanspost m.b.t. 2025"},{"$f":"CONCATENATE(\"Kosten balanspost m.b.t. \",jaar_id-1)","v":"Kosten balanspost m.b.t. 2024"}]
[]
[null,null,null," 580 Kosten verloskundige hulp door verloskundigen",null,null,null,null,null,null,{"$f":"Kostenverzamelstaat!I37-Kostenverzamelstaat!J37","v":0},{"$f":"Kostenverzamelstaat!K37-Kostenverzamelstaat!L37","v":0}]
[null,null,null," 582 Kosten Integrale geboortezorg ",null,null,null,null,null,null,{"$f":"Kostenverzamelstaat!I38-Kostenverzamelstaat!J38","v":0},{"$f":"Kostenverzamelstaat!K38-Kostenverzamelstaat!L38","v":0}]
[null,null,null," 610.1  NTS",null,null,null,null,null,null,{"$f":"Kostenverzamelstaat!I55-Kostenverzamelstaat!J55","v":0},{"$f":"Kostenverzamelstaat!K55-Kostenverzamelstaat!L55","v":0}]
[null,null,null," 610.2  Eerstelijnsdiagnostiek aangevraagd door eerstelijnszorg-aanbieders geleverd door huisartsenlaboratoria en Trombosediensten",null,null,null,null,null,null,{"$f":"Kostenverzamelstaat!I56-Kostenverzamelstaat!J56","v":0},{"$f":"Kostenverzamelstaat!K56-Kostenverzamelstaat!L56","v":0}]
[null,null,null," 611 Overige zorgproducten",null,null,null,null,null,null,{"$f":"Kostenverzamelstaat!I57-Kostenverzamelstaat!J57","v":0},{"$f":"Kostenverzamelstaat!K57-Kostenverzamelstaat!L57","v":0}]
[null,null,null," 612.1 Kosten addons - Dure geneesmiddelen",null,null,null,null,null,null,{"$f":"Kostenverzamelstaat!I58-Kostenverzamelstaat!J58","v":0},{"$f":"Kostenverzamelstaat!K58-Kostenverzamelstaat!L58","v":0}]
[null,null,null," 612.2  Kosten add-ons - IC",null,null,null,null,null,null,{"$f":"Kostenverzamelstaat!I59-Kostenverzamelstaat!J59","v":0},{"$f":"Kostenverzamelstaat!K59-Kostenverzamelstaat!L59","v":0}]
[null,null,null," 613.1 Integrale kosten DBC-zorgproduct gereguleerde segment",null,null,null,null,null,null,{"$f":"Kostenverzamelstaat!I60-Kostenverzamelstaat!J60","v":0},{"$f":"Kostenverzamelstaat!K60-Kostenverzamelstaat!L60","v":0}]
[null,null,null," 615.1 Integrale kosten DBC-zorgproduct vrije segment",null,null,null,null,null,null,{"$f":"Kostenverzamelstaat!I61-Kostenverzamelstaat!J61","v":0},{"$f":"Kostenverzamelstaat!K61-Kostenverzamelstaat!L61","v":0}]
[null,null,null," 619 Kosten en honoraria extramuraal werkende specialisten",null,null,null,null,null,null,{"$f":"Kostenverzamelstaat!I62-Kostenverzamelstaat!J62","v":0},{"$f":"Kostenverzamelstaat!K62-Kostenverzamelstaat!L62","v":0}]
[null,null,null," 620 Kosten fysiotherapie",null,null,null,null,null,null,{"$f":"Kostenverzamelstaat!I66-Kostenverzamelstaat!J66","v":0},{"$f":"Kostenverzamelstaat!K66-Kostenverzamelstaat!L66","v":0}]
[null,null,null," 621 Kosten oefentherapie Mensendieck/Cesar",null,null,null,null,null,null,{"$f":"Kostenverzamelstaat!I67-Kostenverzamelstaat!J67","v":0},{"$f":"Kostenverzamelstaat!K67-Kostenverzamelstaat!L67","v":0}]
[null,null,null," 623 Kosten logopedie",null,null,null,null,null,null,{"$f":"Kostenverzamelstaat!I68-Kostenverzamelstaat!J68","v":0},{"$f":"Kostenverzamelstaat!K68-Kostenverzamelstaat!L68","v":0}]
[null,null,null," 624 Kosten ergotherapie",null,null,null,null,null,null,{"$f":"Kostenverzamelstaat!I69-Kostenverzamelstaat!J69","v":0},{"$f":"Kostenverzamelstaat!K69-Kostenverzamelstaat!L69","v":0}]
[null,null,null," 625 Kosten dieetadvisering",null,null,null,null,null,null,{"$f":"Kostenverzamelstaat!I70-Kostenverzamelstaat!J70","v":0},{"$f":"Kostenverzamelstaat!K70-Kostenverzamelstaat!L70","v":0}]
[null,null,null," 626  Gecombineerde Leefstijl Interventie (GLI)",null,null,null,null,null,null,{"$f":"Kostenverzamelstaat!I71-Kostenverzamelstaat!J71","v":0},{"$f":"Kostenverzamelstaat!K71-Kostenverzamelstaat!L71","v":0}]
[null,null,null," 640 Hulpmiddelen",null,null,null,null,null,null,{"$f":"Kostenverzamelstaat!I74-Kostenverzamelstaat!J74","v":0},{"$f":"Kostenverzamelstaat!K74-Kostenverzamelstaat!L74","v":0}]
[null,null,null," 650 Kosten vervoer per ambulance/helikopter",null,null,null,null,null,null,{"$f":"Kostenverzamelstaat!I77-Kostenverzamelstaat!J77","v":0},{"$f":"Kostenverzamelstaat!K77-Kostenverzamelstaat!L77","v":0}]
[null,null,null," 650.1 Opbrengstenverrekeningen regionale ambulancevoorzieningen ",null,null,null,null,null,null,{"$f":"Kostenverzamelstaat!I78-Kostenverzamelstaat!J78","v":0},{"$f":"Kostenverzamelstaat!K78-Kostenverzamelstaat!L78","v":0}]
[null,null,null," 651 Kosten vervoer per openbaar vervoer, taxi en eigen auto",null,null,null,null,null,null,{"$f":"Kostenverzamelstaat!I79-Kostenverzamelstaat!J79","v":0},{"$f":"Kostenverzamelstaat!K79-Kostenverzamelstaat!L79","v":0}]
[null,null,null," 666 Kosten specialistische GGZ met verblijf",null,null,null,null,null,null,{"$f":"Kostenverzamelstaat!I95-Kostenverzamelstaat!J95","v":0},{"$f":"Kostenverzamelstaat!K95-Kostenverzamelstaat!L95","v":0}]
[null,null,null," 667 Kosten specialistische GGZ zonder verblijf",null,null,null,null,null,null,{"$f":"Kostenverzamelstaat!I96-Kostenverzamelstaat!J96","v":0},{"$f":"Kostenverzamelstaat!K96-Kostenverzamelstaat!L96","v":0}]
[null,null,null," 668 Kosten overige prestaties GGZ",null,null,null,null,null,null,{"$f":"Kostenverzamelstaat!I97-Kostenverzamelstaat!J97","v":0},{"$f":"Kostenverzamelstaat!K97-Kostenverzamelstaat!L97","v":0}]
[null,null,null,{"$f":"NOW()","v":"2026-03-26T10:56:01.280"},null,null,null,null,null,null,{"$f":"CONCATENATE(\"Controleoverzicht \",LOWER(A47))","v":"Controleoverzicht pagina 2"}]
[]
["Pagina 3",null,null,{"$f":"CONCATENATE(\"JAARSTAAT ZVW \", jaar_id)","v":"JAARSTAAT ZVW 2025"}]
[null,null,null,"CONTROLEOVERZICHT",null,null,null,null,null,null,null,{"$f":"CONCATENATE(\"UZOVI: \",naw_uzovi_zorgverzekeraar)","v":"UZOVI: 0000"}]
[null,null,null,{"$f":"IF(naw_uzovi_zorgverzekeraar<>\"0000\",CONCATENATE(UPPER(naw_naam_zorgverzekeraar),\", \",UPPER(naw_plaats_zorgverzekeraar)),\"\")","v":""}]
[null,null,null,"VERGELIJKING KOSTENVERZAMELSTAAT 2025 - vervolg"]
[null,null,null," KOSTENVERZAMELSTAAT",null,null,null,null,null,null,{"$f":"CONCATENATE(\"Kosten balanspost m.b.t. \",jaar_id)","v":"Kosten balanspost m.b.t. 2025"},{"$f":"CONCATENATE(\"Kosten balanspost m.b.t. \",jaar_id-1)","v":"Kosten balanspost m.b.t. 2024"}]
[]
[null,null,null," 670 Geriatische revalidatiezorg",null,null,null,null,null,null,{"$f":"Kostenverzamelstaat!I100-Kostenverzamelstaat!J100","v":0},{"$f":"Kostenverzamelstaat!K100-Kostenverzamelstaat!L100","v":0}]
[null,null,null," 671 Eerstelijnsverblijf ",null,null,null,null,null,null,{"$f":"Kostenverzamelstaat!I101-Kostenverzamelstaat!J101","v":0},{"$f":"Kostenverzamelstaat!K101-Kostenverzamelstaat!L101","v":0}]
[null,null,null," 672  Generalistische Geneeskundige Zorg Specifieke Patiëntgroepen",null,null,null,null,null,null,{"$f":"Kostenverzamelstaat!I102-Kostenverzamelstaat!J102","v":0},{"$f":"Kostenverzamelstaat!K102-Kostenverzamelstaat!L102","v":0}]
[null,null,null," 680 Kraamzorg",null,null,null,null,null,null,{"$f":"Kostenverzamelstaat!I105-Kostenverzamelstaat!J105","v":0},{"$f":"Kostenverzamelstaat!K105-Kostenverzamelstaat!L105","v":0}]
[null,null,null," 700 Overige kosten",null,null,null,null,null,null,{"$f":"Kostenverzamelstaat!I108-Kostenverzamelstaat!J108","v":0},{"$f":"Kostenverzamelstaat!K108-Kostenverzamelstaat!L108","v":0}]
[null,null,null," 701 Overige geneeskundige zorg ",null,null,null,null,null,null,{"$f":"Kostenverzamelstaat!I109-Kostenverzamelstaat!J109","v":0},{"$f":"Kostenverzamelstaat!K109-Kostenverzamelstaat!L109","v":0}]
[null,null,null," 702 Kosten van zorg zintuiglijk gehandicapten",null,null,null,null,null,null,{"$f":"Kostenverzamelstaat!I110-Kostenverzamelstaat!J110","v":0},{"$f":"Kostenverzamelstaat!K110-Kostenverzamelstaat!L110","v":0}]
[null,null,null," 703 Transformatiemiddelen IZA",null,null,null,null,null,null,{"$f":"Kostenverzamelstaat!I111-Kostenverzamelstaat!J111","v":0},{"$f":"Kostenverzamelstaat!K111-Kostenverzamelstaat!L111","v":0}]
[null,null,null," 720 Grensoverschrijdende zorg, kosten gemaakt in het buitenland, via verzekeraar ",null,null,null,null,null,null,{"$f":"Kostenverzamelstaat!I114-Kostenverzamelstaat!J114","v":0},{"$f":"Kostenverzamelstaat!K114-Kostenverzamelstaat!L114","v":0}]
[null,null,null," 721 Grensoverschrijdende zorg, kosten gemaakt in het buitenland, via verbingsorgaan",null,null,null,null,null,null,{"$f":"Kostenverzamelstaat!I115-Kostenverzamelstaat!J115","v":0},{"$f":"Kostenverzamelstaat!K115-Kostenverzamelstaat!L115","v":0}]
[null,null,null," 730 Kwaliteitsgelden",null,null,null,null,null,null,{"$f":"Kostenverzamelstaat!I118-Kostenverzamelstaat!J118","v":0},{"$f":"Kostenverzamelstaat!K118-Kostenverzamelstaat!L118","v":0}]
[null,null,null," 890.1 Opbrengsten verhaal",null,null,null,null,null,null,{"$f":"Kostenverzamelstaat!I124-Kostenverzamelstaat!J124","v":0},{"$f":"Kostenverzamelstaat!K124-Kostenverzamelstaat!L124","v":0}]
[null,null,null," 910 Schade t.l.v. het vrijwillig eigen risico",null,null,null,null,null,null,{"$f":"Kostenverzamelstaat!I125-Kostenverzamelstaat!J125","v":0},{"$f":"Kostenverzamelstaat!K125-Kostenverzamelstaat!L125","v":0}]
[null,null,null," 915 Schade t.l.v. het verplicht eigen risico",null,null,null,null,null,null,{"$f":"Kostenverzamelstaat!I126-Kostenverzamelstaat!J126","v":0},{"$f":"Kostenverzamelstaat!K126-Kostenverzamelstaat!L126","v":0}]
[null,null,null," 940 Netto premieopbrengsten",null,null,null,null,null,null,{"$f":"Kostenverzamelstaat!I127-Kostenverzamelstaat!J127","v":0},{"$f":"Kostenverzamelstaat!K127-Kostenverzamelstaat!L127","v":0}]
[]
[null,null,null,"VERGELIJKING KOSTENVERZAMELSTAAT EN SPECIFIEKE INFORMATIE C"]
[null,null,null," LASTEN 2025 INCLUSIEF BALANSPOST",null,null,null,null,null,"Kosten- verzamelstaat","Spec. inform. C\ndetailinformatie","Verschil"]
[]
[null,null,null," 610.2  Eerstelijnsdiagnostiek aangevraagd door eerstelijnszorg-aanbieders geleverd door huisartsenlaboratoria en Trombosediensten",null,null,null,null,null,{"$f":"Kostenverzamelstaat!I56","v":0},{"$f":"'Specifieke informatie C'!H16","v":0},{"$f":"IF(J103<>K103,J103-K103,\"\")","v":""}]
[null,null,null," 611 Overige zorgproducten (Instellingen)",null,null,null,null,null,{"$f":"Kostenverzamelstaat!I57","v":0},{"$f":"'Specifieke informatie C'!H25","v":0},""]
[null,null,null," 612.1 Kosten add ons Dure geneesmiddelen",null,null,null,null,null,{"$f":"Kostenverzamelstaat!I58","v":0},{"$f":"'Specifieke informatie C'!H34","v":0},""]
[null,null,null," 612.2 Kosten add-ons - IC",null,null,null,null,null,{"$f":"Kostenverzamelstaat!I59","v":0},{"$f":"'Specifieke informatie C'!H48","v":0},""]
[null,null,null," 613.1 Integrale kosten DBC-zorgproduct gereguleerde segment",null,null,null,null,null,{"$f":"Kostenverzamelstaat!I60","v":0},{"$f":"'Specifieke informatie C'!H60","v":0},""]
[null,null,null," 615.1 Integrale kosten DBC-zorgproduct vrije segment",null,null,null,null,null,{"$f":"Kostenverzamelstaat!I61","v":0},{"$f":"'Specifieke informatie C'!H70","v":0},""]
[null,null,null," 720 Kosten grensoverschrijdende zorg, via verzekeraar",null,null,null,null,null,{"$f":"Kostenverzamelstaat!I114","v":0},{"$f":"'Specifieke informatie C'!K91","v":0},""]
[null,null,null,{"$f":"IF(naw_uzovi_zorgverzekeraar<>\"0000\",CONCATENATE(UPPER(naw_naam_zorgverzekeraar),\", \",UPPER(naw_plaats_zorgverzekeraar)),\"\")","v":""}]
[null,null,null,"VERGELIJKING KOSTENVERZAMELSTAAT EN SPECIFIEKE INFORMATIE C"]
[null,null,null," ONTVANGEN EN GEACCEPTEERDE DECLARATIES mbt 2025",null,null,null,null,null,"Kosten- verzamelstaat","Spec. inform. C\ndetailinformatie","Verschil"]
[]
[null,null,null," 610.2 Eerstelijnsdiagnostiek aangevraagd door eerstelijnszorg-aanbieders geleverd door huisartsenlaboratoria en Trombosediensten",null,null,null,null,null,{"$f":"Kostenverzamelstaat!J56","v":0},{"$f":"'Specifieke informatie C'!I16","v":0},{"$f":"IF(J114<>K114,J114-K114,\"\")","v":""}]
[null,null,null," 611 Overige zorgproducten (Instellingen)",null,null,null,null,null,{"$f":"Kostenverzamelstaat!J57","v":0},{"$f":"'Specifieke informatie C'!I25","v":0},{"$f":"IF(J115<>K115,J115-K115,\"\")","v":""}]
[null,null,null," 612.1 Kosten add-ons - Dure geneesmiddelen ",null,null,null,null,null,{"$f":"Kostenverzamelstaat!J58","v":0},{"$f":"'Specifieke informatie C'!I34","v":0},""]
[null,null,null," 612.2 Kosten add-ons - IC",null,null,null,null,null,{"$f":"Kostenverzamelstaat!J59","v":0},{"$f":"'Specifieke informatie C'!I48","v":0},""]
[null,null,null," 613.1 Integrale kosten DBC-zorgproduct gereguleerde segment",null,null,null,null,null,{"$f":"Kostenverzamelstaat!J60","v":0},{"$f":"'Specifieke informatie C'!I60","v":0},""]
[null,null,null," 615.1 Integrale kosten DBC-zorgproduct vrije segment",null,null,null,null,null,{"$f":"Kostenverzamelstaat!J61","v":0},{"$f":"'Specifieke informatie C'!I70","v":0},""]
[null,null,null," 720 Kosten grensoverschrijdende zorg, via verzekeraar",null,null,null,null,null,{"$f":"Kostenverzamelstaat!J114","v":0},{"$f":"'Specifieke informatie C'!K91","v":0},""]
[null,null,null,{"$f":"NOW()","v":"2026-03-26T10:56:01.280"},null,null,null,null,null,null,{"$f":"CONCATENATE(\"Controleoverzicht \",LOWER(A78))","v":"Controleoverzicht pagina 3"}]
[]
["Pagina 4",null,null,{"$f":"CONCATENATE(\"JAARSTAAT ZVW \", jaar_id)","v":"JAARSTAAT ZVW 2025"}]
[null,null,null,"CONTROLEOVERZICHT",null,null,null,null,null,null,null,{"$f":"CONCATENATE(\"UZOVI: \",naw_uzovi_zorgverzekeraar)","v":"UZOVI: 0000"}]
[]
[null,null,null," LASTEN 2024 INCLUSIEF BALANSPOST",null,null,null,null,null,"Kosten- verzamelstaat","Spec. inform. C\ndetailinformatie","Verschil "]
[]
[null,null,null," 610.2  Eerstelijnsdiagnostiek aangevraagd door eerstelijnszorg-aanbieders geleverd door huisartsenlaboratoria en Trombosediensten",null,null,null,null,null,{"$f":"Kostenverzamelstaat!K56","v":0},{"$f":"'Specifieke informatie C'!J16","v":0},{"$f":"IF(J128<>K128,J128-K128,\"\")","v":""}]
[null,null,null," 611 Overige zorgproducten (Instellingen)",null,null,null,null,null,{"$f":"Kostenverzamelstaat!K57","v":0},{"$f":"'Specifieke informatie C'!J25","v":0},""]
[null,null,null," 612.1 Kosten add-ons - Dure geneesmiddelen ",null,null,null,null,null,{"$f":"Kostenverzamelstaat!K58","v":0},{"$f":"'Specifieke informatie C'!J34","v":0},""]
[null,null,null," 612.2 Kosten add ons",null,null,null,null,null,{"$f":"Kostenverzamelstaat!K59","v":0},{"$f":"'Specifieke informatie C'!J48","v":0},""]
[null,null,null," 613.1 Integrale kosten DBC-zorgproduct gereguleerde segment ",null,null,null,null,null,{"$f":"Kostenverzamelstaat!K60","v":0},{"$f":"'Specifieke informatie C'!J60","v":0},""]
[null,null,null," 615.1 Integrale kosten DBC-zorgproduct vrije segment ",null,null,null,null,null,{"$f":"Kostenverzamelstaat!K61","v":0},{"$f":"'Specifieke informatie C'!J70","v":0},""]
[]
[null,null,null," ONTVANGEN EN GEACCEPTEERDE DECLARATIES mbt 2024",null,null,null,null,null,"Kosten- verzamelstaat","Spec. inform. C\ndetailinformatie","Verschil"]
[]
[null,null,null," 610.2  Eerstelijnsdiagnostiek aangevraagd door eerstelijnszorg-aanbieders geleverd door huisartsenlaboratoria en Trombosediensten",null,null,null,null,null,{"$f":"Kostenverzamelstaat!L56","v":0},{"$f":"'Specifieke informatie C'!K16","v":0},{"$f":"IF(J137<>K137,J137-K137,\"\")","v":""}]
[null,null,null," 611 Overige zorgproducten (Instellingen)",null,null,null,null,null,{"$f":"Kostenverzamelstaat!L57","v":0},{"$f":"'Specifieke informatie C'!K25","v":0},{"$f":"IF(J138<>K138,J138-K138,\"\")","v":""}]
[null,null,null," 612.1 Kosten add-ons - Dure geneesmiddelen ",null,null,null,null,null,{"$f":"Kostenverzamelstaat!L58","v":0},{"$f":"'Specifieke informatie C'!K34","v":0},""]
[null,null,null," 612.2 Kosten add-ons - IC",null,null,null,null,null,{"$f":"Kostenverzamelstaat!L59","v":0},{"$f":"'Specifieke informatie C'!K48","v":0},{"$f":"IF(J140<>K140,J140-K140,\"\")","v":""}]
[null,null,null," 613.1 Integrale kosten DBC-zorgproduct gereguleerde segment",null,null,null,null,null,{"$f":"Kostenverzamelstaat!L60","v":0},{"$f":"'Specifieke informatie C'!K60","v":0},""]
[null,null,null," 615.1 Integrale kosten DBC-zorgproduct vrije segment",null,null,null,null,null,{"$f":"Kostenverzamelstaat!L61","v":0},{"$f":"'Specifieke informatie C'!K70","v":0},""]
[null,null,null," 720 Kosten grensoverschrijdende zorg, via verzekeraar",null,null,null,null,null,{"$f":"Kostenverzamelstaat!L114","v":0},{"$f":"'Specifieke informatie C'!L91","v":0},""]
[]
[]
[null,null,null,"VERGELIJKING KOSTENVERZAMELSTAAT EN SPECIFIEKE INFORMATIE C"]
[null,null,null," ONTVANGEN EN GEACCEPTEERDE DECLARATIES mbt 2023 ",null,null,null,null,null,"Kosten- verzamelstaat","Spec. inform. C\ndetailinformatie","Verschil "]
[]
[null,null,null," 610.2  Eerstelijnsdiagnostiek aangevraagd door eerstelijnszorg-aanbieders geleverd door huisartsenlaboratoria en Trombosediensten",null,null,null,null,null,{"$f":"Kostenverzamelstaat!M56","v":0},{"$f":"'Specifieke informatie C'!L16","v":0},{"$f":"IF(J149<>K149,J149-K149,\"\")","v":""}]
[null,null,null," 611 Overige zorgproducten (Instellingen)",null,null,null,null,null,{"$f":"Kostenverzamelstaat!M57","v":0},{"$f":"'Specifieke informatie C'!L25","v":0},{"$f":"IF(J150<>K150,J150-K150,\"\")","v":""}]
[null,null,null," 612.1  Kosten add-ons - Dure geneesmiddelen",null,null,null,null,null,{"$f":"Kostenverzamelstaat!M58","v":0},{"$f":"'Specifieke informatie C'!L34","v":0},""]
[null,null,null," 612.2 Kosten add-ons - IC",null,null,null,null,null,{"$f":"Kostenverzamelstaat!M59","v":0},{"$f":"'Specifieke informatie C'!L48","v":0},""]
[null,null,null," 613.1 Integrale kosten DBC-zorgproduct gereguleerde segment",null,null,null,null,null,{"$f":"Kostenverzamelstaat!M60","v":0},{"$f":"'Specifieke informatie C'!L60","v":0},""]
[null,null,null," 615.1 Integrale kosten DBC-zorgproduct vrije segment",null,null,null,null,null,{"$f":"Kostenverzamelstaat!M61","v":0},{"$f":"'Specifieke informatie C'!L70","v":0},""]
[]
[null,null,null,"VERGELIJKING SPECIFIEKE INFORMATIE EN CONTRACTINFORMATIE"]
[null,null,null," LASTEN 2025 INCLUSIEF BALANSPOST",null,null,null,null,null,"Kosten- verzamelstaat","Spec. inform. C\ncontract inform.","Verschil "]
[]
[null,null,null," Totaal code 503, 504, 505, 506, 507, 515 ",null,null,null,null,null,{"$f":"SUM(Kostenverzamelstaat!I16+Kostenverzamelstaat!I17+Kostenverzamelstaat!I18+Kostenverzamelstaat!I19+Kostenverzamelstaat!I20+Kostenverzamelstaat!I22)","v":0},{"$f":"Contractinformatie!J16","v":0},{"$f":"IF(J159<>K159,J159-K159,\"\")","v":""}]
[null,null,null," Totaal code 510, 516 ",null,null,null,null,null,{"$f":"SUM(Kostenverzamelstaat!I21+Kostenverzamelstaat!I23)","v":0},{"$f":"Contractinformatie!J20","v":0},""]
[null,null,null," Totaal Rubriek 01",null,null,null,null,null,{"$f":"Kostenverzamelstaat!I24","v":0},{"$f":"Contractinformatie!J21","v":0},""]
[null,null,null," Totaal Rubriek 03",null,null,null,null,null,{"$f":"Kostenverzamelstaat!I30","v":0},{"$f":"Contractinformatie!J29","v":0},""]
[null,null,null," Totaal Rubriek 06",null,null,null,null,null,{"$f":"Kostenverzamelstaat!I64","v":0},{"$f":"Contractinformatie!J41","v":0},""]
[null,null,null," Totaal Rubriek 10",null,null,null,null,null,{"$f":"Kostenverzamelstaat!I98","v":0},{"$f":"Contractinformatie!J59","v":0},{"$f":"IF(J164<>K164,J164-K164,\"\")","v":""}]
[null,null,null," Totaal Rubriek 11",null,null,null,null,null,{"$f":"Kostenverzamelstaat!I103","v":0},{"$f":"Contractinformatie!J86","v":0},{"$f":"IF(J165<>K165,J165-K165,\"\")","v":""}]
[null,null,null," Totaal Code 702",null,null,null,null,null,{"$f":"Kostenverzamelstaat!I110","v":0},{"$f":"Contractinformatie!J69","v":0},{"$f":"IF(J166<>K166,J166-K166,\"\")","v":""}]
[null,null,null,{"$f":"NOW()","v":"2026-03-26T10:56:01.280"},null,null,null,null,null,null,{"$f":"CONCATENATE(\"Controleoverzicht \",LOWER(A123))","v":"Controleoverzicht pagina 4"}]
[]
["Pagina 5",null,null,{"$f":"CONCATENATE(\"JAARSTAAT ZVW \", jaar_id)","v":"JAARSTAAT ZVW 2025"}]
[null,null,null,"CONTROLEOVERZICHT",null,null,null,null,null,null,null,{"$f":"CONCATENATE(\"UZOVI: \",naw_uzovi_zorgverzekeraar)","v":"UZOVI: 0000"}]
[null,null,null,{"$f":"IF(naw_uzovi_zorgverzekeraar<>\"0000\",CONCATENATE(UPPER(naw_naam_zorgverzekeraar),\", \",UPPER(naw_plaats_zorgverzekeraar)),\"\")","v":""}]
[null,null,null," LASTEN 2024 INCLUSIEF BALANSPOST",null,null,null,null,null,"Kosten- verzamelstaat","Spec. inform. C\ncontract inform.","Verschil "]
[]
[null,null,null," Totaal code 503, 504, 505, 506, 507, 515 ",null,null,null,null,null,{"$f":"SUM(Kostenverzamelstaat!K16+Kostenverzamelstaat!K17+Kostenverzamelstaat!K18+Kostenverzamelstaat!K19+Kostenverzamelstaat!K20+Kostenverzamelstaat!K22)","v":0},{"$f":"Contractinformatie!K16","v":0},{"$f":"IF(J174<>K174,J174-K174,\"\")","v":""}]
[null,null,null," Totaal code 510, 516 ",null,null,null,null,null,{"$f":"SUM(Kostenverzamelstaat!K21+Kostenverzamelstaat!K23)","v":0},{"$f":"Contractinformatie!K20","v":0},""]
[null,null,null," Totaal Rubriek 01 ",null,null,null,null,null,{"$f":"Kostenverzamelstaat!K24","v":0},{"$f":"Contractinformatie!K21","v":0},""]
[null,null,null," Totaal Rubriek 03",null,null,null,null,null,{"$f":"Kostenverzamelstaat!K30","v":0},{"$f":"Contractinformatie!K29","v":0},""]
[null,null,null," Totaal Rubriek 06",null,null,null,null,null,{"$f":"Kostenverzamelstaat!K64","v":0},{"$f":"Contractinformatie!K41","v":0},""]
[null,null,null," Totaal Rubriek 10",null,null,null,null,null,{"$f":"Kostenverzamelstaat!K98","v":0},{"$f":"Contractinformatie!K59","v":0},""]
[null,null,null," Totaal Rubriek 11",null,null,null,null,null,{"$f":"Kostenverzamelstaat!K103","v":0},{"$f":"Contractinformatie!K86","v":0},""]
[null,null,null," Totaal Code 702",null,null,null,null,null,{"$f":"Kostenverzamelstaat!K110","v":0},{"$f":"Contractinformatie!K69","v":0},{"$f":"IF(J181<>K181,J181-K181,\"\")","v":""}]
[]
[]
[null,null,null,{"$f":"NOW()","v":"2026-03-26T10:56:01.280"},null,null,null,null,null,null,{"$f":"CONCATENATE(\"Controleoverzicht \",LOWER(A169))","v":"Controleoverzicht pagina 5"}]
[]
["Pagina 6",null,null,{"$f":"CONCATENATE(\"JAARSTAAT ZVW \", jaar_id)","v":"JAARSTAAT ZVW 2025"}]
[null,null,null,"CONTROLEOVERZICHT"]
[null,null,null,{"$f":"IF(naw_uzovi_zorgverzekeraar<>\"0000\",CONCATENATE(UPPER(naw_naam_zorgverzekeraar),\", \",UPPER(naw_plaats_zorgverzekeraar)),\"\")","v":""},null,null,null,null,null,null,null,{"$f":"CONCATENATE(\"UZOVI: \",naw_uzovi_zorgverzekeraar)","v":"UZOVI: 0000"}]
[]
[null,null,null,"VERGELIJKING SPECIFIEKE INFORMATIE A: KOSTENVERZAMELSTAAT EN MODELOVEREENKOMSTEN"]
[null,null,null,null,null,null,null,null,"Kosten- verzamelstaat","MODELOVEREENKOMSTEN:                                                                                                                                                                                                                                                                                                                                                                                                                                                                                                                                                                                                                                                                                                                                                                                                                                                                                                                                                                                                                                                                                                                                                                                                                                                                                                                                                          Ontvangen en geaccepteerde declaraties 2023 ",null,"Verschil "]
[]
[null,null,null,"TOTAAL Rubriek 01 Huisartsenzorg en MDZ",null,null,null,null,{"$f":"Kostenverzamelstaat!M24","v":0},{"$f":"'Specifieke informatie A'!J76+'Specifieke informatie A'!L76+'Specifieke informatie A'!N76+'Specifieke informatie A'!P76+'Specifieke informatie A'!R76+'Specifieke informatie A'!T76","v":0},null,{"$f":"I193-J193","v":0}]
[null,null,null,"TOTAAL Rubriek 02 Farmaceutische zorg ",null,null,null,null,{"$f":"Kostenverzamelstaat!M27","v":0},{"$f":"'Specifieke informatie A'!J77+'Specifieke informatie A'!L77+'Specifieke informatie A'!N77+'Specifieke informatie A'!P77+'Specifieke informatie A'!R77+'Specifieke informatie A'!T77","v":0},null,0]
[null,null,null,"TOTAAL Rubriek 03 Verpleging en verzorging ",null,null,null,null,{"$f":"Kostenverzamelstaat!M30","v":0},{"$f":"'Specifieke informatie A'!J79+'Specifieke informatie A'!L79+'Specifieke informatie A'!N79+'Specifieke informatie A'!P79+'Specifieke informatie A'!R79+'Specifieke informatie A'!T79","v":0},null,0]
[null,null,null,"TOTAAL Rubriek 04 Mondzorg",null,null,null,null,{"$f":"Kostenverzamelstaat!M35","v":0},{"$f":"'Specifieke informatie A'!J80+'Specifieke informatie A'!L80+'Specifieke informatie A'!N80+'Specifieke informatie A'!P80+'Specifieke informatie A'!R80+'Specifieke informatie A'!T80","v":0},null,0]
[null,null,null,"TOTAAL Rubriek 05 Verloskundige zorg ",null,null,null,null,{"$f":"Kostenverzamelstaat!M39","v":0},{"$f":"'Specifieke informatie A'!J81+'Specifieke informatie A'!L81+'Specifieke informatie A'!N81+'Specifieke informatie A'!P81+'Specifieke informatie A'!R81+'Specifieke informatie A'!T81","v":0},null,0]
[null,null,null,"TOTAAL Rubriek 06 Medisch specialistische zorg ",null,null,null,null,{"$f":"Kostenverzamelstaat!M64","v":0},{"$f":"'Specifieke informatie A'!J82+'Specifieke informatie A'!L82+'Specifieke informatie A'!N82+'Specifieke informatie A'!P82+'Specifieke informatie A'!R82+'Specifieke informatie A'!T82","v":0},null,0]
[null,null,null,"TOTAAL Rubriek 07 Paramedische zorg ",null,null,null,null,{"$f":"Kostenverzamelstaat!M72","v":0},{"$f":"'Specifieke informatie A'!J84+'Specifieke informatie A'!L84+'Specifieke informatie A'!N84+'Specifieke informatie A'!P84+'Specifieke informatie A'!R84+'Specifieke informatie A'!T84","v":0},null,0]
[null,null,null,"TOTAAL Rubriek 08 Hulpmiddelenzorg ",null,null,null,null,{"$f":"Kostenverzamelstaat!M75","v":0},{"$f":"'Specifieke informatie A'!J85+'Specifieke informatie A'!L85+'Specifieke informatie A'!N85+'Specifieke informatie A'!P85+'Specifieke informatie A'!R85+'Specifieke informatie A'!T85","v":0},null,0]
[null,null,null,"TOTAAL Rubriek 09 Ziekenvervoer",null,null,null,null,{"$f":"Kostenverzamelstaat!M80","v":0},{"$f":"'Specifieke informatie A'!J86+'Specifieke informatie A'!L86+'Specifieke informatie A'!N86+'Specifieke informatie A'!P86+'Specifieke informatie A'!R86+'Specifieke informatie A'!T86","v":0},null,0]
[null,null,null,"TOTAAL Rubriek 11 Geriatrische revalidatiezorg, Eerstelijnsverblijf en Geneeskundige Zorg Specifieke Patiëntengroepen",null,null,null,null,{"$f":"Kostenverzamelstaat!M103","v":0},{"$f":"'Specifieke informatie A'!J87+'Specifieke informatie A'!L87+'Specifieke informatie A'!N87+'Specifieke informatie A'!P87+'Specifieke informatie A'!R87+'Specifieke informatie A'!T87","v":0},null,0]
[null,null,null,"TOTAAL Rubriek 12 Kraamzorg",null,null,null,null,{"$f":"Kostenverzamelstaat!M106","v":0},{"$f":"'Specifieke informatie A'!J88+'Specifieke informatie A'!L88+'Specifieke informatie A'!N88+'Specifieke informatie A'!P88+'Specifieke informatie A'!R88+'Specifieke informatie A'!T88","v":0},null,0]
[null,null,null,"TOTAAL Rubriek 13 Diverse overige kosten",null,null,null,null,{"$f":"Kostenverzamelstaat!M112","v":0},{"$f":"'Specifieke informatie A'!J89+'Specifieke informatie A'!L89+'Specifieke informatie A'!N89+'Specifieke informatie A'!P89+'Specifieke informatie A'!R89+'Specifieke informatie A'!T89","v":0},null,0]
[null,null,null,"Kostencode 703 – Transformatiemiddelen IZA",null,null,null,null,{"$f":"Kostenverzamelstaat!M111","v":0},{"$f":"'Specifieke informatie A'!J90+'Specifieke informatie A'!L90+'Specifieke informatie A'!N90+'Specifieke informatie A'!P90+'Specifieke informatie A'!R90+'Specifieke informatie A'!T90","v":0},null,0]
[null,null,null,"TOTAAL Rubriek 15 Grensoverschrijdende zorg ",null,null,null,null,{"$f":"Kostenverzamelstaat!M116","v":0},{"$f":"'Specifieke informatie A'!J91+'Specifieke informatie A'!L91+'Specifieke informatie A'!N91+'Specifieke informatie A'!P91+'Specifieke informatie A'!R91+'Specifieke informatie A'!T91","v":0},null,0]
[null,null,null,"TOTAAL Rubriek 16 Kwaliteitsgelden ",null,null,null,null,{"$f":"Kostenverzamelstaat!M119","v":0},{"$f":"'Specifieke informatie A'!J93+'Specifieke informatie A'!L93+'Specifieke informatie A'!N93+'Specifieke informatie A'!P93+'Specifieke informatie A'!R93+'Specifieke informatie A'!T93","v":0},null,0]
[null,null,null,"VERGELIJKING SPECIFIEKE INFORMATIE A:  SPECIFIEKE INFORMATIE A EN MODELOVEREENKOMSTEN"]
[null,null,null,null,null,null,null,null,"Specifieke informatie A","MODELOVEREENKOMSTEN:                                                                                                                                                                                                                                                                                                                                                                                                                                                                                                                                                                                                                                                                                                                                                                                                                                                                                                                                                                                                                                                                                                                                                                                                                                                                                                                                                          Ontvangen en geaccepteerde declaraties 2023 ",null,"Verschil "]
[]
[null,null,null,"Kostencode 520 - Kosten van bepaalde dure extramurale geneesmiddelen",null,null,null,null,{"$f":"'Specifieke informatie A'!L22","v":0},{"$f":"'Specifieke informatie A'!J78+'Specifieke informatie A'!L78+'Specifieke informatie A'!N78+'Specifieke informatie A'!P78+'Specifieke informatie A'!R78+'Specifieke informatie A'!T78","v":0},null,{"$f":"I211-J211","v":0}]
[null,null,null,"Kostencode 612.1 - Kosten van Add-ons - bepaalde dure intramurale geneesmiddelen, inclusief stollingsmiddelen",null,null,null,null,{"$f":"'Specifieke informatie A'!L27","v":0},{"$f":"'Specifieke informatie A'!J83+'Specifieke informatie A'!L83+'Specifieke informatie A'!N83+'Specifieke informatie A'!P83+'Specifieke informatie A'!R83+'Specifieke informatie A'!T83","v":0},null,{"$f":"I212-J212","v":0}]
[null,null,null,"Kostencode 720 - Kosten via Verzekeraar - Geneeskundige GGZ",null,null,null,null,{"$f":"'Specifieke informatie A'!L50","v":0},{"$f":"'Specifieke informatie A'!J92+'Specifieke informatie A'!L92+'Specifieke informatie A'!N92+'Specifieke informatie A'!P92+'Specifieke informatie A'!R92+'Specifieke informatie A'!T92","v":0},null,{"$f":"I213-J213","v":0}]
[null,null,null,"TOTAAL  Variabele zorgkosten",null,null,null,null,{"$f":"'Specifieke informatie A'!L14","v":0},{"$f":"'Specifieke informatie A'!J75+'Specifieke informatie A'!L75+'Specifieke informatie A'!N75+'Specifieke informatie A'!P75+'Specifieke informatie A'!R75+'Specifieke informatie A'!T75","v":0},null,{"$f":"I214-J214","v":0}]
[]
[]
[null,null,null,{"$f":"NOW()","v":"2026-03-26T10:56:01.280"},null,null,null,null,null,null,{"$f":"CONCATENATE(\"Controleoverzicht \",LOWER(A186))","v":"Controleoverzicht pagina 6"}]

{"sheet":"Blad1","index":9,"n_rows":705,"n_cols":12,"rows_kept":705,"cut":false,"hidden":true,"merged":[]}
[]
[]
[]
[]
[]
[]
[]
[]
[]
[]
[]
[null,null,null,null,"vcd_spec_idvar","vcd_waarde_flt","vcd_waarde_txt","vcd_toelichting_txt","vcd_spec1_idvar","vcd_spec2_idvar","vcd_spec3_idvar","vcd_attrib_idvar"]
[null,null,null,null,"xstaat_kdrwet_id_","*=0","ZVWY","Excel numeriek om te zetten sleutel kdrwet via waarden","xstaat","kdrwet","id",""]
[null,null,null,null,"xstaat_kdrwet_idjmd_","*=0",20251231,"Excel numeriek om te zetten sleutel kdrwet periode","xstaat","kdrwet","idjmd",""]
[null,null,null,null,"xstaat_uzovi_filename_","*=0","*=@CEL(\"bestandsnaam\")","Excel numeriek filenaam bevat ook sleutels","xstaat","uzovi","filename",""]
[null,null,null,null,"xstaat_uzovi_id_","*=0","*=NUMERIEKE.WAARDE(NAW_gegevens!$B$6)","Excel numeriek om te zetten sleutel uzovi","xstaat","uzovi","id",""]
[null,null,null,null,"xstaat_uzovi_idvrs_","*=0","01","Excel numeriek om te zetten sleutel uzovi versie levering","xstaat","uzovi","idvrs",""]
[null,null,null,null,"zvkx01_c__TY0V01","*=Kostenverzamelstaat!$I$24"]
[null,null,null,null,"zvkx01_a__TY0V01","*=Kostenverzamelstaat!$J$24"]
[null,null,null,null,"zvkx01_c__TY1V01","*=Kostenverzamelstaat!$K$24"]
[null,null,null,null,"zvkx01_a__TY1V01","*=Kostenverzamelstaat!$L$24"]
[null,null,null,null,"zvkx01_a__TY2V01","*=Kostenverzamelstaat!$M$24"]
[null,null,null,null,"zvkx02_c__TY0V01","*=Kostenverzamelstaat!$I$27"]
[null,null,null,null,"zvkx02_a__TY0V01","*=Kostenverzamelstaat!$J$27"]
[null,null,null,null,"zvkx02_c__TY1V01","*=Kostenverzamelstaat!$K$27"]
[null,null,null,null,"zvkx02_a__TY1V01","*=Kostenverzamelstaat!$L$27"]
[null,null,null,null,"zvkx02_a__TY2V01","*=Kostenverzamelstaat!$M$27"]
[null,null,null,null,"zvkx03_c__TY0V01","*=Kostenverzamelstaat!$I$30"]
[null,null,null,null,"zvkx03_a__TY0V01","*=Kostenverzamelstaat!$J$30"]
[null,null,null,null,"zvkx03_c__TY1V01","*=Kostenverzamelstaat!$K$30"]
[null,null,null,null,"zvkx03_a__TY1V01","*=Kostenverzamelstaat!$L$30"]
[null,null,null,null,"zvkx03_a__TY2V01","*=Kostenverzamelstaat!$M$30"]
[null,null,null,null,"zvkx04_c__TY0V01","*=Kostenverzamelstaat!$I$35"]
[null,null,null,null,"zvkx04_a__TY0V01","*=Kostenverzamelstaat!$J$35"]
[null,null,null,null,"zvkx04_c__TY1V01","*=Kostenverzamelstaat!$K$35"]
[null,null,null,null,"zvkx04_a__TY1V01","*=Kostenverzamelstaat!$L$35"]
[null,null,null,null,"zvkx04_a__TY2V01","*=Kostenverzamelstaat!$M$35"]
[null,null,null,null,"zvkx05_c__TY0V01","*=Kostenverzamelstaat!$I$39"]
[null,null,null,null,"zvkx05_a__TY0V01","*=Kostenverzamelstaat!$J$39"]
[null,null,null,null,"zvkx05_c__TY1V01","*=Kostenverzamelstaat!$K$39"]
[null,null,null,null,"zvkx05_a__TY1V01","*=Kostenverzamelstaat!$L$39"]
[null,null,null,null,"zvkx05_a__TY2V01","*=Kostenverzamelstaat!$M$39"]
[null,null,null,null,"zvkx06_c__TY0V01","*=Kostenverzamelstaat!$I$64"]
[null,null,null,null,"zvkx06_a__TY0V01","*=Kostenverzamelstaat!$J$64"]
[null,null,null,null,"zvkx06_c__TY1V01","*=Kostenverzamelstaat!$K$64"]
[null,null,null,null,"zvkx06_a__TY1V01","*=Kostenverzamelstaat!$L$64"]
[null,null,null,null,"zvkx06_a__TY2V01","*=Kostenverzamelstaat!$M$64"]
[null,null,null,null,"zvkx07_c__TY0V01","*=Kostenverzamelstaat!$I$72"]
[null,null,null,null,"zvkx07_a__TY0V01","*=Kostenverzamelstaat!$J$72"]
[null,null,null,null,"zvkx07_c__TY1V01","*=Kostenverzamelstaat!$K$72"]
[null,null,null,null,"zvkx07_a__TY1V01","*=Kostenverzamelstaat!$L$72"]
[null,null,null,null,"zvkx07_a__TY2V01","*=Kostenverzamelstaat!$M$72"]
[null,null,null,null,"zvkx08_c__TY0V01","*=Kostenverzamelstaat!$I$75"]
[null,null,null,null,"zvkx08_a__TY0V01","*=Kostenverzamelstaat!$J$75"]
[null,null,null,null,"zvkx08_c__TY1V01","*=Kostenverzamelstaat!$K$75"]
[null,null,null,null,"zvkx08_a__TY1V01","*=Kostenverzamelstaat!$L$75"]
[null,null,null,null,"zvkx08_a__TY2V01","*=Kostenverzamelstaat!$M$75"]
[null,null,null,null,"zvkx09_c__TY0V01","*=Kostenverzamelstaat!$I$80"]
[null,null,null,null,"zvkx09_a__TY0V01","*=Kostenverzamelstaat!$J$80"]
[null,null,null,null,"zvkx09_c__TY1V01","*=Kostenverzamelstaat!$K$80"]
[null,null,null,null,"zvkx09_a__TY1V01","*=Kostenverzamelstaat!$L$80"]
[null,null,null,null,"zvkx09_a__TY2V01","*=Kostenverzamelstaat!$M$80"]
[null,null,null,null,"zvkx10_c__TY0V01","*=Kostenverzamelstaat!$I$98"]
[null,null,null,null,"zvkx10_a__TY0V01","*=Kostenverzamelstaat!$J$98"]
[null,null,null,null,"zvkx10_c__TY1V01","*=Kostenverzamelstaat!$K$98"]
[null,null,null,null,"zvkx10_a__TY1V01","*=Kostenverzamelstaat!$L$98"]
[null,null,null,null,"zvkx10_a__TY2V01","*=Kostenverzamelstaat!$M$98"]
[null,null,null,null,"zvkx11_c__TY0V01","*=Kostenverzamelstaat!$I$103"]
[null,null,null,null,"zvkx11_a__TY0V01","*=Kostenverzamelstaat!$J$103"]
[null,null,null,null,"zvkx11_c__TY1V01","*=Kostenverzamelstaat!$K$103"]
[null,null,null,null,"zvkx11_a__TY1V01","*=Kostenverzamelstaat!$L$103"]
[null,null,null,null,"zvkx11_a__TY2V01","*=Kostenverzamelstaat!$M$103"]
[null,null,null,null,"zvkx12_c__TY0V01","*=Kostenverzamelstaat!$I$106"]
[null,null,null,null,"zvkx12_a__TY0V01","*=Kostenverzamelstaat!$J$106"]
[null,null,null,null,"zvkx12_c__TY1V01","*=Kostenverzamelstaat!$K$106"]
[null,null,null,null,"zvkx12_a__TY1V01","*=Kostenverzamelstaat!$L$106"]
[null,null,null,null,"zvkx12_a__TY2V01","*=Kostenverzamelstaat!$M$106"]
[null,null,null,null,"zvkx13_c__TY0V01","*=Kostenverzamelstaat!$I$112"]
[null,null,null,null,"zvkx13_a__TY0V01","*=Kostenverzamelstaat!$J$112"]
[null,null,null,null,"zvkx13_c__TY1V01","*=Kostenverzamelstaat!$K$112"]
[null,null,null,null,"zvkx13_a__TY1V01","*=Kostenverzamelstaat!$L$112"]
[null,null,null,null,"zvkx13_a__TY2V01","*=Kostenverzamelstaat!$M$112"]
[null,null,null,null,"zvkx15_c__TY0V01","*=Kostenverzamelstaat!$I$116"]
[null,null,null,null,"zvkx15_a__TY0V01","*=Kostenverzamelstaat!$J$116"]
[null,null,null,null,"zvkx15_c__TY1V01","*=Kostenverzamelstaat!$K$116"]
[null,null,null,null,"zvkx15_a__TY1V01","*=Kostenverzamelstaat!$L$116"]
[null,null,null,null,"zvkx15_a__TY2V01","*=Kostenverzamelstaat!$M$116"]
[null,null,null,null,"zvkx16_c__TY0V01","*=Kostenverzamelstaat!$I$119"]
[null,null,null,null,"zvkx16_a__TY0V01","*=Kostenverzamelstaat!$J$119"]
[null,null,null,null,"zvkx16_c__TY1V01","*=Kostenverzamelstaat!$K$119"]
[null,null,null,null,"zvkx16_a__TY1V01","*=Kostenverzamelstaat!$L$119"]
[null,null,null,null,"zvkx16_a__TY2V01","*=Kostenverzamelstaat!$M$119"]
[null,null,null,null,"zvkx_c__TY0V01","*=Kostenverzamelstaat!$I$120"]
[null,null,null,null,"zvkx_a__TY0V01","*=Kostenverzamelstaat!$J$120"]
[null,null,null,null,"zvkx_c__TY1V01","*=Kostenverzamelstaat!$K$120"]
[null,null,null,null,"zvkx_a__TY1V01","*=Kostenverzamelstaat!$L$120"]
[null,null,null,null,"zvkx_a__TY2V01","*=Kostenverzamelstaat!$M$120"]
[null,null,null,null,"zvkx01_c503__TY0V01","*=Kostenverzamelstaat!$I$16","","Huisartsen- bijz betalingen- incl balans","zvkx01","c503","","TY0V01"]
[null,null,null,null,"zvkx01_a503__TY0V01","*=Kostenverzamelstaat!$J$16","","Huisartsen- bijz betalingen- geaccepteerd","zvkx01","a503","","TY0V01"]
[null,null,null,null,"zvkx01_c503__TY1V01","*=Kostenverzamelstaat!$K$16","","Huisartsen- bijz betalingen- incl balans","zvkx01","c503","","TY1V01"]
[null,null,null,null,"zvkx01_a503__TY1V01","*=Kostenverzamelstaat!$L$16","","Huisartsen- bijz betalingen- geaccepteerd","zvkx01","a503","","TY1V01"]
[null,null,null,null,"zvkx01_a503__TY2V01","*=Kostenverzamelstaat!$M$16","","Huisartsen- bijz betalingen- geaccepteerd","zvkx01","a503","","TY2V01"]
[null,null,null,null,"zvkx01_c504__TY0V01","*=Kostenverzamelstaat!$I$17","","Huisartsen- bijz diensttijden- incl balans","zvkx01","c504","","TY0V01"]
[null,null,null,null,"zvkx01_a504__TY0V01","*=Kostenverzamelstaat!$J$17","","Huisartsen- bijz diensttijden- geaccepteerd","zvkx01","a504","","TY0V01"]
[null,null,null,null,"zvkx01_c504__TY1V01","*=Kostenverzamelstaat!$K$17","","Huisartsen- bijz diensttijden- incl balans","zvkx01","c504","","TY1V01"]
[null,null,null,null,"zvkx01_a504__TY1V01","*=Kostenverzamelstaat!$L$17","","Huisartsen- bijz diensttijden- geaccepteerd","zvkx01","a504","","TY1V01"]
[null,null,null,null,"zvkx01_a504__TY2V01","*=Kostenverzamelstaat!$M$17","","Huisartsen- bijz diensttijden- geaccepteerd","zvkx01","a504","","TY2V01"]
[null,null,null,null,"zvkx01_c505__TY0V01","*=Kostenverzamelstaat!$I$18","","Huisartsen- Inschrijvingen- incl balans","zvkx01","c505","","TY0V01"]
[null,null,null,null,"zvkx01_a505__TY0V01","*=Kostenverzamelstaat!$J$18","","Huisartsen- Inschrijvingen- geaccepteerd","zvkx01","a505","","TY0V01"]
[null,null,null,null,"zvkx01_c505__TY1V01","*=Kostenverzamelstaat!$K$18","","Huisartsen- Inschrijvingen- incl balans","zvkx01","c505","","TY1V01"]
[null,null,null,null,"zvkx01_a505__TY1V01","*=Kostenverzamelstaat!$L$18","","Huisartsen- Inschrijvingen- geaccepteerd","zvkx01","a505","","TY1V01"]
[null,null,null,null,"zvkx01_a505__TY2V01","*=Kostenverzamelstaat!$M$18","","Huisartsen- Inschrijvingen- geaccepteerd","zvkx01","a505","","TY2V01"]
[null,null,null,null,"zvkx01_c506__TY0V01","*=Kostenverzamelstaat!$I$19","","Huisartsen- Consult- incl balans","zvkx01","c506","","TY0V01"]
[null,null,null,null,"zvkx01_a506__TY0V01","*=Kostenverzamelstaat!$J$19","","Huisartsen- Consult- geaccepteerd","zvkx01","a506","","TY0V01"]
[null,null,null,null,"zvkx01_c506__TY1V01","*=Kostenverzamelstaat!$K$19","","Huisartsen- Consult- incl balans","zvkx01","c506","","TY1V01"]
[null,null,null,null,"zvkx01_a506__TY1V01","*=Kostenverzamelstaat!$L$19","","Huisartsen- Consult- geaccepteerd","zvkx01","a506","","TY1V01"]
[null,null,null,null,"zvkx01_a506__TY2V01","*=Kostenverzamelstaat!$M$19","","Huisartsen- Consult- geaccepteerd","zvkx01","a506","","TY2V01"]
[null,null,null,null,"zvkx01_a507__TY0V01","*=Kostenverzamelstaat!$J$20","","Huisartsen- Overige- geaccepteerd","zvkx01","a507","","TY0V01"]
[null,null,null,null,"zvkx01_c507__TY0V01","*=Kostenverzamelstaat!$I$20","","Huisartsen- Overige- incl balans","zvkx01","c507","","TY0V01"]
[null,null,null,null,"zvkx01_c507__TY1V01","*=Kostenverzamelstaat!$K$20","","Huisartsen- Overige- incl balans","zvkx01","c507","","TY1V01"]
[null,null,null,null,"zvkx01_a507__TY1V01","*=Kostenverzamelstaat!$L$20","","Huisartsen- Overige- geaccepteerd","zvkx01","a507","","TY1V01"]
[null,null,null,null,"zvkx01_a507__TY2V01","*=Kostenverzamelstaat!$M$20","","Huisartsen- Overige- geaccepteerd","zvkx01","a507","","TY2V01"]
[null,null,null,null,"zvkx01_c510__TY0V01","*=Kostenverzamelstaat!$I$21","","Huisartsen- MDZ- incl balans","zvkx01","c510","","TY0V01"]
[null,null,null,null,"zvkx01_a510__TY0V01","*=Kostenverzamelstaat!$J$21","","Huisartsen- MDZ- geaccepteerd","zvkx01","a510","","TY0V01"]
[null,null,null,null,"zvkx01_c510__TY1V01","*=Kostenverzamelstaat!$K$21","","Huisartsen- MDZ- incl balans","zvkx01","c510","","TY1V01"]
[null,null,null,null,"zvkx01_a510__TY1V01","*=Kostenverzamelstaat!$L$21","","Huisartsen- MDZ- geaccepteerd","zvkx01","a510","","TY1V01"]
[null,null,null,null,"zvkx01_a510__TY2V01","*=Kostenverzamelstaat!$M$21","","Huisartsen- MDZ- geaccepteerd","zvkx01","a510","","TY2V01"]
[null,null,null,null,"zvkx01_c515__TY0V01","*=Kostenverzamelstaat!$I$22","","Huisartsen- Resultaatbel. huisartsen- incl balans","zvkx01","c515","","TY0V01"]
[null,null,null,null,"zvkx01_a515__TY0V01","*=Kostenverzamelstaat!$J$22","","Huisartsen- Resultaatbel. huisartsen- geaccepteerd","zvkx01","a515","","TY0V01"]
[null,null,null,null,"zvkx01_c515__TY1V01","*=Kostenverzamelstaat!$K$22","","Huisartsen- Resultaatbel. huisartsen- incl balans","zvkx01","c515","","TY1V01"]
[null,null,null,null,"zvkx01_a515__TY1V01","*=Kostenverzamelstaat!$L$22","","Huisartsen- Resultaatbel. huisartsen- geaccepteerd","zvkx01","a515","","TY1V01"]
[null,null,null,null,"zvkx01_a515__TY2V01","*=Kostenverzamelstaat!$M$22","","Huisartsen- Resultaatbel. huisartsen- geaccepteerd","zvkx01","a515","","TY2V01"]
[null,null,null,null,"zvkx01_c516__TY0V01","*=Kostenverzamelstaat!$I$23","","Huisartsen- Resultaatbel. MDZ- incl balans","zvkx01","c516","","TY0V01"]
[null,null,null,null,"zvkx01_a516__TY0V01","*=Kostenverzamelstaat!$J$23","","Huisartsen- Resultaatbel. MDZ- geaccepteerd","zvkx01","a516","","TY0V01"]
[null,null,null,null,"zvkx01_c516__TY1V01","*=Kostenverzamelstaat!$K$23","","Huisartsen- Resultaatbel. MDZ- incl balans","zvkx01","c516","","TY1V01"]
[null,null,null,null,"zvkx01_a516__TY1V01","*=Kostenverzamelstaat!$L$23","","Huisartsen- Resultaatbel. MDZ- geaccepteerd","zvkx01","a516","","TY1V01"]
[null,null,null,null,"zvkx01_a516__TY2V01","*=Kostenverzamelstaat!$M$23","","Huisartsen- Resultaatbel. MDZ- geaccepteerd","zvkx01","a516","","TY2V01"]
[null,null,null,null,"zvkx02_c520__TY0V01","*=Kostenverzamelstaat!$I$26","","Farmaceutische hulp- incl balans","zvkx02","c520","","TY0V01"]
[null,null,null,null,"zvkx02_a520__TY0V01","*=Kostenverzamelstaat!$J$26","","Farmaceutische hulp- geaccepteerd","zvkx02","a520","","TY0V01"]
[null,null,null,null,"zvkx02_c520__TY1V01","*=Kostenverzamelstaat!$K$26","","Farmaceutische hulp- incl balans","zvkx02","c520","","TY1V01"]
[null,null,null,null,"zvkx02_a520__TY1V01","*=Kostenverzamelstaat!$L$26","","Farmaceutische hulp- geaccepteerd","zvkx02","a520","","TY1V01"]
[null,null,null,null,"zvkx02_a520__TY2V01","*=Kostenverzamelstaat!$M$26","","Farmaceutische hulp- geaccepteerd","zvkx02","a520","","TY2V01"]
[null,null,null,null,"zvkx03_c530__TY0V01","*=Kostenverzamelstaat!$I$29","","Verpleging en verzorging- incl balans","zvkx03","c530","","TY0V01"]
[null,null,null,null,"zvkx03_a530__TY0V01","*=Kostenverzamelstaat!$J$29","","Verpleging en verzorging- geaccepteerd","zvkx03","a530","","TY0V01"]
[null,null,null,null,"zvkx03_c530__TY1V01","*=Kostenverzamelstaat!$K$29","","Verpleging en verzorging- incl balans","zvkx03","c530","","TY1V01"]
[null,null,null,null,"zvkx03_a530__TY1V01","*=Kostenverzamelstaat!$L$29","","Verpleging en verzorging- geaccepteerd","zvkx03","a530","","TY1V01"]
[null,null,null,null,"zvkx03_a530__TY2V01","*=Kostenverzamelstaat!$M$29","","Verpleging en verzorging- geaccepteerd","zvkx03","a530","","TY2V01"]
[null,null,null,null,"zvkx04_c5601__TY0V01","*=Kostenverzamelstaat!$I$32","","Mondzorg- volwassen verzekerden- incl balans","zvkx04","c5601","","TY0V01"]
[null,null,null,null,"zvkx04_a5601__TY0V01","*=Kostenverzamelstaat!$J$32","","Mondzorg- volwassen verzekerden- geaccepteerd","zvkx04","a5601","","TY0V01"]
[null,null,null,null,"zvkx04_c5601__TY1V01","*=Kostenverzamelstaat!$K$32","","Mondzorg- volwassen verzekerden- incl balans","zvkx04","c5601","","TY1V01"]
[null,null,null,null,"zvkx04_a5601__TY1V01","*=Kostenverzamelstaat!$L$32","","Mondzorg- volwassen verzekerden- geaccepteerd","zvkx04","a5601","","TY1V01"]
[null,null,null,null,"zvkx04_a5601__TY2V01","*=Kostenverzamelstaat!$M$32","","Mondzorg- volwassen verzekerden- geaccepteerd","zvkx04","a5601","","TY2V01"]
[null,null,null,null,"zvkx04_c5602__TY0V01","*=Kostenverzamelstaat!$I$33","","Mondzorg- jeugdige verzekerden- incl balans","zvkx04","c5602","","TY0V01"]
[null,null,null,null,"zvkx04_a5602__TY0V01","*=Kostenverzamelstaat!$J$33","","Mondzorg- jeugdige verzekerden- geaccepteerd","zvkx04","a5602","","TY0V01"]
[null,null,null,null,"zvkx04_c5602__TY1V01","*=Kostenverzamelstaat!$K$33","","Mondzorg- jeugdige verzekerden- incl balans","zvkx04","c5602","","TY1V01"]
[null,null,null,null,"zvkx04_a5602__TY1V01","*=Kostenverzamelstaat!$L$33","","Mondzorg- jeugdige verzekerden- geaccepteerd","zvkx04","a5602","","TY1V01"]
[null,null,null,null,"zvkx04_a5602__TY2V01","*=Kostenverzamelstaat!$M$33","","Mondzorg- jeugdige verzekerden- geaccepteerd","zvkx04","a5602","","TY2V01"]
[null,null,null,null,"zvkx04_c561__TY0V01","*=Kostenverzamelstaat!$I$34","","Mondzorg- gebitsprothesen- incl balans","zvkx04","c561","","TY0V01"]
[null,null,null,null,"zvkx04_a561__TY0V01","*=Kostenverzamelstaat!$J$34","","Mondzorg- gebitsprothesen- geaccepteerd","zvkx04","a561","","TY0V01"]
[null,null,null,null,"zvkx04_c561__TY1V01","*=Kostenverzamelstaat!$K$34","","Mondzorg- gebitsprothesen- incl balans","zvkx04","c561","","TY1V01"]
[null,null,null,null,"zvkx04_a561__TY1V01","*=Kostenverzamelstaat!$L$34","","Mondzorg- gebitsprothesen- geaccepteerd","zvkx04","a561","","TY1V01"]
[null,null,null,null,"zvkx04_a561__TY2V01","*=Kostenverzamelstaat!$M$34","","Mondzorg- gebitsprothesen- geaccepteerd","zvkx04","a561","","TY2V01"]
[null,null,null,null,"zvkx05_c580__TY0V01","*=Kostenverzamelstaat!$I$37","","Verloskundige hulp- door verloskundigen- incl balans","zvkx05","c580","","TY0V01"]
[null,null,null,null,"zvkx05_a580__TY0V01","*=Kostenverzamelstaat!$J$37","","Verloskundige hulp- door verloskundigen- geaccepteerd","zvkx05","a580","","TY0V01"]
[null,null,null,null,"zvkx05_c580__TY1V01","*=Kostenverzamelstaat!$K$37","","Verloskundige hulp- door verloskundigen- incl balans","zvkx05","c580","","TY1V01"]
[null,null,null,null,"zvkx05_a580__TY1V01","*=Kostenverzamelstaat!$L$37","","Verloskundige hulp- door verloskundigen- geaccepteerd","zvkx05","a580","","TY1V01"]
[null,null,null,null,"zvkx05_a580__TY2V01","*=Kostenverzamelstaat!$M$37","","Verloskundige hulp- door verloskundigen- geaccepteerd","zvkx05","a580","","TY2V01"]
[null,null,null,null,"zvkx05_c582__TY0V01","*=Kostenverzamelstaat!$I$38","","Verloskundige hulp- Integrale geboortezorg- incl balans","zvkx05","c582","","TY0V01"]
[null,null,null,null,"zvkx05_a582__TY0V01","*=Kostenverzamelstaat!$J$38","","Verloskundige hulp- Integrale geboortezorg- geaccepteerd","zvkx05","a582","","TY0V01"]
[null,null,null,null,"zvkx05_c582__TY1V01","*=Kostenverzamelstaat!$K$38","","Verloskundige hulp- Integrale geboortezorg- incl balans","zvkx05","c582","","TY1V01"]
[null,null,null,null,"zvkx05_a582__TY1V01","*=Kostenverzamelstaat!$L$38","","Verloskundige hulp- Integrale geboortezorg- geaccepteerd","zvkx05","a582","","TY1V01"]
[null,null,null,null,"zvkx05_a582__TY2V01","*=Kostenverzamelstaat!$M$38","","Verloskundige hulp- Integrale geboortezorg- geaccepteerd","zvkx05","a582","","TY2V01"]
[null,null,null,null,"zvkx06_c545__TY0V01","*=Kostenverzamelstaat!$I$54","","Medisch specialistische hulp- mondziekten en kaakchirurgie- incl balans","zvkx06","c545","","TY0V01"]
[null,null,null,null,"zvkx06_a545__TY0V01","*=Kostenverzamelstaat!$J$54","","Medisch specialistische hulp- mondziekten en kaakchirurgie- geaccepteerd","zvkx06","a545","","TY0V01"]
[null,null,null,null,"zvkx06_c545__TY1V01","*=Kostenverzamelstaat!$K$54","","Medisch specialistische hulp- mondziekten en kaakchirurgie- incl balans","zvkx06","c545","","TY1V01"]
[null,null,null,null,"zvkx06_a545__TY1V01","*=Kostenverzamelstaat!$L$54","","Medisch specialistische hulp- mondziekten en kaakchirurgie- geaccepteerd","zvkx06","a545","","TY1V01"]
[null,null,null,null,"zvkx06_a545__TY2V01","*=Kostenverzamelstaat!$M$54","","Medisch specialistische hulp- mondziekten en kaakchirurgie- geaccepteerd","zvkx06","a545","","TY2V01"]
[null,null,null,null,"zvkx06_c6101__TY0V01","*=Kostenverzamelstaat!$I$55",null,"Medisch specialistische hulp- NTS- incl balans","zvkx06","c6101",null,"TY0V01"]
[null,null,null,null,"zvkx06_a6101__TY0V01","*=Kostenverzamelstaat!$J$55",null,"Medisch specialistische hulp- NTS- geaccepteerd","zvkx06","a6101",null,"TY0V01"]
[null,null,null,null,"zvkx06_c6101__TY1V01","*=Kostenverzamelstaat!$K$55",null,"Medisch specialistische hulp- NTS- incl balans","zvkx06","c6101",null,"TY1V01"]
[null,null,null,null,"zvkx06_a6101__TY1V01","*=Kostenverzamelstaat!$L$55",null,"Medisch specialistische hulp- NTS- geaccepteerd","zvkx06","a6101",null,"TY1V01"]
[null,null,null,null,"zvkx06_a6101__TY2V01","*=Kostenverzamelstaat!$M$55",null,"Medisch specialistische hulp- NTS- geaccepteerd","zvkx06","a6101",null,"TY2V01"]
[null,null,null,null,"zvkx06_c6102__TY0V01","*=Kostenverzamelstaat!$I$56",null,"Medisch specialistische hulp- Eerstelijnsdiagnostiek- incl balans","zvkx06","c6102",null,"TY0V01"]
[null,null,null,null,"zvkx06_a6102__TY0V01","*=Kostenverzamelstaat!$J$56",null,"Medisch specialistische hulp- Eerstelijnsdiagnostiek- geaccepteerd","zvkx06","a6102",null,"TY0V01"]
[null,null,null,null,"zvkx06_c6102__TY1V01","*=Kostenverzamelstaat!$K$56",null,"Medisch specialistische hulp- Eerstelijnsdiagnostiek- incl balans","zvkx06","c6102",null,"TY1V01"]
[null,null,null,null,"zvkx06_a6102__TY1V01","*=Kostenverzamelstaat!$L$56",null,"Medisch specialistische hulp- Eerstelijnsdiagnostiek- geaccepteerd","zvkx06","a6102",null,"TY1V01"]
[null,null,null,null,"zvkx06_a6102__TY2V01","*=Kostenverzamelstaat!$M$56",null,"Medisch specialistische hulp- Eerstelijnsdiagnostiek- geaccepteerd","zvkx06","a6102",null,"TY2V01"]
[null,null,null,null,"zvkx06_c611__TY0V01","*=Kostenverzamelstaat!$I$57","","Medisch specialistische hulp- Overige zorg- incl balans","zvkx06","c611","","TY0V01"]
[null,null,null,null,"zvkx06_a611__TY0V01","*=Kostenverzamelstaat!$J$57","","Medisch specialistische hulp- Overige zorg- geaccepteerd","zvkx06","a611","","TY0V01"]
[null,null,null,null,"zvkx06_c611__TY1V01","*=Kostenverzamelstaat!$K$57","","Medisch specialistische hulp- Overige zorg- incl balans","zvkx06","c611","","TY1V01"]
[null,null,null,null,"zvkx06_a611__TY1V01","*=Kostenverzamelstaat!$L$57","","Medisch specialistische hulp- Overige zorg- geaccepteerd","zvkx06","a611","","TY1V01"]
[null,null,null,null,"zvkx06_a611__TY2V01","*=Kostenverzamelstaat!$M$57","","Medisch specialistische hulp- Overige zorg- geaccepteerd","zvkx06","a611","","TY2V01"]
[null,null,null,null,"zvkx06_c6121__TY0V01","*=Kostenverzamelstaat!$I$58","","Medisch specialistische hulp- add-on's Dure geneesmiddelen- incl balans","zvkx06","c6121","","TY0V01"]
[null,null,null,null,"zvkx06_a6121__TY0V01","*=Kostenverzamelstaat!$J$58","","Medisch specialistische hulp- add-on's Dure geneesmiddelen- geaccepteerd","zvkx06","a6121","","TY0V01"]
[null,null,null,null,"zvkx06_c6121__TY1V01","*=Kostenverzamelstaat!$K$58","","Medisch specialistische hulp- add-on's Dure geneesmiddelen- incl balans","zvkx06","c6121","","TY1V01"]
[null,null,null,null,"zvkx06_a6121__TY1V01","*=Kostenverzamelstaat!$L$58","","Medisch specialistische hulp- add-on's Dure geneesmiddelen- geaccepteerd","zvkx06","a6121","","TY1V01"]
[null,null,null,null,"zvkx06_a6121__TY2V01","*=Kostenverzamelstaat!$M$58","","Medisch specialistische hulp- add-on's Dure geneesmiddelen- geaccepteerd","zvkx06","a6121","","TY2V01"]
[null,null,null,null,"zvkx06_c6122__TY0V01","*=Kostenverzamelstaat!$I$59","","Medisch specialistische hulp- IC- incl balans","zvkx06","c6122","","TY0V01"]
[null,null,null,null,"zvkx06_a6122__TY0V01","*=Kostenverzamelstaat!$J$59","","Medisch specialistische hulp- IC- geaccepteerd","zvkx06","a6122","","TY0V01"]
[null,null,null,null,"zvkx06_c6122__TY1V01","*=Kostenverzamelstaat!$K$59","","Medisch specialistische hulp- IC- incl balans","zvkx06","c6122","","TY1V01"]
[null,null,null,null,"zvkx06_a6122__TY1V01","*=Kostenverzamelstaat!$L$59","","Medisch specialistische hulp- IC- geaccepteerd","zvkx06","a6122","","TY1V01"]
[null,null,null,null,"zvkx06_a6122__TY2V01","*=Kostenverzamelstaat!$M$59","","Medisch specialistische hulp- IC- geaccepteerd","zvkx06","a6122","","TY2V01"]
[null,null,null,null,"zvkx06_c6131__TY0V01","*=Kostenverzamelstaat!$I$60","","Medisch specialistische hulp- Integraal DBC-zorgproduct gereguleerd- incl balans","zvkx06","c6131","","TY0V01"]
[null,null,null,null,"zvkx06_a6131__TY0V01","*=Kostenverzamelstaat!$J$60","","Medisch specialistische hulp- Integraal DBC-zorgproduct gereguleerd- geaccepteerd","zvkx06","a6131","","TY0V01"]
[null,null,null,null,"zvkx06_c6131__TY1V01","*=Kostenverzamelstaat!$K$60","","Medisch specialistische hulp- Integraal DBC-zorgproduct gereguleerd- incl balans","zvkx06","c6131","","TY1V01"]
[null,null,null,null,"zvkx06_a6131__TY1V01","*=Kostenverzamelstaat!$L$60","","Medisch specialistische hulp- Integraal DBC-zorgproduct gereguleerd- geaccepteerd","zvkx06","a6131","","TY1V01"]
[null,null,null,null,"zvkx06_a6131__TY2V01","*=Kostenverzamelstaat!$M$60","","Medisch specialistische hulp- Integraal DBC-zorgproduct gereguleerd- geaccepteerd","zvkx06","a6131","","TY2V01"]
[null,null,null,null,"zvkx06_c6151__TY0V01","*=Kostenverzamelstaat!$I$61","","Medisch specialistische hulp- Integraal DBC-zorgproduct vrije segment- incl balans","zvkx06","c6151","","TY0V01"]
[null,null,null,null,"zvkx06_a6151__TY0V01","*=Kostenverzamelstaat!$J$61","","Medisch specialistische hulp- Integraal DBC-zorgproduct vrije segment- geaccepteerd","zvkx06","a6151","","TY0V01"]
[null,null,null,null,"zvkx06_c6151__TY1V01","*=Kostenverzamelstaat!$K$61","","Medisch specialistische hulp- Integraal DBC-zorgproduct vrije segment- incl balans","zvkx06","c6151","","TY1V01"]
[null,null,null,null,"zvkx06_a6151__TY1V01","*=Kostenverzamelstaat!$L$61","","Medisch specialistische hulp- Integraal DBC-zorgproduct vrije segment- geaccepteerd","zvkx06","a6151","","TY1V01"]
[null,null,null,null,"zvkx06_a6151__TY2V01","*=Kostenverzamelstaat!$M$61","","Medisch specialistische hulp- Integraal DBC-zorgproduct vrije segment- geaccepteerd","zvkx06","a6151","","TY2V01"]
[null,null,null,null,"zvkx06_c619__TY1V01","*=Kostenverzamelstaat!$K$62","","Medisch specialistische hulp- honoraria extramuraal- incl balans","zvkx06","c619","","TY1V01"]
[null,null,null,null,"zvkx06_a619__TY1V01","*=Kostenverzamelstaat!$L$62","","Medisch specialistische hulp- honoraria extramuraal- geaccepteerd","zvkx06","a619","","TY1V01"]
[null,null,null,null,"zvkx06_a619__TY2V01","*=Kostenverzamelstaat!$M$62","","Medisch specialistische hulp- honoraria extramuraal- geaccepteerd","zvkx06","a619","","TY2V01"]
[null,null,null,null,"zvkx06_a8062__TY2V01","*=Kostenverzamelstaat!$M$63",null,"Medisch specialistische hulp- Meerkosten COVID-19, toeslagen- geaccepteerd","zvkx06","a8062",null,"TY2V01"]
[null,null,null,null,"zvkx07_c620__TY0V01","*=Kostenverzamelstaat!$I$66","","Paramedische hulp- fysiotherapie- incl balans","zvkx07","c620","","TY0V01"]
[null,null,null,null,"zvkx07_a620__TY0V01","*=Kostenverzamelstaat!$J$66","","Paramedische hulp- fysiotherapie- geaccepteerd","zvkx07","a620","","TY0V01"]
[null,null,null,null,"zvkx07_c620__TY1V01","*=Kostenverzamelstaat!$K$66","","Paramedische hulp- fysiotherapie- incl balans","zvkx07","c620","","TY1V01"]
[null,null,null,null,"zvkx07_a620__TY1V01","*=Kostenverzamelstaat!$L$66","","Paramedische hulp- fysiotherapie- geaccepteerd","zvkx07","a620","","TY1V01"]
[null,null,null,null,"zvkx07_a620__TY2V01","*=Kostenverzamelstaat!$M$66","","Paramedische hulp- fysiotherapie- geaccepteerd","zvkx07","a620","","TY2V01"]
[null,null,null,null,"zvkx07_c621__TY0V01","*=Kostenverzamelstaat!$I$67","","Paramedische hulp- Mensendieck/Cesar- incl balans","zvkx07","c621","","TY0V01"]
[null,null,null,null,"zvkx07_a621__TY0V01","*=Kostenverzamelstaat!$J$67","","Paramedische hulp- Mensendieck/Cesar- geaccepteerd","zvkx07","a621","","TY0V01"]
[null,null,null,null,"zvkx07_c621__TY1V01","*=Kostenverzamelstaat!$K$67","","Paramedische hulp- Mensendieck/Cesar- incl balans","zvkx07","c621","","TY1V01"]
[null,null,null,null,"zvkx07_a621__TY1V01","*=Kostenverzamelstaat!$L$67","","Paramedische hulp- Mensendieck/Cesar- geaccepteerd","zvkx07","a621","","TY1V01"]
[null,null,null,null,"zvkx07_a621__TY2V01","*=Kostenverzamelstaat!$M$67","","Paramedische hulp- Mensendieck/Cesar- geaccepteerd","zvkx07","a621","","TY2V01"]
[null,null,null,null,"zvkx07_c623__TY0V01","*=Kostenverzamelstaat!$I$68","","Paramedische hulp- logopedie- incl balans","zvkx07","c623","","TY0V01"]
[null,null,null,null,"zvkx07_a623__TY0V01","*=Kostenverzamelstaat!$J$68","","Paramedische hulp- logopedie- geaccepteerd","zvkx07","a623","","TY0V01"]
[null,null,null,null,"zvkx07_c623__TY1V01","*=Kostenverzamelstaat!$K$68","","Paramedische hulp- logopedie- incl balans","zvkx07","c623","","TY1V01"]
[null,null,null,null,"zvkx07_a623__TY1V01","*=Kostenverzamelstaat!$L$68","","Paramedische hulp- logopedie- geaccepteerd","zvkx07","a623","","TY1V01"]
[null,null,null,null,"zvkx07_a623__TY2V01","*=Kostenverzamelstaat!$M$68","","Paramedische hulp- logopedie- geaccepteerd","zvkx07","a623","","TY2V01"]
[null,null,null,null,"zvkx07_c624__TY0V01","*=Kostenverzamelstaat!$I$69","","Paramedische hulp- ergotherapie- incl balans","zvkx07","c624","","TY0V01"]
[null,null,null,null,"zvkx07_a624__TY0V01","*=Kostenverzamelstaat!$J$69","","Paramedische hulp- ergotherapie- geaccepteerd","zvkx07","a624","","TY0V01"]
[null,null,null,null,"zvkx07_c624__TY1V01","*=Kostenverzamelstaat!$K$69","","Paramedische hulp- ergotherapie- incl balans","zvkx07","c624","","TY1V01"]
[null,null,null,null,"zvkx07_a624__TY1V01","*=Kostenverzamelstaat!$L$69","","Paramedische hulp- ergotherapie- geaccepteerd","zvkx07","a624","","TY1V01"]
[null,null,null,null,"zvkx07_a624__TY2V01","*=Kostenverzamelstaat!$M$69","","Paramedische hulp- ergotherapie- geaccepteerd","zvkx07","a624","","TY2V01"]
[null,null,null,null,"zvkx07_c625__TY0V01","*=Kostenverzamelstaat!$I$70","","Paramedische hulp- dieetadvisering- incl balans","zvkx07","c625","","TY0V01"]
[null,null,null,null,"zvkx07_a625__TY0V01","*=Kostenverzamelstaat!$J$70","","Paramedische hulp- dieetadvisering- geaccepteerd","zvkx07","a625","","TY0V01"]
[null,null,null,null,"zvkx07_c625__TY1V01","*=Kostenverzamelstaat!$K$70","","Paramedische hulp- dieetadvisering- incl balans","zvkx07","c625","","TY1V01"]
[null,null,null,null,"zvkx07_a625__TY1V01","*=Kostenverzamelstaat!$L$70","","Paramedische hulp- dieetadvisering- geaccepteerd","zvkx07","a625","","TY1V01"]
[null,null,null,null,"zvkx07_a625__TY2V01","*=Kostenverzamelstaat!$M$70","","Paramedische hulp- dieetadvisering- geaccepteerd","zvkx07","a625","","TY2V01"]
[null,null,null,null,"zvkx07_c626__TY0V01","*=Kostenverzamelstaat!$I$71","","Paramedische hulp- gecombineerde leefstijl interventie- incl balans","zvkx07","c626","","TY0V01"]
[null,null,null,null,"zvkx07_a626__TY0V01","*=Kostenverzamelstaat!$J$71","","Paramedische hulp- gecombineerde leefstijl interventie- geaccepteerd","zvkx07","a626","","TY0V01"]
[null,null,null,null,"zvkx07_c626__TY1V01","*=Kostenverzamelstaat!$K$71","","Paramedische hulp- gecombineerde leefstijl interventie- incl balans","zvkx07","c626","","TY1V01"]
[null,null,null,null,"zvkx07_a626__TY1V01","*=Kostenverzamelstaat!$L$71","","Paramedische hulp- gecombineerde leefstijl interventie- geaccepteerd","zvkx07","a626","","TY1V01"]
[null,null,null,null,"zvkx07_a626__TY2V01","*=Kostenverzamelstaat!$M$71","","Paramedische hulp- gecombineerde leefstijl interventie- geaccepteerd","zvkx07","a626","","TY2V01"]
[null,null,null,null,"zvkx08_c640__TY0V01","*=Kostenverzamelstaat!$I$74","","Hulpmiddelen- incl balans","zvkx08","c640","","TY0V01"]
[null,null,null,null,"zvkx08_a640__TY0V01","*=Kostenverzamelstaat!$J$74","","Hulpmiddelen- geaccepteerd","zvkx08","a640","","TY0V01"]
[null,null,null,null,"zvkx08_c640__TY1V01","*=Kostenverzamelstaat!$K$74","","Hulpmiddelen- incl balans","zvkx08","c640","","TY1V01"]
[null,null,null,null,"zvkx08_a640__TY1V01","*=Kostenverzamelstaat!$L$74","","Hulpmiddelen- geaccepteerd","zvkx08","a640","","TY1V01"]
[null,null,null,null,"zvkx08_a640__TY2V01","*=Kostenverzamelstaat!$M$74","","Hulpmiddelen- geaccepteerd","zvkx08","a640","","TY2V01"]
[null,null,null,null,"zvkx09_c650__TY0V01","*=Kostenverzamelstaat!$I$77","","Ziekenvervoer- ambulance/helicopter- incl balans","zvkx09","c650","","TY0V01"]
[null,null,null,null,"zvkx09_a650__TY0V01","*=Kostenverzamelstaat!$J$77","","Ziekenvervoer- ambulance/helicopter- geaccepteerd","zvkx09","a650","","TY0V01"]
[null,null,null,null,"zvkx09_c650__TY1V01","*=Kostenverzamelstaat!$K$77","","Ziekenvervoer- ambulance/helicopter- incl balans","zvkx09","c650","","TY1V01"]
[null,null,null,null,"zvkx09_a650__TY1V01","*=Kostenverzamelstaat!$L$77","","Ziekenvervoer- ambulance/helicopter- geaccepteerd","zvkx09","a650","","TY1V01"]
[null,null,null,null,"zvkx09_a650__TY2V01","*=Kostenverzamelstaat!$M$77","","Ziekenvervoer- ambulance/helicopter- geaccepteerd","zvkx09","a650","","TY2V01"]
[null,null,null,null,"zvkx09_c6501__TY0V01","*=Kostenverzamelstaat!$I$78",null,"Ziekenvervoer- regionale ambulance- incl balans","zvkx09","c6501","","TY0V01"]
[null,null,null,null,"zvkx09_a6501__TY0V01","*=Kostenverzamelstaat!$J$78",null,"Ziekenvervoer- regionale ambulance- geaccepteerd","zvkx09","c6501","","TY0V01"]
[null,null,null,null,"zvkx09_c6501__TY1V01","*=Kostenverzamelstaat!$K$78",null,"Ziekenvervoer- regionale ambulance- incl balans","zvkx09","c6501","","TY1V01"]
[null,null,null,null,"zvkx09_a6501__TY1V01","*=Kostenverzamelstaat!$L$78",null,"Ziekenvervoer- regionale ambulance- geaccepteerd","zvkx09","c6501","","TY1V01"]
[null,null,null,null,"zvkx09_a6501__TY2V01","*=Kostenverzamelstaat!$M$78",null,"Ziekenvervoer- regionale ambulance- geaccepteerd","zvkx09","c6501","","TY2V01"]
[null,null,null,null,"zvkx09_c651__TY0V01","*=Kostenverzamelstaat!$I$79","","Ziekenvervoer- ov, taxi en eigen auto- incl balans","zvkx09","c651","","TY0V01"]
[null,null,null,null,"zvkx09_a651__TY0V01","*=Kostenverzamelstaat!$J$79","","Ziekenvervoer- ov, taxi en eigen auto- geaccepteerd","zvkx09","a651","","TY0V01"]
[null,null,null,null,"zvkx09_c651__TY1V01","*=Kostenverzamelstaat!$K$79","","Ziekenvervoer- ov, taxi en eigen auto- incl balans","zvkx09","c651","","TY1V01"]
[null,null,null,null,"zvkx09_a651__TY1V01","*=Kostenverzamelstaat!$L$79","","Ziekenvervoer- ov, taxi en eigen auto- geaccepteerd","zvkx09","a651","","TY1V01"]
[null,null,null,null,"zvkx09_a651__TY2V01","*=Kostenverzamelstaat!$M$79","","Ziekenvervoer- ov, taxi en eigen auto- geaccepteerd","zvkx09","a651","","TY2V01"]
[null,null,null,null,"zvkx10_c666__TY0V01","*=Kostenverzamelstaat!$I$95","","Geneeskundige GGZ-Kosten consulten GGZ- incl balans","zvkx10","c666","","TY0V01"]
[null,null,null,null,"zvkx10_a666__TY0V01","*=Kostenverzamelstaat!$J$95","","Geneeskundige GGZ- Kosten consulten GGZ- geaccepteerd","zvkx10","a666","","TY0V01"]
[null,null,null,null,"zvkx10_c666__TY1V01","*=Kostenverzamelstaat!$K$95","","Geneeskundige GGZ-Kosten consulten GGZ- incl balans","zvkx10","c666","","TY1V01"]
[null,null,null,null,"zvkx10_a666__TY1V01","*=Kostenverzamelstaat!$L$95","","Geneeskundige GGZ- Kosten consulten GGZ- geaccepteerd","zvkx10","a666","","TY1V01"]
[null,null,null,null,"zvkx10_a666__TY2V01","*=Kostenverzamelstaat!$M$95","","Geneeskundige GGZ- Kosten consulten GGZ- geaccepteerd","zvkx10","a666","","TY2V01"]
[null,null,null,null,"zvkx10_c667__TY0V01","*=Kostenverzamelstaat!$I$96","","Geneeskundige GGZ- Kosten intrmuraal verblijf GGZ- incl balans","zvkx10","c667","","TY0V01"]
[null,null,null,null,"zvkx10_a667__TY0V01","*=Kostenverzamelstaat!$J$96","","Geneeskundige GGZ- Kosten intrmuraal verblijf GGZ- geaccepteerd","zvkx10","a667","","TY0V01"]
[null,null,null,null,"zvkx10_c667__TY1V01","*=Kostenverzamelstaat!$K$96","","Geneeskundige GGZ- Kosten intrmuraal verblijf GGZ- incl balans","zvkx10","c667","","TY1V01"]
[null,null,null,null,"zvkx10_a667__TY1V01","*=Kostenverzamelstaat!$L$96","","Geneeskundige GGZ- Kosten intrmuraal verblijf GGZ- geaccepteerd","zvkx10","a667","","TY1V01"]
[null,null,null,null,"zvkx10_a667__TY2V01","*=Kostenverzamelstaat!$M$96","","Geneeskundige GGZ- Kosten intrmuraal verblijf GGZ- geaccepteerd","zvkx10","a667","","TY2V01"]
[null,null,null,null,"zvkx10_c668__TY0V01","*=Kostenverzamelstaat!$I$97","","Geneeskundige GGZ- Kosten overige prestaties GGZ- incl balans","zvkx10","c668","","TY0V01"]
[null,null,null,null,"zvkx10_a668__TY0V01","*=Kostenverzamelstaat!$J$97","","Geneeskundige GGZ- Kosten overige prestaties GGZ- geaccepteerd","zvkx10","a668","","TY0V01"]
[null,null,null,null,"zvkx10_c668__TY1V01","*=Kostenverzamelstaat!$K$97","","Geneeskundige GGZ- Kosten overige prestaties GGZ- incl balans","zvkx10","c668","","TY1V01"]
[null,null,null,null,"zvkx10_a668__TY1V01","*=Kostenverzamelstaat!$L$97","","Geneeskundige GGZ- Kosten overige prestaties GGZ- geaccepteerd","zvkx10","a668","","TY1V01"]
[null,null,null,null,"zvkx10_a668__TY2V01","*=Kostenverzamelstaat!$M$97","","Geneeskundige GGZ- Kosten overige prestaties GGZ- incl balans","zvkx10","a668","","TY2V01"]
[null,null,null,null,"zvkx11_c670__TY0V01","*=Kostenverzamelstaat!$I$100","","GRZ, ELV en GZSP- Geriatische revalidatiezorg- incl balans","zvkx11","c670","","TY0V01"]
[null,null,null,null,"zvkx11_a670__TY0V01","*=Kostenverzamelstaat!$J$100","","GRZ, ELV en GZSP- Geriatische revalidatiezorg-- geaccepteerd","zvkx11","a670","","TY0V01"]
[null,null,null,null,"zvkx11_c670__TY1V01","*=Kostenverzamelstaat!$K$100","","GRZ, ELV en GZSP- Geriatische revalidatiezorg-- incl balans","zvkx11","c670","","TY1V01"]
[null,null,null,null,"zvkx11_a670__TY1V01","*=Kostenverzamelstaat!$L$100","","GRZ, ELV en GZSP- Geriatische revalidatiezorg-- geaccepteerd","zvkx11","a670","","TY1V01"]
[null,null,null,null,"zvkx11_a670__TY2V01","*=Kostenverzamelstaat!$M$100","","GRZ, ELV en GZSP- Geriatische revalidatiezorg-- geaccepteerd","zvkx11","a670","","TY2V01"]
[null,null,null,null,"zvkx11_c671__TY0V01","*=Kostenverzamelstaat!$I$101","","GRZ, ELV en GZSP- Eerstelijnsverblijf- incl balans","zvkx11","c671","","TY0V01"]
[null,null,null,null,"zvkx11_a671__TY0V01","*=Kostenverzamelstaat!$J$101","","GRZ, ELV en GZSP- Eerstelijnsverblijf- geaccepteerd","zvkx11","a671","","TY0V01"]
[null,null,null,null,"zvkx11_c671__TY1V01","*=Kostenverzamelstaat!$K$101","","GRZ, ELV en GZSP- Eerstelijnsverblijf- incl balans","zvkx11","c671","","TY1V01"]
[null,null,null,null,"zvkx11_a671__TY1V01","*=Kostenverzamelstaat!$L$101","","GRZ, ELV en GZSP- Eerstelijnsverblijf- geaccepteerd","zvkx11","a671","","TY1V01"]
[null,null,null,null,"zvkx11_a671__TY2V01","*=Kostenverzamelstaat!$M$101","","GRZ, ELV en GZSP- Eerstelijnsverblijf- geaccepteerd","zvkx11","a671","","TY2V01"]
[null,null,null,null,"zvkx11_c672__TY0V01","*=Kostenverzamelstaat!$I$102","","GRZ, ELV en GZSP- GZSP- incl balans","zvkx11","c672","","TY0V01"]
[null,null,null,null,"zvkx11_a672__TY0V01","*=Kostenverzamelstaat!$J$102","","GRZ, ELV en GZSP-  GZSP- geaccepteerd","zvkx11","a672","","TY0V01"]
[null,null,null,null,"zvkx11_c672__TY1V01","*=Kostenverzamelstaat!$K$102","","GRZ, ELV en GZSP- GZSP- incl balans","zvkx11","c672","","TY1V01"]
[null,null,null,null,"zvkx11_a672__TY1V01","*=Kostenverzamelstaat!$L$102","","GRZ, ELV en GZSP-  GZSP- geaccepteerd","zvkx11","a672","","TY1V01"]
[null,null,null,null,"zvkx11_a672__TY2V01","*=Kostenverzamelstaat!$M$102","","GRZ, ELV en GZSP-  GZSP- geaccepteerd","zvkx11","a672","","TY2V01"]
[null,null,null,null,"zvkx12_c680__TY0V01","*=Kostenverzamelstaat!$I$105","","Kraamzorg-- incl balans","zvkx12","c680","","TY0V01"]
[null,null,null,null,"zvkx12_a680__TY0V01","*=Kostenverzamelstaat!$J$105","","Kraamzorg-- geaccepteerd","zvkx12","a680","","TY0V01"]
[null,null,null,null,"zvkx12_c680__TY1V01","*=Kostenverzamelstaat!$K$105","","Kraamzorg-- incl balans","zvkx12","c680","","TY1V01"]
[null,null,null,null,"zvkx12_a680__TY1V01","*=Kostenverzamelstaat!$L$105","","Kraamzorg-- geaccepteerd","zvkx12","a680","","TY1V01"]
[null,null,null,null,"zvkx12_a680__TY2V01","*=Kostenverzamelstaat!$M$105","","Kraamzorg-- geaccepteerd","zvkx12","a680","","TY2V01"]
[null,null,null,null,"zvkx13_c700__TY0V01","*=Kostenverzamelstaat!$I$108","","Overige kosten-- incl balans","zvkx13","c700","","TY0V01"]
[null,null,null,null,"zvkx13_a700__TY0V01","*=Kostenverzamelstaat!$J$108","","Overige kosten-- geaccepteerd","zvkx13","a700","","TY0V01"]
[null,null,null,null,"zvkx13_c700__TY1V01","*=Kostenverzamelstaat!$K$108","","Overige kosten-- incl balans","zvkx13","c700","","TY1V01"]
[null,null,null,null,"zvkx13_a700__TY1V01","*=Kostenverzamelstaat!$L$108","","Overige kosten-- geaccepteerd","zvkx13","a700","","TY1V01"]
[null,null,null,null,"zvkx13_a700__TY2V01","*=Kostenverzamelstaat!$M$108","","Overige kosten-- geaccepteerd","zvkx13","a700","","TY2V01"]
[null,null,null,null,"zvkx13_c701__TY0V01","*=Kostenverzamelstaat!$I$109","","Overige kosten- geneeskundige zorg- incl balans","zvkx13","c701","","TY0V01"]
[null,null,null,null,"zvkx13_a701__TY0V01","*=Kostenverzamelstaat!$J$109","","Overige kosten- geneeskundige zorg- geaccepteerd","zvkx13","a701","","TY0V01"]
[null,null,null,null,"zvkx13_c701__TY1V01","*=Kostenverzamelstaat!$K$109","","Overige kosten- geneeskundige zorg- incl balans","zvkx13","c701","","TY1V01"]
[null,null,null,null,"zvkx13_a701__TY1V01","*=Kostenverzamelstaat!$L$109","","Overige kosten- geneeskundige zorg- geaccepteerd","zvkx13","a701","","TY1V01"]
[null,null,null,null,"zvkx13_a701__TY2V01","*=Kostenverzamelstaat!$M$109","","Overige kosten- geneeskundige zorg- geaccepteerd","zvkx13","a701","","TY2V01"]
[null,null,null,null,"zvkx13_c702__TY0V01","*=Kostenverzamelstaat!$I$110","","Overige kosten- zintuiglijk gehandicapten- incl balans","zvkx13","c702","","TY0V01"]
[null,null,null,null,"zvkx13_a702__TY0V01","*=Kostenverzamelstaat!$J$110","","Overige kosten- zintuiglijk gehandicapten- geaccepteerd","zvkx13","a702","","TY0V01"]
[null,null,null,null,"zvkx13_c702__TY1V01","*=Kostenverzamelstaat!$K$110","","Overige kosten- zintuiglijk gehandicapten- incl balans","zvkx13","c702","","TY1V01"]
[null,null,null,null,"zvkx13_a702__TY1V01","*=Kostenverzamelstaat!$L$110","","Overige kosten- zintuiglijk gehandicapten- geaccepteerd","zvkx13","a702","","TY1V01"]
[null,null,null,null,"zvkx13_a702__TY2V01","*=Kostenverzamelstaat!$M$110","","Overige kosten- zintuiglijk gehandicapten- geaccepteerd","zvkx13","a702","","TY2V01"]
[null,null,null,null,"zvkx13_c703__TY0V01","*=Kostenverzamelstaat!$I$111","","Overige kosten- Transformatiemiddelen IZA- incl balans","zvkx13","c703","","TY0V01"]
[null,null,null,null,"zvkx13_a703__TY0V01","*=Kostenverzamelstaat!$J$111","","Overige kosten- Transformatiemiddelen IZA- geaccepteerd","zvkx13","a703","","TY0V01"]
[null,null,null,null,"zvkx13_c703__TY1V01","*=Kostenverzamelstaat!$K$111",null,"Overige kosten- Transformatiemiddelen IZA- incl balans","zvkx13","c703","","TY1V01"]
[null,null,null,null,"zvkx13_a703__TY1V01","*=Kostenverzamelstaat!$L$111",null,"Overige kosten- Transformatiemiddelen IZA- geaccepteerd","zvkx13","a703","","TY1V01"]
[null,null,null,null,"zvkx13_a703__TY2V01","*=Kostenverzamelstaat!$M$111",null,"Overige kosten- Transformatiemiddelen IZA- geaccepteerd","zvkx13","a703","","TY2V01"]
[null,null,null,null,"zvkx15_c720__TY0V01","*=Kostenverzamelstaat!$I$114","","Grensoverschrijdende zorg- Kosten via verzekeraar-- incl balans","zvkx15","c720","","TY0V01"]
[null,null,null,null,"zvkx15_a720__TY0V01","*=Kostenverzamelstaat!$J$114","","Grensoverschrijdende zorg- Kosten via verzekeraar- geaccepteerd","zvkx15","a720","","TY0V01"]
[null,null,null,null,"zvkx15_c720__TY1V01","*=Kostenverzamelstaat!$K$114","","Grensoverschrijdende zorg- Kosten via verzekeraar-- incl balans","zvkx15","c720","","TY1V01"]
[null,null,null,null,"zvkx15_a720__TY1V01","*=Kostenverzamelstaat!$L$114","","Grensoverschrijdende zorg- Kosten via verzekeraar- geaccepteerd","zvkx15","a720","","TY1V01"]
[null,null,null,null,"zvkx15_a720__TY2V01","*=Kostenverzamelstaat!$M$114","","Grensoverschrijdende zorg- Kosten via verzekeraar- geaccepteerd","zvkx15","a720","","TY2V01"]
[null,null,null,null,"zvkx15_c721__TY0V01","*=Kostenverzamelstaat!$I$115","","Grensoverschrijdende zorg-Kosten via verbindingsorgaan- incl balans","zvkx15","c720","","TY0V01"]
[null,null,null,null,"zvkx15_a721__TY0V01","*=Kostenverzamelstaat!$J$115","","Grensoverschrijdende zorg- Kosten via verbindingsorgaan- geaccepteerd","zvkx15","a720","","TY0V01"]
[null,null,null,null,"zvkx15_c721__TY1V01","*=Kostenverzamelstaat!$K$115","","Grensoverschrijdende zorg-Kosten via verbindingsorgaan- incl balans","zvkx15","c720","","TY1V01"]
[null,null,null,null,"zvkx15_a721__TY1V01","*=Kostenverzamelstaat!$L$115","","Grensoverschrijdende zorg- Kosten via verbindingsorgaan- geaccepteerd","zvkx15","a720","","TY1V01"]
[null,null,null,null,"zvkx15_a721__TY2V01","*=Kostenverzamelstaat!$M$115","","Grensoverschrijdende zorg- Kosten via verbindingsorgaan- geaccepteerd","zvkx15","a720","","TY2V01"]
[null,null,null,null,"zvkx16_c730__TY0V01","*=Kostenverzamelstaat!$I$118","","Kwaliteitsgelden-- incl balans","zvkx16","c730","","TY0V01"]
[null,null,null,null,"zvkx16_a730__TY0V01","*=Kostenverzamelstaat!$J$118","","Kwaliteitsgelden-- geaccepteerd","zvkx16","a730","","TY0V01"]
[null,null,null,null,"zvkx16_c730__TY1V01","*=Kostenverzamelstaat!$K$118","","Kwaliteitsgelden-- incl balans","zvkx16","c730","","TY1V01"]
[null,null,null,null,"zvkx16_a730__TY1V01","*=Kostenverzamelstaat!$L$118","","Kwaliteitsgelden-- geaccepteerd","zvkx16","a730","","TY1V01"]
[null,null,null,null,"zvkx16_a730__TY2V01","*=Kostenverzamelstaat!$M$118","","Kwaliteitsgelden-- geaccepteerd","zvkx16","a730","","TY2V01"]
[null,null,null,null,"zvkxdnb_c8901__TY0V01","*=Kostenverzamelstaat!$I$124","","Verschilposten DNB- Opbrengsten verhaal- incl balans","zvkxdnb","c8901","","TY0V01"]
[null,null,null,null,"zvkxdnb_a8901__TY0V01","*=Kostenverzamelstaat!$J$124","","Verschilposten DNB- Opbrengsten verhaal- geaccepteerd","zvkxdnb","c8901","","TY0V01"]
[null,null,null,null,"zvkxdnb_c8901__TY1V01","*=Kostenverzamelstaat!$K$124","","Verschilposten DNB- Opbrengsten verhaal- incl balans","zvkxdnb","c8901","","TY1V01"]
[null,null,null,null,"zvkxdnb_a8901__TY1V01","*=Kostenverzamelstaat!$L$124","","Verschilposten DNB- Opbrengsten verhaal- geaccepteerd","zvkxdnb","c8901","","TY1V01"]
[null,null,null,null,"zvkxdnb_a8901__TY2V01","*=Kostenverzamelstaat!$M$124","","Verschilposten DNB- Opbrengsten verhaal- geaccepteerd","zvkxdnb","c8901","","TY2V01"]
[null,null,null,null,"zvkxdnb_c910__TY0V01","*=Kostenverzamelstaat!$I$125","","Verschilposten DNB- Schade tlv het vrijwillig eigen risico- incl balans","zvkxdnb","c910","","TY0V01"]
[null,null,null,null,"zvkxdnb_a910__TY0V01","*=Kostenverzamelstaat!$J$125","","Verschilposten DNB- Schade tlv het vrijwillig eigen risico- geaccepteerd","zvkxdnb","a910","","TY0V01"]
[null,null,null,null,"zvkxdnb_c910__TY1V01","*=Kostenverzamelstaat!$K$125","","Verschilposten DNB- Schade tlv het vrijwillig eigen risico- incl balans","zvkxdnb","c910","","TY1V01"]
[null,null,null,null,"zvkxdnb_a910__TY1V01","*=Kostenverzamelstaat!$L$125","","Verschilposten DNB- Schade tlv het vrijwillig eigen risico- geaccepteerd","zvkxdnb","a910","","TY1V01"]
[null,null,null,null,"zvkxdnb_a910__TY2V01","*=Kostenverzamelstaat!$M$125","","Verschilposten DNB- Schade tlv het vrijwillig eigen risico- geaccepteerd","zvkxdnb","a910","","TY2V01"]
[null,null,null,null,"zvkxdnb_c915__TY0V01","*=Kostenverzamelstaat!$I$126","","Verschilposten DNB- Schade tlv het verplicht eigen risico- incl balans","zvkxdnb","c915","","TY0V01"]
[null,null,null,null,"zvkxdnb_a915__TY0V01","*=Kostenverzamelstaat!$J$126","","Verschilposten DNB- Schade tlv het verplicht eigen risico- geaccepteerd","zvkxdnb","a915","","TY0V01"]
[null,null,null,null,"zvkxdnb_c915__TY1V01","*=Kostenverzamelstaat!$K$126","","Verschilposten DNB- Schade tlv het verplicht eigen risico- incl balans","zvkxdnb","c915","","TY1V01"]
[null,null,null,null,"zvkxdnb_a915__TY1V01","*=Kostenverzamelstaat!$L$126","","Verschilposten DNB- Schade tlv het verplicht eigen risico- geaccepteerd","zvkxdnb","a915","","TY1V01"]
[null,null,null,null,"zvkxdnb_a915__TY2V01","*=Kostenverzamelstaat!$M$126","","Verschilposten DNB- Schade tlv het verplicht eigen risico- geaccepteerd","zvkxdnb","a915","","TY2V01"]
[null,null,null,null,"zvkxdnb_c940__TY0V01","*=Kostenverzamelstaat!$I$127","","Verschilposten DNB- Netto Premieopbrengsten- incl balans","zvkxdnb","c940","","TY0V01"]
[null,null,null,null,"zvkxdnb_a940__TY0V01","*=Kostenverzamelstaat!$J$127","","Verschilposten DNB- Netto Premieopbrengsten- geaccepteerd","zvkxdnb","a940","","TY0V01"]
[null,null,null,null,"zvkxdnb_c940__TY1V01","*=Kostenverzamelstaat!$K$127","","Verschilposten DNB- Netto Premieopbrengsten- incl balans","zvkxdnb","c940","","TY1V01"]
[null,null,null,null,"zvkxdnb_a940__TY1V01","*=Kostenverzamelstaat!$L$127","","Verschilposten DNB- Netto Premieopbrengsten- geaccepteerd","zvkxdnb","a940","","TY1V01"]
[null,null,null,null,"zvkxdnb_a940__TY2V01","*=Kostenverzamelstaat!$M$127","","Verschilposten DNB- Netto Premieopbrengsten- geaccepteerd","zvkxdnb","a940","","TY2V01"]
[null,null,null,null,"zvox01_c97101_o01trf_TY0V01","*=Contractinformatie!$J$14","","Huisartsenzorg en Multidisciplinaire zorg, (code 503,504,505,506,507,515)- Gecontracteerd 503,504,505,506,507,515- incl balans","zvox01","c97101","o01trf","TY0V01"]
[null,null,null,null,"zvox01_c97101_o01trf_TY1V01","*=Contractinformatie!$K$14","","Huisartsenzorg en Multidisciplinaire zorg, (code 503,504,505,506,507,515)- Gecontracteerd 503,504,505,506,507,515- incl balans","zvox01","c97101","o01trf","TY1V01"]
[null,null,null,null,"zvox01_c97101_o01trf_TY2V01","*=Contractinformatie!$L$14","","Huisartsenzorg en Multidisciplinaire zorg, (code 503,504,505,506,507,515)- Gecontracteerd 503,504,505,506,507,515- incl balans","zvox01","c97101","o01trf","TY2V01"]
[null,null,null,null,"zvox01_c97101_o52trf_TY0V01","*=Contractinformatie!$J$15","","Huisartsenzorg en Multidisciplinaire zorg, (code 503,504,505,506,507,515)- Niet gecontracteerd 503,504,505,506,507,515- incl balans","zvox01","c97101","o52trf","TY0V01"]
[null,null,null,null,"zvox01_c97101_o52trf_TY1V01","*=Contractinformatie!$K$15","","Huisartsenzorg en Multidisciplinaire zorg, (code 503,504,505,506,507,515)- Niet gecontracteerd 503,504,505,506,507,515- incl balans","zvox01","c97101","o52trf","TY1V01"]
[null,null,null,null,"zvox01_c97101_o52trf_TY2V01","*=Contractinformatie!$L$15","","Huisartsenzorg en Multidisciplinaire zorg, (code 503,504,505,506,507,515)- Niet gecontracteerd 503,504,505,506,507,515- incl balans","zvox01","c97101","o52trf","TY2V01"]
[null,null,null,null,"zvox01_c97101_o01mdz_TY0V01","*=Contractinformatie!$J$18","","Huisartsenzorg en Multidisciplinaire zorg, (code 510 en 516)- Gecontracteerd 510,516- incl balans","zvox01","c97101","o01mdz","TY0V01"]
[null,null,null,null,"zvox01_c97101_o01mdz_TY1V01","*=Contractinformatie!$K$18","","Huisartsenzorg en Multidisciplinaire zorg, (code 510 en 516)- Gecontracteerd 510,516- incl balans","zvox01","c97101","o01mdz","TY1V01"]
[null,null,null,null,"zvox01_c97101_o01mdz_TY2V01","*=Contractinformatie!$L$18","","Huisartsenzorg en Multidisciplinaire zorg, (code 510 en 516)- Gecontracteerd 510,516- incl balans","zvox01","c97101","o01mdz","TY2V01"]
[null,null,null,null,"zvox01_c97101_o52mdz_TY0V01","*=Contractinformatie!$J$19","","Huisartsenzorg en Multidisciplinaire zorg, (code 510 en 516)- Niet gecontracteerd  510,516- incl balans","zvox01","c97101","o52mdz","TY0V01"]
[null,null,null,null,"zvox01_c97101_o52mdz_TY1V01","*=Contractinformatie!$K$19","","Huisartsenzorg en Multidisciplinaire zorg, (code 510 en 516)- Niet gecontracteerd  510,516- incl balans","zvox01","c97101","o52mdz","TY1V01"]
[null,null,null,null,"zvox01_c97101_o52mdz_TY2V01","*=Contractinformatie!$L$19","","Huisartsenzorg en Multidisciplinaire zorg, (code 510 en 516)- Niet gecontracteerd  510,516- incl balans","zvox01","c97101","o52mdz","TY2V01"]
[null,null,null,null,"zvox03_c97103_o01_TY0V01","*=Contractinformatie!$J$26","","Contractinformatie Verpleging en Verzorging- Gecontracteerd- incl balans","zvox03","c97103","o01","TY0V01"]
[null,null,null,null,"zvox03_c97103_o01_TY1V01","*=Contractinformatie!$K$26","","Contractinformatie Verpleging en Verzorging- Gecontracteerd- incl balans","zvox03","c97103","o01","TY1V01"]
[null,null,null,null,"zvox03_c97103_o01_TY2V01","*=Contractinformatie!$L$26","","Contractinformatie Verpleging en Verzorging- Gecontracteerd- incl balans","zvox03","c97103","o01","TY2V01"]
[null,null,null,null,"zvox03_c97103_o52_TY0V01","*=Contractinformatie!$J$27","","Contractinformatie Verpleging en Verzorging- Niet gecontracteerd- incl balans","zvox03","c97103","o52","TY0V01"]
[null,null,null,null,"zvox03_c97103_o52_TY1V01","*=Contractinformatie!$K$27","","Contractinformatie Verpleging en Verzorging- Niet gecontracteerd- incl balans","zvox03","c97103","o52","TY1V01"]
[null,null,null,null,"zvox03_c97103_o52_TY2V01","*=Contractinformatie!$L$27","","Contractinformatie Verpleging en Verzorging- Niet gecontracteerd- incl balans","zvox03","c97103","o52","TY2V01"]
[null,null,null,null,"zvox03_c97103_o08_TY0V01","*=Contractinformatie!$J$28",null,"Contractinformatie Verpleging en Verzorging- PGB- incl balans","zvox03","c97103","o08","TY0V01"]
[null,null,null,null,"zvox03_c97103_o08_TY1V01","*=Contractinformatie!$K$28",null,"Contractinformatie Verpleging en Verzorging- PGB- incl balans","zvox03","c97103","o08","TY1V01"]
[null,null,null,null,"zvox03_c97103_o08_TY2V01","*=Contractinformatie!$L$28",null,"Contractinformatie Verpleging en Verzorging- PGB- incl balans","zvox03","c97103","o08","TY2V01"]
[null,null,null,null,"zvox06_c97106_o02_TY0V01","*=Contractinformatie!$J$34","","Medisch Specialistische Zorg- aanneemsom- incl balans","zvox06","c97106","o02","TY0V01"]
[null,null,null,null,"zvox06_c97106_o02_TY1V01","*=Contractinformatie!$K$34","","Medisch Specialistische Zorg- aanneemsom- incl balans","zvox06","c97106","o02","TY1V01"]
[null,null,null,null,"zvox06_c97106_o02_TY2V01","*=Contractinformatie!$L$34","","Medisch Specialistische Zorg- aanneemsom- incl balans","zvox06","c97106","o02","TY2V01"]
[null,null,null,null,"zvox06_c97106_o03_TY0V01","*=Contractinformatie!$J$35","","Medisch Specialistische Zorg- plafond- incl balans","zvox06","c97106","o03","TY0V01"]
[null,null,null,null,"zvox06_c97106_o03_TY1V01","*=Contractinformatie!$K$35","","Medisch Specialistische Zorg- plafond- incl balans","zvox06","c97106","o03","TY1V01"]
[null,null,null,null,"zvox06_c97106_o03_TY2V01","*=Contractinformatie!$L$35","","Medisch Specialistische Zorg- plafond- incl balans","zvox06","c97106","o03","TY2V01"]
[null,null,null,null,"zvox06_c97106_o04_TY0V01","*=Contractinformatie!$J$36","","Medisch Specialistische Zorg- nacalculatie- incl balans","zvox06","c97106","o04","TY0V01"]
[null,null,null,null,"zvox06_c97106_o04_TY1V01","*=Contractinformatie!$K$36","","Medisch Specialistische Zorg- nacalculatie- incl balans","zvox06","c97106","o04","TY1V01"]
[null,null,null,null,"zvox06_c97106_o04_TY2V01","*=Contractinformatie!$L$36","","Medisch Specialistische Zorg- nacalculatie- incl balans","zvox06","c97106","o04","TY2V01"]
[null,null,null,null,"zvox06_c97106_o05_TY0V01","*=Contractinformatie!$J$37","","Medisch Specialistische Zorg- open einde contract- incl balans","zvox06","c97106","o05","TY0V01"]
[null,null,null,null,"zvox06_c97106_o05_TY1V01","*=Contractinformatie!$K$37","","Medisch Specialistische Zorg- open einde contract- incl balans","zvox06","c97106","o05","TY1V01"]
[null,null,null,null,"zvox06_c97106_o05_TY2V01","*=Contractinformatie!$L$37","","Medisch Specialistische Zorg- open einde contract- incl balans","zvox06","c97106","o05","TY2V01"]
[null,null,null,null,"zvox06_c97106_o52_TY0V01","*=Contractinformatie!$J$39","","Medisch Specialistische Zorg- Niet gecontracteerd- incl balans","zvox06","c97106","o52","TY0V01"]
[null,null,null,null,"zvox06_c97106_o52_TY1V01","*=Contractinformatie!$K$39","","Medisch Specialistische Zorg- Niet gecontracteerd- incl balans","zvox06","c97106","o52","TY1V01"]
[null,null,null,null,"zvox06_c97106_o52_TY2V01","*=Contractinformatie!$L$39","","Medisch Specialistische Zorg- Niet gecontracteerd- incl balans","zvox06","c97106","o52","TY2V01"]
[null,null,null,null,"zvox06_c97106_o01mk_TY2V01","*=Contractinformatie!$L$40",null,"Medisch Specialistische Zorg- Meerkosten Corona, indirect en toeslagen, gecontracteerd, niet gecontracteerd- incl balans","zvox06","c97106","o01mk","TY2V01"]
[null,null,null,null,"zvox06_c97106_o91_TY0V01","*=Contractinformatie!$J$44",null,"Medisch Specialistische Zorg- Totaal afgesproken maximum omzet plafondcontracten- incl balans","zvox06","c97106","o91","TY0V01"]
[null,null,null,null,"zvox06_c97106_o91_TY1V01","*=Contractinformatie!$K$44",null,"Medisch Specialistische Zorg- Totaal afgesproken maximum omzet plafondcontracten- incl balans","zvox06","c97106","o91","TY1V01"]
[null,null,null,null,"zvox06_c97106_o91_TY2V01","*=Contractinformatie!$L$44",null,"Medisch Specialistische Zorg- Totaal afgesproken maximum omzet plafondcontracten- incl balans","zvox06","c97106","o91","TY2V01"]
[null,null,null,null,"zvox10_c97110_o02_TY0V01","*=Contractinformatie!$J$53","","Geneeskundige GGZ- aanneemsom- incl balans","zvox10","c97110","o02","TY0V01"]
[null,null,null,null,"zvox10_c97110_o02_TY1V01","*=Contractinformatie!$K$53","","Geneeskundige GGZ- aanneemsom- incl balans","zvox10","c97110","o02","TY1V01"]
[null,null,null,null,"zvox10_c97110_o02_TY2V01","*=Contractinformatie!$L$53","","Geneeskundige GGZ- aanneemsom- incl balans","zvox10","c97110","o02","TY2V01"]
[null,null,null,null,"zvox10_c97110_o03_TY0V01","*=Contractinformatie!$J$54","","Geneeskundige GGZ- plafond- incl balans","zvox10","c97110","o03","TY0V01"]
[null,null,null,null,"zvox10_c97110_o03_TY1V01","*=Contractinformatie!$K$54","","Geneeskundige GGZ- plafond- incl balans","zvox10","c97110","o03","TY1V01"]
[null,null,null,null,"zvox10_c97110_o03_TY2V01","*=Contractinformatie!$L$54","","Geneeskundige GGZ- plafond- incl balans","zvox10","c97110","o03","TY2V01"]
[null,null,null,null,"zvox10_c97110_o04_TY0V01","*=Contractinformatie!$J$55","","Geneeskundige GGZ- nacalculatie- incl balans","zvox10","c97110","o04","TY0V01"]
[null,null,null,null,"zvox10_c97110_o04_TY1V01","*=Contractinformatie!$K$55","","Geneeskundige GGZ- nacalculatie- incl balans","zvox10","c97110","o04","TY1V01"]
[null,null,null,null,"zvox10_c97110_o04_TY2V01","*=Contractinformatie!$L$55","","Geneeskundige GGZ- nacalculatie- incl balans","zvox10","c97110","o04","TY2V01"]
[null,null,null,null,"zvox10_c97110_o05_TY0V01","*=Contractinformatie!$J$56","","Geneeskundige GGZ- open einde contract- incl balans","zvox10","c97110","o05","TY0V01"]
[null,null,null,null,"zvox10_c97110_o05_TY1V01","*=Contractinformatie!$K$56","","Geneeskundige GGZ- open einde contract- incl balans","zvox10","c97110","o05","TY1V01"]
[null,null,null,null,"zvox10_c97110_o05_TY2V01","*=Contractinformatie!$L$56","","Geneeskundige GGZ- open einde contract- incl balans","zvox10","c97110","o05","TY2V01"]
[null,null,null,null,"zvox10_c97110_o52_TY0V01","*=Contractinformatie!$J$58","","Geneeskundige GGZ- Niet gecontracteerd- incl balans","zvox10","c97110","o52","TY0V01"]
[null,null,null,null,"zvox10_c97110_o52_TY1V01","*=Contractinformatie!$K$58","","Geneeskundige GGZ- Niet gecontracteerd- incl balans","zvox10","c97110","o52","TY1V01"]
[null,null,null,null,"zvox10_c97110_o52_TY2V01","*=Contractinformatie!$L$58","","Geneeskundige GGZ- Niet gecontracteerd- incl balans","zvox10","c97110","o52","TY2V01"]
[null,null,null,null,"zvox10_c97110_o91_TY0V01","*=Contractinformatie!$J$62",null,"Geneeskundige GGZ- Totaal afgesproken maximum omzet plafondcontracten- incl balans","zvox10","c97110","o91","TY0V01"]
[null,null,null,null,"zvox10_c97110_o91_TY1V01","*=Contractinformatie!$K$62",null,"Geneeskundige GGZ- Totaal afgesproken maximum omzet plafondcontracten- incl balans","zvox10","c97110","o91","TY1V01"]
[null,null,null,null,"zvox10_c97110_o91_TY2V01","*=Contractinformatie!$L$62",null,"Geneeskundige GGZ- Totaal afgesproken maximum omzet plafondcontracten- incl balans","zvox10","c97110","o91","TY2V01"]
[null,null,null,null,"zvox13_c97113_bo01_TY0V01","*=Contractinformatie!$J$67","","Zintuiglijk gehandicapten- Gecontracteerd- incl balans","zvox13","c97113","bo01","TY0V01"]
[null,null,null,null,"zvox13_c97113_bo01_TY1V01","*=Contractinformatie!$K$67","","Zintuiglijk gehandicapten- Gecontracteerd- incl balans","zvox13","c97113","bo01","TY1V01"]
[null,null,null,null,"zvox13_c97113_bo01_TY2V01","*=Contractinformatie!$L$67","","Zintuiglijk gehandicapten- Gecontracteerd- incl balans","zvox13","c97113","bo01","TY2V01"]
[null,null,null,null,"zvox13_c97113_bo52_TY0V01","*=Contractinformatie!$J$68","","Zintuiglijk gehandicapten- Niet gecontracteerd- incl balans","zvox13","c97113","bo52","TY0V01"]
[null,null,null,null,"zvox13_c97113_bo52_TY1V01","*=Contractinformatie!$K$68","","Zintuiglijk gehandicapten- Niet gecontracteerd- incl balans","zvox13","c97113","bo52","TY1V01"]
[null,null,null,null,"zvox13_c97113_bo52_TY2V01","*=Contractinformatie!$L$68","","Zintuiglijk gehandicapten- Niet gecontracteerd- incl balans","zvox13","c97113","bo52","TY2V01"]
[null,null,null,null,"zvox11_c97111_o01rvl_TY0V01","*=Contractinformatie!$J$75","","Geriatrische Revalidatiezorg 670 en Eerstelijnsverblijf 671,  Geneeskundige Zorg Specifieke Patiëntgroepen (code 672))- Gecontracteerd  670- incl balans","zvox11","c97111","o01rvl","TY0V01"]
[null,null,null,null,"zvox11_c97111_o01rvl_TY1V01","*=Contractinformatie!$K$75","","Geriatrische Revalidatiezorg 670 en Eerstelijnsverblijf 671,  Geneeskundige Zorg Specifieke Patiëntgroepen (code 672)- Gecontracteerd  670- incl balans","zvox11","c97111","o01rvl","TY1V01"]
[null,null,null,null,"zvox11_c97111_o01rvl_TY2V01","*=Contractinformatie!$L$75","","Geriatrische Revalidatiezorg 670 en Eerstelijnsverblijf 671,  Geneeskundige Zorg Specifieke Patiëntgroepen (code 672))- Gecontracteerd  670- incl balans","zvox11","c97111","o01rvl","TY2V01"]
[null,null,null,null,"zvox11_c97111_o52rvl_TY0V01","*=Contractinformatie!$J$76","","Geriatrische Revalidatiezorg 670 en Eerstelijnsverblijf 671,  Geneeskundige Zorg Specifieke Patiëntgroepen (code 672)- Niet gecontracteerd 670- incl balans","zvox11","c97111","o52rvl","TY0V01"]
[null,null,null,null,"zvox11_c97111_o52rvl_TY1V01","*=Contractinformatie!$K$76","","Geriatrische Revalidatiezorg 670 en Eerstelijnsverblijf 671,  Geneeskundige Zorg Specifieke Patiëntgroepen (code 672)- Niet gecontracteerd 670- incl balans","zvox11","c97111","o52rvl","TY1V01"]
[null,null,null,null,"zvox11_c97111_o52rvl_TY2V01","*=Contractinformatie!$L$76","","Geriatrische Revalidatiezorg 670 en Eerstelijnsverblijf 671,  Geneeskundige Zorg Specifieke Patiëntgroepen (code 672)- Niet gecontracteerd 670- incl balans","zvox11","c97111","o52rvl","TY2V01"]
[null,null,null,null,"zvox11_c97111_o01ln1_TY0V01","*=Contractinformatie!$J$79","","Geriatrische Revalidatiezorg 670 en Eerstelijnsverblijf 671,  Geneeskundige Zorg Specifieke Patiëntgroepen (code 672)- Gecontracteerd 671- incl balans","zvox11","c97111","o01ln1","TY0V01"]
[null,null,null,null,"zvox11_c97111_o01ln1_TY1V01","*=Contractinformatie!$K$79","","Geriatrische Revalidatiezorg 670 en Eerstelijnsverblijf 671,  Geneeskundige Zorg Specifieke Patiëntgroepen (code 672)- Gecontracteerd 671- incl balans","zvox11","c97111","o01ln1","TY1V01"]
[null,null,null,null,"zvox11_c97111_o01ln1_TY2V01","*=Contractinformatie!$L$79","","Geriatrische Revalidatiezorg 670 en Eerstelijnsverblijf 671,  Geneeskundige Zorg Specifieke Patiëntgroepen (code 672)- Gecontracteerd 671- incl balans","zvox11","c97111","o01ln1","TY2V01"]
[null,null,null,null,"zvox11_c97111_o52ln1_TY0V01","*=Contractinformatie!$J$80","","Geriatrische Revalidatiezorg 670 en Eerstelijnsverblijf 671,  Geneeskundige Zorg Specifieke Patiëntgroepen (code 672)- Niet gecontracteerd 671- incl balans","zvox11","c97111","o52ln1","TY0V01"]
[null,null,null,null,"zvox11_c97111_o52ln1_TY1V01","*=Contractinformatie!$K$80","","Geriatrische Revalidatiezorg 670 en Eerstelijnsverblijf 671,  Geneeskundige Zorg Specifieke Patiëntgroepen (code 672)- Niet gecontracteerd 671- incl balans","zvox11","c97111","o52ln1","TY1V01"]
[null,null,null,null,"zvox11_c97111_o52ln1_TY2V01","*=Contractinformatie!$L$80","","Geriatrische Revalidatiezorg 670 en Eerstelijnsverblijf 671,  Geneeskundige Zorg Specifieke Patiëntgroepen (code 672)- Niet gecontracteerd 671- incl balans","zvox11","c97111","o52ln1","TY2V01"]
[null,null,null,null,"zvox11_c97111_o01gzsp_TY0V01","*=Contractinformatie!$J$83",null,"Geriatrische Revalidatiezorg 670 en Eerstelijnsverblijf 671,  Geneeskundige Zorg Specifieke Patiëntgroepen (code 672)- Gecontracteerd 672- incl balans","zvox11","c97111","o01gzsp","TY0V01"]
[null,null,null,null,"zvox11_c97111_o01gzsp_TY1V01","*=Contractinformatie!$K$83",null,"Geriatrische Revalidatiezorg 670 en Eerstelijnsverblijf 671,  Geneeskundige Zorg Specifieke Patiëntgroepen (code 672)- Gecontracteerd 672- incl balans","zvox11","c97111","o01gzsp","TY1V01"]
[null,null,null,null,"zvox11_c97111_o01gzsp_TY2V01","*=Contractinformatie!$L$83",null,"Geriatrische Revalidatiezorg 670 en Eerstelijnsverblijf 671,  Geneeskundige Zorg Specifieke Patiëntgroepen (code 672)- Gecontracteerd 672- incl balans","zvox11","c97111","o01gzsp","TY2V01"]
[null,null,null,null,"zvox11_c97111_o52gzsp_TY0V01","*=Contractinformatie!$J$84",null,"Geriatrische Revalidatiezorg 670 en Eerstelijnsverblijf 671, Geneeskundige Zorg Specifieke Patiëntgroepen (code 672)- Niet gecontracteerd 672- incl balans","zvox11","c97111","o52gzsp","TY0V01"]
[null,null,null,null,"zvox11_c97111_o52gzsp_TY1V01","*=Contractinformatie!$K$84",null,"Geriatrische Revalidatiezorg 670 en Eerstelijnsverblijf 671, Geneeskundige Zorg Specifieke Patiëntgroepen (code 672)- Niet gecontracteerd 672- incl balans","zvox11","c97111","o52gzsp","TY1V01"]
[null,null,null,null,"zvox11_c97111_o52gzsp_TY2V01","*=Contractinformatie!$L$84",null,"Geriatrische Revalidatiezorg 670 en Eerstelijnsverblijf 671, Geneeskundige Zorg Specifieke Patiëntgroepen (code 672)- Niet gecontracteerd 672- incl balans","zvox11","c97111","o52gzsp","TY2V01"]
[null,null,null,null,"zvrxsg_c978_dl101_TY0V01","*='Specifieke informatie A'!K14","","Kosten naar deelbijdrage- Variabele zorgkosten- incl balans","zvrxsg","c978","dl101","TY0V01"]
[null,null,null,null,"zvrxsg_a978_dl101_TY2V01","*='Specifieke informatie A'!$L$14","","Kosten naar deelbijdrage- Variabele zorgkosten- geaccepteerd","zvrxsg","a978","dl101","TY2V01"]
[null,null,null,null,"zvrxsg_c978_dl102_TY0V01","*='Specifieke informatie A'!$K$15","","Kosten naar deelbijdrage- Vaste zorgkosten- incl balans","zvrxsg","c978","dl102","TY0V01"]
[null,null,null,null,"zvrxsg_a978_dl102_TY2V01","*='Specifieke informatie A'!$L$15","","Kosten naar deelbijdrage- Vaste zorgkosten- geaccepteerd","zvrxsg","a978","dl102","TY2V01"]
[null,null,null,null,"zvrxsg_c978_dl152_TY0V01","*='Specifieke informatie A'!$K$16","","Kosten naar deelbijdrage- Geneeskundige GGZ- incl balans","zvrxsg","c978","dl152","TY0V01"]
[null,null,null,null,"zvrxsg_a978_dl152_TY2V01","*='Specifieke informatie A'!$L$16","","Kosten naar deelbijdrage- Geneeskundige GGZ- geaccepteerd","zvrxsg","a978","dl152","TY2V01"]
[null,null,null,null,"zvrx02_c520_Kdegm_TY0V01","*='Specifieke informatie A'!$K$22","","C520 Kosten dure intramurale geneesmiddelen (artikel 1, regeling risicoverevening)- geaccepteerd","zvrx02","c520","degm","TY0V01"]
[null,null,null,null,"zvrx02_a520_Kdegm_TY2V01","*='Specifieke informatie A'!$L$22","","C520 Kosten dure intramurale geneesmiddelen (artikel 1, regeling risicoverevening)- geaccepteerd","zvrx02","a520","degm","TY2V01"]
[null,null,null,null,"zvrx06_c6121_e08_TY0V01","*='Specifieke informatie A'!$K$27","","C612.1 Kosten ADD-ON'S- dure intramurale geneesmiddelen- incl balans","zvrx06","c6121","e08","TY0V01"]
[null,null,null,null,"zvrx06_a6121_e08_TY2V01","*='Specifieke informatie A'!$L$27","","C612.1 Kosten ADD-ON'S- dure intramurale geneesmiddelen- geaccepteerd","zvrx06","a6121","e08","TY2V01"]
[null,null,null,null,"zvrx10_c666_e10_TY0V01","*='Specifieke informatie A'!$K$32","","C666 Kosten dure intramurale geneesmiddelen- incl balans","zvrx10","c666","e10","TY0V01"]
[null,null,null,null,"zvrx10_a666_e10_TY2V01","*='Specifieke informatie A'!$L$32","","C666 Kosten dure intramurale geneesmiddelen- geaccepteerd ","zvrx10","a666","e10","TY2V01"]
[null,null,null,null,"zvrx13_c703v_m99_TY0V01","*='Specifieke informatie A'!$K$43","","C703 Overige kosten, Transformatiekosten IZA- incl balans","zvrx13","c703v","m99","TY0V01"]
[null,null,null,null,"zvrx13_a703v_m99_TY2V01","*='Specifieke informatie A'!$L$43","","C703 Overige kosten, Transformatiekosten IZA- geaccepteerd","zvrx13","a703v","m99","TY2V01"]
[null,null,null,null,"zvrx15_c720v_m69_TY0V01","*='Specifieke informatie A'!$K$49","","C720 Buitenland, Via Verzekeraar- variabele zorgkosten- incl balans","zvrx15","c720v","m69","TY0V01"]
[null,null,null,null,"zvrx15_a720v_m69_TY2V01","*='Specifieke informatie A'!$L$49","","C720 Buitenland, Via Verzekeraar- variabele zorgkosten- geaccepteerd","zvrx15","a720v","m69","TY2V01"]
[null,null,null,null,"zvrx15_c720v_m51_TY0V01","*='Specifieke informatie A'!$K$50","","C720 Buitenland, Via Verzekeraar- geestelijke gezondheidszorgg- incl balans","zvrx15","c720v","m51","TY0V01"]
[null,null,null,null,"zvrx15_a720v_m51_TY2V01","*='Specifieke informatie A'!$L$50","","C720 Buitenland, Via Verzekeraar- geestelijke gezondheidszorgg- geaccepteerd","zvrx15","a720v","m51","TY2V01"]
[null,null,null,null,"zvrx15_c721o_i01_TY0V01","*='Specifieke informatie A'!$K$55","","C721 buitenland, opgave ZIN- verordening of verdrag, via internationaal verbindingsorgaan- incl balans","zvrx15","c721o","i01","TY0V01"]
[null,null,null,null,"zvrx15_a721o_i01_TY2V01","*='Specifieke informatie A'!$L$55","","C721 buitenland, opgave ZIN- verordening of verdrag, via internationaal verbindingsorgaan- geaccepteerd","zvrx15","a721o","i01","TY2V01"]
[null,null,null,null,"zvrx15_c721o_i11_TY0V01","*='Specifieke informatie A'!$K$56","","C721 buitenland, opgave ZIN- Zvw verzekerden die wonen in Nederland- incl balans","zvrx15","c721o","i11","TY0V01"]
[null,null,null,null,"zvrx15_a721o_i11_TY2V01","*='Specifieke informatie A'!$L$56","","C721 buitenland, opgave ZIN- Zvw verzekerden die wonen in Nederland- geaccepteerd","zvrx15","a721o","i11","TY2V01"]
[null,null,null,null,"zvrx15_c721o_i02_TY0V01","*='Specifieke informatie A'!$K$57","","C721 buitenland, opgave ZIN- Zvw verzekerden die wonen in het buitenland- incl balans","zvrx15","c721o","i02","TY0V01"]
[null,null,null,null,"zvrx15_a721o_i02_TY2V01","*='Specifieke informatie A'!$L$57","","C721 buitenland, opgave ZIN- Zvw verzekerden die wonen in het buitenland- geaccepteerd","zvrx15","a721o","i02","TY2V01"]
[null,null,null,null,"zvrx19_s999_inbw_TY0V01","*='Specifieke informatie A'!$K$62","","C999 rekenpremies gedetineerden","zvrx19","s999","inbw","TY0V01"]
[null,null,null,null,"zvsx06k_c6102_d1l_TY0V01","*='Specifieke informatie C'!$H$14","","C6102 Overige kosten ziekenhuiszorg en curatieve zorg- eerstelijnsdiagnostiek eerstelijnszorgaanbieders - huisartslab- incl balans","zvsx06k","c6102","d1l","TY0V01"]
[null,null,null,null,"zvsx06k_a6102_d1l_TY0V01","*='Specifieke informatie C'!$I$14","","C6102 Overige kosten ziekenhuiszorg en curatieve zorg- eerstelijnsdiagnostiek eerstelijnszorgaanbieders - huisartslab- geaccepteerd","zvsx06k","a6102","d1l","TY0V01"]
[null,null,null,null,"zvsx06k_c6102_d1l_TY1V01","*='Specifieke informatie C'!$J$14","","C6102 Overige kosten ziekenhuiszorg en curatieve zorg- eerstelijnsdiagnostiek eerstelijnszorgaanbieders - huisartslab- incl balans","zvsx06k","c6102","d1l","TY1V01"]
[null,null,null,null,"zvsx06k_a6102_d1l_TY1V01","*='Specifieke informatie C'!$K$14","","C6102 Overige kosten ziekenhuiszorg en curatieve zorg- eerstelijnsdiagnostiek eerstelijnszorgaanbieders - huisartslab- geaccepteerd","zvsx06k","a6102","d1l","TY1V01"]
[null,null,null,null,"zvsx06k_a6102_d1l_TY2V01","*='Specifieke informatie C'!$L$14","","C6102 Overige kosten ziekenhuiszorg en curatieve zorg- eerstelijnsdiagnostiek eerstelijnszorgaanbieders - huisartslab- geaccepteerd","zvsx06k","a6102","d1l","TY2V01"]
[null,null,null,null,"zvsx06k_c6102_trmb_TY0V01","*='Specifieke informatie C'!$H$15","","C6102 Overige kosten ziekenhuiszorg en curatieve zorg- Trombosediensten- incl balans","zvsx06k","c6102","trmb","TY0V01"]
[null,null,null,null,"zvsx06k_a6102_trmb_TY0V01","*='Specifieke informatie C'!$I$15","","C6102 Overige kosten ziekenhuiszorg en curatieve zorg- Trombosediensten- geaccepteerd","zvsx06k","a6102","trmb","TY0V01"]
[null,null,null,null,"zvsx06k_c6102_trmb_TY1V01","*='Specifieke informatie C'!$J$15","","C6102 Overige kosten ziekenhuiszorg en curatieve zorg- Trombosediensten- incl balans","zvsx06k","c6102","trmb","TY1V01"]
[null,null,null,null,"zvsx06k_a6102_trmb_TY1V01","*='Specifieke informatie C'!$K$15","","C6102 Overige kosten ziekenhuiszorg en curatieve zorg- Trombosediensten- geaccepteerd","zvsx06k","a6102","trmb","TY1V01"]
[null,null,null,null,"zvsx06k_a6102_trmb_TY2V01","*='Specifieke informatie C'!$L$15","","C6102 Overige kosten ziekenhuiszorg en curatieve zorg- Trombosediensten- geaccepteerd","zvsx06k","a6102","trmb","TY2V01"]
[null,null,null,null,"zvsx06k_c611_az_TY0V01","*='Specifieke informatie C'!$H$21","","C611 Naar Instelling- Academische ziekenhuizen- incl balans","zvsx06k","c611","az","TY0V01"]
[null,null,null,null,"zvsx06k_a611_az_TY0V01","*='Specifieke informatie C'!$I$21","","C611 Naar Instelling- Academische ziekenhuizen- geaccepteerd","zvsx06k","a611","az","TY0V01"]
[null,null,null,null,"zvsx06k_c611_az_TY1V01","*='Specifieke informatie C'!$J$21","","C611 Naar Instelling- Academische ziekenhuizen- incl balans","zvsx06k","c611","az","TY1V01"]
[null,null,null,null,"zvsx06k_a611_az_TY1V01","*='Specifieke informatie C'!$K$21","","C611 Naar Instelling- Academische ziekenhuizen- geaccepteerd","zvsx06k","a611","az","TY1V01"]
[null,null,null,null,"zvsx06k_a611_az_TY2V01","*='Specifieke informatie C'!$L$21","","C611 Naar Instelling- Academische ziekenhuizen- geaccepteerd","zvsx06k","a611","az","TY2V01"]
[null,null,null,null,"zvsx06k_c611_sz_TY0V01","*='Specifieke informatie C'!$H$22","","C611 Naar Instelling- Algemene ziekenhuizen- incl balans","zvsx06k","c611","sz","TY0V01"]
[null,null,null,null,"zvsx06k_a611_sz_TY0V01","*='Specifieke informatie C'!$I$22","","C611 Naar Instelling- Algemene ziekenhuizen- geaccepteerd","zvsx06k","a611","sz","TY0V01"]
[null,null,null,null,"zvsx06k_c611_sz_TY1V01","*='Specifieke informatie C'!$J$22","","C611 Naar Instelling- Algemene ziekenhuizen- incl balans","zvsx06k","c611","sz","TY1V01"]
[null,null,null,null,"zvsx06k_a611_sz_TY1V01","*='Specifieke informatie C'!$K$22","","C611 Naar Instelling- Algemene ziekenhuizen- geaccepteerd","zvsx06k","a611","sz","TY1V01"]
[null,null,null,null,"zvsx06k_a611_sz_TY2V01","*='Specifieke informatie C'!$L$22","","C611 Naar Instelling- Algemene ziekenhuizen- geaccepteerd","zvsx06k","a611","sz","TY2V01"]
[null,null,null,null,"zvsx06k_c611_zb_TY0V01","*='Specifieke informatie C'!$H$23","","C611 Naar Instelling- Zelfstandige behandelcentra- incl balans","zvsx06k","c611","zb","TY0V01"]
[null,null,null,null,"zvsx06k_a611_zb_TY0V01","*='Specifieke informatie C'!$I$23","","C611 Naar Instelling- Zelfstandige behandelcentra- geaccepteerd","zvsx06k","a611","zb","TY0V01"]
[null,null,null,null,"zvsx06k_c611_zb_TY1V01","*='Specifieke informatie C'!$J$23","","C611 Naar Instelling- Zelfstandige behandelcentra- incl balans","zvsx06k","c611","zb","TY1V01"]
[null,null,null,null,"zvsx06k_a611_zb_TY1V01","*='Specifieke informatie C'!$K$23","","C611 Naar Instelling- Zelfstandige behandelcentra- geaccepteerd","zvsx06k","a611","zb","TY1V01"]
[null,null,null,null,"zvsx06k_a611_zb_TY2V01","*='Specifieke informatie C'!$L$23","","C611 Naar Instelling- Zelfstandige behandelcentra- geaccepteerd","zvsx06k","a611","zb","TY2V01"]
[null,null,null,null,"zvsx06k_c611_ov_TY0V01","*='Specifieke informatie C'!$H$24","","C611 Naar Instelling- Overige zorgaanbieders- incl balans","zvsx06k","c611","ov","TY0V01"]
[null,null,null,null,"zvsx06k_a611_ov_TY0V01","*='Specifieke informatie C'!$I$24","","C611 Naar Instelling- Overige zorgaanbieders- geaccepteerd","zvsx06k","a611","ov","TY0V01"]
[null,null,null,null,"zvsx06k_c611_ov_TY1V01","*='Specifieke informatie C'!$J$24","","C611 Naar Instelling- Overige zorgaanbieders- incl balans","zvsx06k","c611","ov","TY1V01"]
[null,null,null,null,"zvsx06k_a611_ov_TY1V01","*='Specifieke informatie C'!$K$24","","C611 Naar Instelling- Overige zorgaanbieders- geaccepteerd","zvsx06k","a611","ov","TY1V01"]
[null,null,null,null,"zvsx06k_a611_ov_TY2V01","*='Specifieke informatie C'!$L$24","","C611 Naar Instelling- Overige zorgaanbieders- geaccepteerd","zvsx06k","a611","ov","TY2V01"]
[null,null,null,null,"zvsx06k_c6121_az_TY0V01","*='Specifieke informatie C'!$H$30","","C612.1 Kosten add-ons dure geneesmiddelen naar instelling- Academische ziekenhuizen- incl balans","zvsx06k","c6121","az","TY0V01"]
[null,null,null,null,"zvsx06k_a6121_az_TY0V01","*='Specifieke informatie C'!$I$30","","C612.1 Kosten add-ons dure geneesmiddelen naar instelling- Academische ziekenhuizen- geaccepteerd","zvsx06k","a6121","az","TY0V01"]
[null,null,null,null,"zvsx06k_c6121_az_TY1V01","*='Specifieke informatie C'!$J$30","","C612.1 Kosten add-ons dure geneesmiddelen naar instelling- Academische ziekenhuizen- incl balans","zvsx06k","c6121","az","TY1V01"]
[null,null,null,null,"zvsx06k_a6121_az_TY1V01","*='Specifieke informatie C'!$K$30","","C612.1 Kosten add-ons dure geneesmiddelen naar instelling- Academische ziekenhuizen- geaccepteerd","zvsx06k","a6121","az","TY1V01"]
[null,null,null,null,"zvsx06k_a6121_az_TY2V01","*='Specifieke informatie C'!$L$30","","C612.1 Kosten add-ons dure geneesmiddelen naar instelling- Academische ziekenhuizen- geaccepteerd","zvsx06k","a6121","az","TY2V01"]
[null,null,null,null,"zvsx06k_c6121_sz_TY0V01","*='Specifieke informatie C'!$H$31","","C612.1 Kosten add-ons dure geneesmiddelen naar instelling- Algemene ziekenhuizen- incl balans","zvsx06k","c6121","sz","TY0V01"]
[null,null,null,null,"zvsx06k_a6121_sz_TY0V01","*='Specifieke informatie C'!$I$31","","C612.1 Kosten add-ons dure geneesmiddelen naar instelling- Algemene ziekenhuizen- geaccepteerd","zvsx06k","a6121","sz","TY0V01"]
[null,null,null,null,"zvsx06k_c6121_sz_TY1V01","*='Specifieke informatie C'!$J$31","","C612.1 Kosten add-ons dure geneesmiddelen naar instelling- Algemene ziekenhuizen- incl balans","zvsx06k","c6121","sz","TY1V01"]
[null,null,null,null,"zvsx06k_a6121_sz_TY1V01","*='Specifieke informatie C'!$K$31","","C612.1 Kosten add-ons dure geneesmiddelen naar instelling- Algemene ziekenhuizen- geaccepteerd","zvsx06k","a6121","sz","TY1V01"]
[null,null,null,null,"zvsx06k_a6121_sz_TY2V01","*='Specifieke informatie C'!$L$31","","C612.1 Kosten add-ons dure geneesmiddelen naar instelling- Algemene ziekenhuizen- geaccepteerd","zvsx06k","a6121","sz","TY2V01"]
[null,null,null,null,"zvsx06k_c6121_zb_TY0V01","*='Specifieke informatie C'!$H$32","","C612.1 Kosten add-ons dure geneesmiddelen naar instelling- Zelfstandige behandelcentra- incl balans","zvsx06k","c6121","zb","TY0V01"]
[null,null,null,null,"zvsx06k_a6121_zb_TY0V01","*='Specifieke informatie C'!$I$32","","C612.1 Kosten add-ons dure geneesmiddelen naar instelling- Zelfstandige behandelcentra- geaccepteerd","zvsx06k","a6121","zb","TY0V01"]
[null,null,null,null,"zvsx06k_c6121_zb_TY1V01","*='Specifieke informatie C'!$J$32","","C612.1 Kosten add-ons dure geneesmiddelen naar instelling- Zelfstandige behandelcentra- incl balans","zvsx06k","c6121","zb","TY1V01"]
[null,null,null,null,"zvsx06k_a6121_zb_TY1V01","*='Specifieke informatie C'!$K$32","","C612.1 Kosten add-ons dure geneesmiddelen naar instelling- Zelfstandige behandelcentra- geaccepteerd","zvsx06k","a6121","zb","TY1V01"]
[null,null,null,null,"zvsx06k_a6121_zb_TY2V01","*='Specifieke informatie C'!$L$32","","C612.1 Kosten add-ons dure geneesmiddelen naar instelling- Zelfstandige behandelcentra- geaccepteerd","zvsx06k","a6121","zb","TY2V01"]
[null,null,null,null,"zvsx06k_c6121_ov_TY0V01","*='Specifieke informatie C'!$H$33","","C612.1 Kosten add-ons dure geneesmiddelen naar instelling- Overige zorgaanbieders- incl balans","zvsx06k","c6121","ov","TY0V01"]
[null,null,null,null,"zvsx06k_a6121_ov_TY0V01","*='Specifieke informatie C'!$I$33","","C612.1 Kosten add-ons dure geneesmiddelen naar instelling- Overige zorgaanbieders- geaccepteerd","zvsx06k","a6121","ov","TY0V01"]
[null,null,null,null,"zvsx06k_c6121_ov_TY1V01","*='Specifieke informatie C'!$J$33","","C612.1 Kosten add-ons dure geneesmiddelen naar instelling- Overige zorgaanbieders- incl balans","zvsx06k","c6121","ov","TY1V01"]
[null,null,null,null,"zvsx06k_a6121_ov_TY1V01","*='Specifieke informatie C'!$K$33","","C612.1 Kosten add-ons dure geneesmiddelen naar instelling- Overige zorgaanbieders- geaccepteerd","zvsx06k","a6121","ov","TY1V01"]
[null,null,null,null,"zvsx06k_a6121_ov_TY2V01","*='Specifieke informatie C'!$L$33","","C612.1 Kosten add-ons dure geneesmiddelen naar instelling- Overige zorgaanbieders- geaccepteerd","zvsx06k","a6121","ov","TY2V01"]
[null,null,null,null,"zvsx06k_c6122_az_TY0V01","*='Specifieke informatie C'!$H$44","","C612.2 Kosten add-ons IC naar instelling- Academische ziekenhuizen- incl balans","zvsx06k","c6122","az","TY0V01"]
[null,null,null,null,"zvsx06k_a6122_az_TY0V01","*='Specifieke informatie C'!$I$44","","C612.2 Kosten add-ons IC naar instelling- Academische ziekenhuizen- geaccepteerd","zvsx06k","a6122","az","TY0V01"]
[null,null,null,null,"zvsx06k_c6122_az_TY1V01","*='Specifieke informatie C'!$J$44","","C612.2 Kosten add-ons IC naar instelling- Academische ziekenhuizen- incl balans","zvsx06k","c6122","az","TY1V01"]
[null,null,null,null,"zvsx06k_a6122_az_TY1V01","*='Specifieke informatie C'!$K$44","","C612.2 Kosten add-ons IC naar instelling- Academische ziekenhuizen- geaccepteerd","zvsx06k","a6122","az","TY1V01"]
[null,null,null,null,"zvsx06k_a6122_az_TY2V01","*='Specifieke informatie C'!$L$44","","C612.2 Kosten add-ons IC naar instelling- Academische ziekenhuizen- geaccepteerd","zvsx06k","a6122","az","TY2V01"]
[null,null,null,null,"zvsx06k_c6122_sz_TY0V01","*='Specifieke informatie C'!$H$45","","C612.2 Kosten add-ons IC naar instelling- Algemene ziekenhuizen- incl balans","zvsx06k","c6122","sz","TY0V01"]
[null,null,null,null,"zvsx06k_a6122_sz_TY0V01","*='Specifieke informatie C'!$I$45","","C612.2 Kosten add-ons IC naar instelling- Algemene ziekenhuizen- geaccepteerd","zvsx06k","a6122","sz","TY0V01"]
[null,null,null,null,"zvsx06k_c6122_sz_TY1V01","*='Specifieke informatie C'!$J$45","","C612.2 Kosten add-ons IC naar instelling- Algemene ziekenhuizen- incl balans","zvsx06k","c6122","sz","TY1V01"]
[null,null,null,null,"zvsx06k_a6122_sz_TY1V01","*='Specifieke informatie C'!$K$45","","C612.2 Kosten add-ons IC naar instelling- Algemene ziekenhuizen- geaccepteerd","zvsx06k","a6122","sz","TY1V01"]
[null,null,null,null,"zvsx06k_a6122_sz_TY2V01","*='Specifieke informatie C'!$L$45","","C612.2 Kosten add-ons IC naar instelling- Algemene ziekenhuizen- geaccepteerd","zvsx06k","a6122","sz","TY2V01"]
[null,null,null,null,"zvsx06k_c6122_zb_TY0V01","*='Specifieke informatie C'!$H$46","","C612.2 Kosten add-ons IC naar instelling- Zelfstandige behandelcentra- incl balans","zvsx06k","c6122","zb","TY0V01"]
[null,null,null,null,"zvsx06k_a6122_zb_TY0V01","*='Specifieke informatie C'!$I$46","","C612.2 Kosten add-ons IC naar instelling- Zelfstandige behandelcentra- geaccepteerd","zvsx06k","a6122","zb","TY0V01"]
[null,null,null,null,"zvsx06k_c6122_zb_TY1V01","*='Specifieke informatie C'!$J$46","","C612.2 Kosten add-ons IC naar instelling- Zelfstandige behandelcentra- incl balans","zvsx06k","c6122","zb","TY1V01"]
[null,null,null,null,"zvsx06k_a6122_zb_TY1V01","*='Specifieke informatie C'!$K$46","","C612.2 Kosten add-ons IC naar instelling- Zelfstandige behandelcentra- geaccepteerd","zvsx06k","a6122","zb","TY1V01"]
[null,null,null,null,"zvsx06k_a6122_zb_TY2V01","*='Specifieke informatie C'!$L$46","","C612.2 Kosten add-ons IC naar instelling- Zelfstandige behandelcentra- geaccepteerd","zvsx06k","a6122","zb","TY2V01"]
[null,null,null,null,"zvsx06k_c6122_ov_TY0V01","*='Specifieke informatie C'!$H$47","","C612.2 Kosten add-ons IC naar instelling- Overige zorgaanbieders- incl balans","zvsx06k","c6122","ov","TY0V01"]
[null,null,null,null,"zvsx06k_a6122_ov_TY0V01","*='Specifieke informatie C'!$I$47","","C612.2 Kosten add-ons IC naar instelling- Overige zorgaanbieders- geaccepteerd","zvsx06k","a6122","ov","TY0V01"]
[null,null,null,null,"zvsx06k_c6122_ov_TY1V01","*='Specifieke informatie C'!$J$47","","C612.2 Kosten add-ons IC naar instelling- Overige zorgaanbieders- incl balans","zvsx06k","c6122","ov","TY1V01"]
[null,null,null,null,"zvsx06k_a6122_ov_TY1V01","*='Specifieke informatie C'!$K$47","","C612.2 Kosten add-ons IC naar instelling- Overige zorgaanbieders- geaccepteerd","zvsx06k","a6122","ov","TY1V01"]
[null,null,null,null,"zvsx06k_a6122_ov_TY2V01","*='Specifieke informatie C'!$L$47","","C612.2 Kosten add-ons IC naar instelling- Overige zorgaanbieders- geaccepteerd","zvsx06k","a6122","ov","TY2V01"]
[null,null,null,null,"zvsx06k_c6131_az_TY0V01","*='Specifieke informatie C'!$H$56","","C613.1 Integrale kosten DBC-zorgproducten gereguleerde segment- Academische ziekenhuizen- incl balans","zvsx06k","c6131","az","TY0V01"]
[null,null,null,null,"zvsx06k_a6131_az_TY0V01","*='Specifieke informatie C'!$I$56","","C613.1 Integrale kosten DBC-zorgproducten gereguleerde segment- Academische ziekenhuizen- geaccepteerd","zvsx06k","a6131","az","TY0V01"]
[null,null,null,null,"zvsx06k_c6131_az_TY1V01","*='Specifieke informatie C'!$J$56","","C613.1 Integrale kosten DBC-zorgproducten gereguleerde segment- Academische ziekenhuizen- incl balans","zvsx06k","c6131","az","TY1V01"]
[null,null,null,null,"zvsx06k_a6131_az_TY1V01","*='Specifieke informatie C'!$K$56","","C613.1 Integrale kosten DBC-zorgproducten gereguleerde segment- Academische ziekenhuizen- geaccepteerd","zvsx06k","a6131","az","TY1V01"]
[null,null,null,null,"zvsx06k_a6131_az_TY2V01","*='Specifieke informatie C'!$L$56","","C613.1 Integrale kosten DBC-zorgproducten gereguleerde segment- Academische ziekenhuizen- geaccepteerd","zvsx06k","a6131","az","TY2V01"]
[null,null,null,null,"zvsx06k_c6131_sz_TY0V01","*='Specifieke informatie C'!$H$57","","C613.1 Integrale kosten DBC-zorgproducten gereguleerde segment- Algemene ziekenhuizen- incl balans","zvsx06k","c6131","sz","TY0V01"]
[null,null,null,null,"zvsx06k_a6131_sz_TY0V01","*='Specifieke informatie C'!$I$57","","C613.1 Integrale kosten DBC-zorgproducten gereguleerde segment- Algemene ziekenhuizen- geaccepteerd","zvsx06k","a6131","sz","TY0V01"]
[null,null,null,null,"zvsx06k_c6131_sz_TY1V01","*='Specifieke informatie C'!$J$57","","C613.1 Integrale kosten DBC-zorgproducten gereguleerde segment- Algemene ziekenhuizen- incl balans","zvsx06k","c6131","sz","TY1V01"]
[null,null,null,null,"zvsx06k_a6131_sz_TY1V01","*='Specifieke informatie C'!$K$57","","C613.1 Integrale kosten DBC-zorgproducten gereguleerde segment- Algemene ziekenhuizen- geaccepteerd","zvsx06k","a6131","sz","TY1V01"]
[null,null,null,null,"zvsx06k_a6131_sz_TY2V01","*='Specifieke informatie C'!$L$57","","C613.1 Integrale kosten DBC-zorgproducten gereguleerde segment- Algemene ziekenhuizen- geaccepteerd","zvsx06k","a6131","sz","TY2V01"]
[null,null,null,null,"zvsx06k_c6131_zb_TY0V01","*='Specifieke informatie C'!$H$58","","C613.1 Integrale kosten DBC-zorgproducten gereguleerde segment- Zelfstandige behandelcentra- incl balans","zvsx06k","c6131","zb","TY0V01"]
[null,null,null,null,"zvsx06k_a6131_zb_TY0V01","*='Specifieke informatie C'!$I$58","","C613.1 Integrale kosten DBC-zorgproducten gereguleerde segment- Zelfstandige behandelcentra- geaccepteerd","zvsx06k","a6131","zb","TY0V01"]
[null,null,null,null,"zvsx06k_c6131_zb_TY1V01","*='Specifieke informatie C'!$J$58","","C613.1 Integrale kosten DBC-zorgproducten gereguleerde segment- Zelfstandige behandelcentra- incl balans","zvsx06k","c6131","zb","TY1V01"]
[null,null,null,null,"zvsx06k_a6131_zb_TY1V01","*='Specifieke informatie C'!$K$58","","C613.1 Integrale kosten DBC-zorgproducten gereguleerde segment- Zelfstandige behandelcentra- geaccepteerd","zvsx06k","a6131","zb","TY1V01"]
[null,null,null,null,"zvsx06k_a6131_zb_TY2V01","*='Specifieke informatie C'!$L$58","","C613.1 Integrale kosten DBC-zorgproducten gereguleerde segment- Zelfstandige behandelcentra- geaccepteerd","zvsx06k","a6131","zb","TY2V01"]
[null,null,null,null,"zvsx06k_c6131_ov_TY0V01","*='Specifieke informatie C'!$H$59","","C613.1 Integrale kosten DBC-zorgproducten gereguleerde segment- Overige zorgaanbieders- incl balans","zvsx06k","c6131","ov","TY0V01"]
[null,null,null,null,"zvsx06k_a6131_ov_TY0V01","*='Specifieke informatie C'!$I$59","","C613.1 Integrale kosten DBC-zorgproducten gereguleerde segment- Overige zorgaanbieders- geaccepteerd","zvsx06k","a6131","ov","TY0V01"]
[null,null,null,null,"zvsx06k_c6131_ov_TY1V01","*='Specifieke informatie C'!$J$59","","C613.1 Integrale kosten DBC-zorgproducten gereguleerde segment- Overige zorgaanbieders- incl balans","zvsx06k","c6131","ov","TY1V01"]
[null,null,null,null,"zvsx06k_a6131_ov_TY1V01","*='Specifieke informatie C'!$K$59","","C613.1 Integrale kosten DBC-zorgproducten gereguleerde segment- Overige zorgaanbieders- geaccepteerd","zvsx06k","a6131","ov","TY1V01"]
[null,null,null,null,"zvsx06k_a6131_ov_TY2V01","*='Specifieke informatie C'!$L$59","","C613.1 Integrale kosten DBC-zorgproducten gereguleerde segment- Overige zorgaanbieders- geaccepteerd","zvsx06k","a6131","ov","TY2V01"]
[null,null,null,null,"zvsx06k_c6151_az_TY0V01","*='Specifieke informatie C'!$H$66","","C615.1 Integrale kosten DBC-zorgproduct vrije segment- Academische ziekenhuizen- incl balans","zvsx06k","c6151","az","TY0V01"]
[null,null,null,null,"zvsx06k_a6151_az_TY0V01","*='Specifieke informatie C'!$I$66","","C615.1 Integrale kosten DBC-zorgproduct vrije segment- Academische ziekenhuizen- geaccepteerd","zvsx06k","a6151","az","TY0V01"]
[null,null,null,null,"zvsx06k_c6151_az_TY1V01","*='Specifieke informatie C'!$J$66","","C615.1 Integrale kosten DBC-zorgproduct vrije segment- Academische ziekenhuizen- incl balans","zvsx06k","c6151","az","TY1V01"]
[null,null,null,null,"zvsx06k_a6151_az_TY1V01","*='Specifieke informatie C'!$K$66","","C615.1 Integrale kosten DBC-zorgproduct vrije segment- Academische ziekenhuizen- geaccepteerd","zvsx06k","a6151","az","TY1V01"]
[null,null,null,null,"zvsx06k_a6151_az_TY2V01","*='Specifieke informatie C'!$L$66","","C615.1 Integrale kosten DBC-zorgproduct vrije segment- Academische ziekenhuizen- geaccepteerd","zvsx06k","a6151","az","TY2V01"]
[null,null,null,null,"zvsx06k_c6151_sz_TY0V01","*='Specifieke informatie C'!$H$67","","C615.1 Integrale kosten DBC-zorgproduct vrije segment- Algemene ziekenhuizen- incl balans","zvsx06k","c6151","sz","TY0V01"]
[null,null,null,null,"zvsx06k_a6151_sz_TY0V01","*='Specifieke informatie C'!$I$67","","C615.1 Integrale kosten DBC-zorgproduct vrije segment- Algemene ziekenhuizen- geaccepteerd","zvsx06k","a6151","sz","TY0V01"]
[null,null,null,null,"zvsx06k_c6151_sz_TY1V01","*='Specifieke informatie C'!$J$67","","C615.1 Integrale kosten DBC-zorgproduct vrije segment- Algemene ziekenhuizen- incl balans","zvsx06k","c6151","sz","TY1V01"]
[null,null,null,null,"zvsx06k_a6151_sz_TY1V01","*='Specifieke informatie C'!$K$67","","C615.1 Integrale kosten DBC-zorgproduct vrije segment- Algemene ziekenhuizen- geaccepteerd","zvsx06k","a6151","sz","TY1V01"]
[null,null,null,null,"zvsx06k_a6151_sz_TY2V01","*='Specifieke informatie C'!$L$67","","C615.1 Integrale kosten DBC-zorgproduct vrije segment- Algemene ziekenhuizen- geaccepteerd","zvsx06k","a6151","sz","TY2V01"]
[null,null,null,null,"zvsx06k_c6151_zb_TY0V01","*='Specifieke informatie C'!$H$68","","C615.1 Integrale kosten DBC-zorgproduct vrije segment- Zelfstandige behandelcentra- incl balans","zvsx06k","c6151","zb","TY0V01"]
[null,null,null,null,"zvsx06k_a6151_zb_TY0V01","*='Specifieke informatie C'!$I$68","","C615.1 Integrale kosten DBC-zorgproduct vrije segment- Zelfstandige behandelcentra- geaccepteerd","zvsx06k","a6151","zb","TY0V01"]
[null,null,null,null,"zvsx06k_c6151_zb_TY1V01","*='Specifieke informatie C'!$J$68","","C615.1 Integrale kosten DBC-zorgproduct vrije segment- Zelfstandige behandelcentra- incl balans","zvsx06k","c6151","zb","TY1V01"]
[null,null,null,null,"zvsx06k_a6151_zb_TY1V01","*='Specifieke informatie C'!$K$68","","C615.1 Integrale kosten DBC-zorgproduct vrije segment- Zelfstandige behandelcentra- geaccepteerd","zvsx06k","a6151","zb","TY1V01"]
[null,null,null,null,"zvsx06k_a6151_zb_TY2V01","*='Specifieke informatie C'!$L$68","","C615.1 Integrale kosten DBC-zorgproduct vrije segment- Zelfstandige behandelcentra- geaccepteerd","zvsx06k","a6151","zb","TY2V01"]
[null,null,null,null,"zvsx06k_c6151_ov_TY0V01","*='Specifieke informatie C'!$H$69","","C615.1 Integrale kosten DBC-zorgproduct vrije segment- Overige zorgaanbieders- incl balans","zvsx06k","c6151","ov","TY0V01"]
[null,null,null,null,"zvsx06k_a6151_ov_TY0V01","*='Specifieke informatie C'!$I$69","","C615.1 Integrale kosten DBC-zorgproduct vrije segment- Overige zorgaanbieders- geaccepteerd","zvsx06k","a6151","ov","TY0V01"]
[null,null,null,null,"zvsx06k_c6151_ov_TY1V01","*='Specifieke informatie C'!$J$69","","C615.1 Integrale kosten DBC-zorgproduct vrije segment- Overige zorgaanbieders- incl balans","zvsx06k","c6151","ov","TY1V01"]
[null,null,null,null,"zvsx06k_a6151_ov_TY1V01","*='Specifieke informatie C'!$K$69","","C615.1 Integrale kosten DBC-zorgproduct vrije segment- Overige zorgaanbieders- geaccepteerd","zvsx06k","a6151","ov","TY1V01"]
[null,null,null,null,"zvsx06k_a6151_ov_TY2V01","*='Specifieke informatie C'!$L$69","","C615.1 Integrale kosten DBC-zorgproduct vrije segment- Overige zorgaanbieders- geaccepteerd","zvsx06k","a6151","ov","TY2V01"]
[null,null,null,null,"zvsx15i_a720g_u12_TY0V01","*='Specifieke informatie C'!$K$88","","C720 Grensoverschrijdende zorg- wonen in Nederland (op basis van contract- geaccepteerd","zvsx15i","a720g","u12","TY0V01"]
[null,null,null,null,"zvsx15i_a720g_u12_TY1V01","*='Specifieke informatie C'!$L$88","","C720 Grensoverschrijdende zorg- wonen in Nederland (op basis van contract- geaccepteerd","zvsx15i","a720g","u12","TY1V01"]
[null,null,null,null,"zvsx15i_a720g_u13_TY0V01","*='Specifieke informatie C'!$K$89","","C720 Grensoverschrijdende zorg- wonen in Nederland (niet op basis van contract)- geaccepteerd","zvsx15i","a720g","u13","TY0V01"]
[null,null,null,null,"zvsx15i_a720g_u13_TY1V01","*='Specifieke informatie C'!$L$89","","C720 Grensoverschrijdende zorg- wonen in Nederland (niet op basis van contract)- geaccepteerd","zvsx15i","a720g","u13","TY1V01"]
[null,null,null,null,"zvsx15i_a720g_u02_TY0V01","*='Specifieke informatie C'!$K$90","","C720 Grensoverschrijdende zorg- Zvw verzekerden die wonen in het buitenland- geaccepteerd","zvsx15i","a720g","u02","TY0V01"]
[null,null,null,null,"zvsx15i_a720g_u02_TY1V01","*='Specifieke informatie C'!$L$90","","C720 Grensoverschrijdende zorg- Zvw verzekerden die wonen in het buitenland- geaccepteerd","zvsx15i","a720g","u02","TY1V01"]
[null,null,null,null,"zvsx15i_n720g_u12_TY0V01","*='Specifieke informatie C'!$K$95",null,"C720 Grensoverschrijdende zorg- wonen in Nederland (op basis van contract)- geaccepteerd","zvsx15i","a720g","u12","TY0V01"]
[null,null,null,null,"zvsx15i_n720g_u12_TY1V01","*='Specifieke informatie C'!$L$95",null,"C720 Grensoverschrijdende zorg- wonen in Nederland (op basis van contract)- geaccepteerd","zvsx15i","a720g","u12","TY1V01"]
[null,null,null,null,"zvsx15i_n720g_u13_TY0V01","*='Specifieke informatie C'!$K$96",null,"C720 Grensoverschrijdende zorg- wonen in Nederland (niet op basis van contract)- geaccepteerd","zvsx15i","a720g","u13","TY0V01"]
[null,null,null,null,"zvsx15i_n720g_u13_TY1V01","*='Specifieke informatie C'!$L$96",null,"C720 Grensoverschrijdende zorg- wonen in Nederland (niet op basis van contract)- geaccepteerd","zvsx15i","a720g","u13","TY1V01"]
[null,null,null,null,"zvsx15i_n720g_u02_TY0V01","*='Specifieke informatie C'!$K$97",null,"C720 Grensoverschrijdende zorg- Zvw verzekerden die wonen in het buitenland- geaccepteerd","zvsx15i","a720g","u02","TY0V01"]
[null,null,null,null,"zvsx15i_n720g_u02_TY1V01","*='Specifieke informatie C'!$L$97",null,"C720 Grensoverschrijdende zorg- Zvw verzekerden die wonen in het buitenland- geaccepteerd","zvsx15i","a720g","u02","TY1V01"]
[null,null,null,null,{"$f":"\"zvrx_a_1_TY2V01\"","v":"zvrx_a_1_TY2V01"},"*='Specifieke informatie A'!J75","*=Parameters!$L$3",null,"zvrx","a",null,"TY2V01"]
[null,null,null,null,{"$f":"\"zvrx01_a_1_TY2V01\"","v":"zvrx01_a_1_TY2V01"},"*='Specifieke informatie A'!J76","*=Parameters!$L$3",null,"zvrx01","a",null,"TY2V01"]
[null,null,null,null,{"$f":"\"zvrx02_a_1_TY2V01\"","v":"zvrx02_a_1_TY2V01"},"*='Specifieke informatie A'!J77","*=Parameters!$L$3",null,"zvrx02","a",null,"TY2V01"]
[null,null,null,null,{"$f":"\"zvrx02_a520_1_TY2V01\"","v":"zvrx02_a520_1_TY2V01"},"*='Specifieke informatie A'!J78","*=Parameters!$L$3","A520 Kosten dure intramurale geneesmiddelen (artikel 1, regeling risicoverevening)- geaccepteerd","zvrx02","a520",null,"TY2V01"]
[null,null,null,null,{"$f":"\"zvrx03_a_1_TY2V01\"","v":"zvrx03_a_1_TY2V01"},"*='Specifieke informatie A'!J79","*=Parameters!$L$3",null,"zvrx03","a",null,"TY2V01"]
[null,null,null,null,{"$f":"\"zvrx04_a_1_TY2V01\"","v":"zvrx04_a_1_TY2V01"},"*='Specifieke informatie A'!J80","*=Parameters!$L$3",null,"zvrx04","a",null,"TY2V01"]
[null,null,null,null,{"$f":"\"zvrx05_a_1_TY2V01\"","v":"zvrx05_a_1_TY2V01"},"*='Specifieke informatie A'!J81","*=Parameters!$L$3",null,"zvrx05","a",null,"TY2V01"]
[null,null,null,null,{"$f":"\"zvrx06_a_1_TY2V01\"","v":"zvrx06_a_1_TY2V01"},"*='Specifieke informatie A'!J82","*=Parameters!$L$3",null,"zvrx06","a",null,"TY2V01"]
[null,null,null,null,{"$f":"\"zvrx06_a6121_1_TY2V01\"","v":"zvrx06_a6121_1_TY2V01"},"*='Specifieke informatie A'!J83","*=Parameters!$L$3","A612.1 Kosten ADD-ON'S- dure intramurale geneesmiddelen- geaccepteerd","zvrx06","a6121",null,"TY2V01"]
[null,null,null,null,{"$f":"\"zvrx07_a_1_TY2V01\"","v":"zvrx07_a_1_TY2V01"},"*='Specifieke informatie A'!J84","*=Parameters!$L$3",null,"zvrx07","a",null,"TY2V01"]
[null,null,null,null,{"$f":"\"zvrx08_a_1_TY2V01\"","v":"zvrx08_a_1_TY2V01"},"*='Specifieke informatie A'!J85","*=Parameters!$L$3",null,"zvrx08","a",null,"TY2V01"]
[null,null,null,null,{"$f":"\"zvrx09_a_1_TY2V01\"","v":"zvrx09_a_1_TY2V01"},"*='Specifieke informatie A'!J86","*=Parameters!$L$3",null,"zvrx09","a",null,"TY2V01"]
[null,null,null,null,{"$f":"\"zvrx11_a_1_TY2V01\"","v":"zvrx11_a_1_TY2V01"},"*='Specifieke informatie A'!J87","*=Parameters!$L$3",null,"zvrx11","a",null,"TY2V01"]
[null,null,null,null,{"$f":"\"zvrx12_a_1_TY2V01\"","v":"zvrx12_a_1_TY2V01"},"*='Specifieke informatie A'!J88","*=Parameters!$L$3",null,"zvrx12","a",null,"TY2V01"]
[null,null,null,null,{"$f":"\"zvrx13_a_1_TY2V01\"","v":"zvrx13_a_1_TY2V01"},"*='Specifieke informatie A'!J89","*=Parameters!$L$3",null,"zvrx13","a",null,"TY2V01"]
[null,null,null,null,{"$f":"\"zvrx13_a703_1_TY2V01\"","v":"zvrx13_a703_1_TY2V01"},"*='Specifieke informatie A'!J90","*=Parameters!$L$3","Overige kosten- Transformatiemiddelen IZA- geaccepteerd","zvkx13","a703",null,"TY2V01"]
[null,null,null,null,{"$f":"\"zvrx15_a_1_TY2V01\"","v":"zvrx15_a_1_TY2V01"},"*='Specifieke informatie A'!J91","*=Parameters!$L$3",null,"zvrx15","a",null,"TY2V01"]
[null,null,null,null,{"$f":"\"zvrx15_a720v_1_TY2V01\"","v":"zvrx15_a720v_1_TY2V01"},"*='Specifieke informatie A'!J92","*=Parameters!$L$3","A720 Buitenland, Via Verzekeraar- geestelijke gezondheidszorgg- geaccepteerd","zvrx15","a720v",null,"TY2V01"]
[null,null,null,null,{"$f":"\"zvrx16_a_1_TY2V01\"","v":"zvrx16_a_1_TY2V01"},"*='Specifieke informatie A'!J93","*=Parameters!$L$3",null,"zvrx16","a",null,"TY2V01"]
[null,null,null,null,{"$f":"\"zvrx19_s999_1_TY2V01\"","v":"zvrx19_s999_1_TY2V01"},"*='Specifieke informatie A'!J97","*=Parameters!$L$3","A999 rekenpremies gedetineerden","zvrx19","s999",null,"TY2V01"]
[null,null,null,null,{"$f":"\"zvrx_a_2_TY2V01\"","v":"zvrx_a_2_TY2V01"},"*='Specifieke informatie A'!L75","*=Parameters!$L$4",null,"zvrx","a",null,"TY2V01"]
[null,null,null,null,{"$f":"\"zvrx01_a_2_TY2V01\"","v":"zvrx01_a_2_TY2V01"},"*='Specifieke informatie A'!L76","*=Parameters!$L$4",null,"zvrx01","a",null,"TY2V01"]
[null,null,null,null,{"$f":"\"zvrx02_a_2_TY2V01\"","v":"zvrx02_a_2_TY2V01"},"*='Specifieke informatie A'!L77","*=Parameters!$L$4",null,"zvrx02","a",null,"TY2V01"]
[null,null,null,null,{"$f":"\"zvrx02_a520_2_TY2V01\"","v":"zvrx02_a520_2_TY2V01"},"*='Specifieke informatie A'!L78","*=Parameters!$L$4","A520 Kosten dure intramurale geneesmiddelen (artikel 1, regeling risicoverevening)- geaccepteerd","zvrx02","a520",null,"TY2V01"]
[null,null,null,null,{"$f":"\"zvrx03_a_2_TY2V01\"","v":"zvrx03_a_2_TY2V01"},"*='Specifieke informatie A'!L79","*=Parameters!$L$4",null,"zvrx03","a",null,"TY2V01"]
[null,null,null,null,{"$f":"\"zvrx04_a_2_TY2V01\"","v":"zvrx04_a_2_TY2V01"},"*='Specifieke informatie A'!L80","*=Parameters!$L$4",null,"zvrx04","a",null,"TY2V01"]
[null,null,null,null,{"$f":"\"zvrx05_a_2_TY2V01\"","v":"zvrx05_a_2_TY2V01"},"*='Specifieke informatie A'!L81","*=Parameters!$L$4",null,"zvrx05","a",null,"TY2V01"]
[null,null,null,null,{"$f":"\"zvrx06_a_2_TY2V01\"","v":"zvrx06_a_2_TY2V01"},"*='Specifieke informatie A'!L82","*=Parameters!$L$4",null,"zvrx06","a",null,"TY2V01"]
[null,null,null,null,{"$f":"\"zvrx06_a6121_2_TY2V01\"","v":"zvrx06_a6121_2_TY2V01"},"*='Specifieke informatie A'!L83","*=Parameters!$L$4","A612.1 Kosten ADD-ON'S- dure intramurale geneesmiddelen- geaccepteerd","zvrx06","a6121",null,"TY2V01"]
[null,null,null,null,{"$f":"\"zvrx07_a_2_TY2V01\"","v":"zvrx07_a_2_TY2V01"},"*='Specifieke informatie A'!L84","*=Parameters!$L$4",null,"zvrx07","a",null,"TY2V01"]
[null,null,null,null,{"$f":"\"zvrx08_a_2_TY2V01\"","v":"zvrx08_a_2_TY2V01"},"*='Specifieke informatie A'!L85","*=Parameters!$L$4",null,"zvrx08","a",null,"TY2V01"]
[null,null,null,null,{"$f":"\"zvrx09_a_2_TY2V01\"","v":"zvrx09_a_2_TY2V01"},"*='Specifieke informatie A'!L86","*=Parameters!$L$4",null,"zvrx09","a",null,"TY2V01"]
[null,null,null,null,{"$f":"\"zvrx11_a_2_TY2V01\"","v":"zvrx11_a_2_TY2V01"},"*='Specifieke informatie A'!L87","*=Parameters!$L$4",null,"zvrx11","a",null,"TY2V01"]
[null,null,null,null,{"$f":"\"zvrx12_a_2_TY2V01\"","v":"zvrx12_a_2_TY2V01"},"*='Specifieke informatie A'!L88","*=Parameters!$L$4",null,"zvrx12","a",null,"TY2V01"]
[null,null,null,null,{"$f":"\"zvrx13_a_2_TY2V01\"","v":"zvrx13_a_2_TY2V01"},"*='Specifieke informatie A'!L89","*=Parameters!$L$4",null,"zvrx13","a",null,"TY2V01"]
[null,null,null,null,{"$f":"\"zvrx13_a703_2_TY2V01\"","v":"zvrx13_a703_2_TY2V01"},"*='Specifieke informatie A'!L90","*=Parameters!$L$4","Overige kosten- Transformatiemiddelen IZA- geaccepteerd","zvkx13","a703",null,"TY2V01"]
[null,null,null,null,{"$f":"\"zvrx15_a_2_TY2V01\"","v":"zvrx15_a_2_TY2V01"},"*='Specifieke informatie A'!L91","*=Parameters!$L$4",null,"zvrx15","a",null,"TY2V01"]
[null,null,null,null,{"$f":"\"zvrx15_a720v_2_TY2V01\"","v":"zvrx15_a720v_2_TY2V01"},"*='Specifieke informatie A'!L92","*=Parameters!$L$4","A720 Buitenland, Via Verzekeraar- geestelijke gezondheidszorgg- geaccepteerd","zvrx15","a720v",null,"TY2V01"]
[null,null,null,null,{"$f":"\"zvrx16_a_2_TY2V01\"","v":"zvrx16_a_2_TY2V01"},"*='Specifieke informatie A'!L93","*=Parameters!$L$4",null,"zvrx16","a",null,"TY2V01"]
[null,null,null,null,{"$f":"\"zvrx19_s999_2_TY2V01\"","v":"zvrx19_s999_2_TY2V01"},"*='Specifieke informatie A'!L97","*=Parameters!$L$4","A999 rekenpremies gedetineerden","zvrx19","s999",null,"TY2V01"]
[null,null,null,null,{"$f":"\"zvrx_a_3_TY2V01\"","v":"zvrx_a_3_TY2V01"},"*='Specifieke informatie A'!N75","*=Parameters!$L$5",null,"zvrx","a",null,"TY2V01"]
[null,null,null,null,{"$f":"\"zvrx01_a_3_TY2V01\"","v":"zvrx01_a_3_TY2V01"},"*='Specifieke informatie A'!N76","*=Parameters!$L$5",null,"zvrx01","a",null,"TY2V01"]
[null,null,null,null,{"$f":"\"zvrx02_a_3_TY2V01\"","v":"zvrx02_a_3_TY2V01"},"*='Specifieke informatie A'!N77","*=Parameters!$L$5",null,"zvrx02","a",null,"TY2V01"]
[null,null,null,null,{"$f":"\"zvrx02_a520_3_TY2V01\"","v":"zvrx02_a520_3_TY2V01"},"*='Specifieke informatie A'!N78","*=Parameters!$L$5","A520 Kosten dure intramurale geneesmiddelen (artikel 1, regeling risicoverevening)- geaccepteerd","zvrx02","a520",null,"TY2V01"]
[null,null,null,null,{"$f":"\"zvrx03_a_3_TY2V01\"","v":"zvrx03_a_3_TY2V01"},"*='Specifieke informatie A'!N79","*=Parameters!$L$5",null,"zvrx03","a",null,"TY2V01"]
[null,null,null,null,{"$f":"\"zvrx04_a_3_TY2V01\"","v":"zvrx04_a_3_TY2V01"},"*='Specifieke informatie A'!N80","*=Parameters!$L$5",null,"zvrx04","a",null,"TY2V01"]
[null,null,null,null,{"$f":"\"zvrx05_a_3_TY2V01\"","v":"zvrx05_a_3_TY2V01"},"*='Specifieke informatie A'!N81","*=Parameters!$L$5",null,"zvrx05","a",null,"TY2V01"]
[null,null,null,null,{"$f":"\"zvrx06_a_3_TY2V01\"","v":"zvrx06_a_3_TY2V01"},"*='Specifieke informatie A'!N82","*=Parameters!$L$5",null,"zvrx06","a",null,"TY2V01"]
[null,null,null,null,{"$f":"\"zvrx06_a6121_3_TY2V01\"","v":"zvrx06_a6121_3_TY2V01"},"*='Specifieke informatie A'!N83","*=Parameters!$L$5","A612.1 Kosten ADD-ON'S- dure intramurale geneesmiddelen- geaccepteerd","zvrx06","a6121",null,"TY2V01"]
[null,null,null,null,{"$f":"\"zvrx07_a_3_TY2V01\"","v":"zvrx07_a_3_TY2V01"},"*='Specifieke informatie A'!N84","*=Parameters!$L$5",null,"zvrx07","a",null,"TY2V01"]
[null,null,null,null,{"$f":"\"zvrx08_a_3_TY2V01\"","v":"zvrx08_a_3_TY2V01"},"*='Specifieke informatie A'!N85","*=Parameters!$L$5",null,"zvrx08","a",null,"TY2V01"]
[null,null,null,null,{"$f":"\"zvrx09_a_3_TY2V01\"","v":"zvrx09_a_3_TY2V01"},"*='Specifieke informatie A'!N86","*=Parameters!$L$5",null,"zvrx09","a",null,"TY2V01"]
[null,null,null,null,{"$f":"\"zvrx11_a_3_TY2V01\"","v":"zvrx11_a_3_TY2V01"},"*='Specifieke informatie A'!N87","*=Parameters!$L$5",null,"zvrx11","a",null,"TY2V01"]
[null,null,null,null,{"$f":"\"zvrx12_a_3_TY2V01\"","v":"zvrx12_a_3_TY2V01"},"*='Specifieke informatie A'!N88","*=Parameters!$L$5",null,"zvrx12","a",null,"TY2V01"]
[null,null,null,null,{"$f":"\"zvrx13_a_3_TY2V01\"","v":"zvrx13_a_3_TY2V01"},"*='Specifieke informatie A'!N89","*=Parameters!$L$5",null,"zvrx13","a",null,"TY2V01"]
[null,null,null,null,{"$f":"\"zvrx13_a703_3_TY2V01\"","v":"zvrx13_a703_3_TY2V01"},"*='Specifieke informatie A'!N90","*=Parameters!$L$5","Overige kosten- Transformatiemiddelen IZA- geaccepteerd","zvkx13","a703",null,"TY2V01"]
[null,null,null,null,{"$f":"\"zvrx15_a_3_TY2V01\"","v":"zvrx15_a_3_TY2V01"},"*='Specifieke informatie A'!N91","*=Parameters!$L$5",null,"zvrx15","a",null,"TY2V01"]
[null,null,null,null,{"$f":"\"zvrx15_a720v_3_TY2V01\"","v":"zvrx15_a720v_3_TY2V01"},"*='Specifieke informatie A'!N92","*=Parameters!$L$5","A720 Buitenland, Via Verzekeraar- geestelijke gezondheidszorgg- geaccepteerd","zvrx15","a720v",null,"TY2V01"]
[null,null,null,null,{"$f":"\"zvrx16_a_3_TY2V01\"","v":"zvrx16_a_3_TY2V01"},"*='Specifieke informatie A'!N93","*=Parameters!$L$5",null,"zvrx16","a",null,"TY2V01"]
[null,null,null,null,{"$f":"\"zvrx19_s999_3_TY2V01\"","v":"zvrx19_s999_3_TY2V01"},"*='Specifieke informatie A'!N97","*=Parameters!$L$5","A999 rekenpremies gedetineerden","zvrx19","s999",null,"TY2V01"]
[null,null,null,null,{"$f":"\"zvrx_a_4_TY2V01\"","v":"zvrx_a_4_TY2V01"},"*='Specifieke informatie A'!P75","*=Parameters!$L$6",null,"zvrx","a",null,"TY2V01"]
[null,null,null,null,{"$f":"\"zvrx01_a_4_TY2V01\"","v":"zvrx01_a_4_TY2V01"},"*='Specifieke informatie A'!P76","*=Parameters!$L$6",null,"zvrx01","a",null,"TY2V01"]
[null,null,null,null,{"$f":"\"zvrx02_a_4_TY2V01\"","v":"zvrx02_a_4_TY2V01"},"*='Specifieke informatie A'!P77","*=Parameters!$L$6",null,"zvrx02","a",null,"TY2V01"]
[null,null,null,null,{"$f":"\"zvrx02_a520_4_TY2V01\"","v":"zvrx02_a520_4_TY2V01"},"*='Specifieke informatie A'!P78","*=Parameters!$L$6","A520 Kosten dure intramurale geneesmiddelen (artikel 1, regeling risicoverevening)- geaccepteerd","zvrx02","a520",null,"TY2V01"]
[null,null,null,null,{"$f":"\"zvrx03_a_4_TY2V01\"","v":"zvrx03_a_4_TY2V01"},"*='Specifieke informatie A'!P79","*=Parameters!$L$6",null,"zvrx03","a",null,"TY2V01"]
[null,null,null,null,{"$f":"\"zvrx04_a_4_TY2V01\"","v":"zvrx04_a_4_TY2V01"},"*='Specifieke informatie A'!P80","*=Parameters!$L$6",null,"zvrx04","a",null,"TY2V01"]
[null,null,null,null,{"$f":"\"zvrx05_a_4_TY2V01\"","v":"zvrx05_a_4_TY2V01"},"*='Specifieke informatie A'!P81","*=Parameters!$L$6",null,"zvrx05","a",null,"TY2V01"]
[null,null,null,null,{"$f":"\"zvrx06_a_4_TY2V01\"","v":"zvrx06_a_4_TY2V01"},"*='Specifieke informatie A'!P82","*=Parameters!$L$6",null,"zvrx06","a",null,"TY2V01"]
[null,null,null,null,{"$f":"\"zvrx06_a6121_4_TY2V01\"","v":"zvrx06_a6121_4_TY2V01"},"*='Specifieke informatie A'!P83","*=Parameters!$L$6","A612.1 Kosten ADD-ON'S- dure intramurale geneesmiddelen- geaccepteerd","zvrx06","a6121",null,"TY2V01"]
[null,null,null,null,{"$f":"\"zvrx07_a_4_TY2V01\"","v":"zvrx07_a_4_TY2V01"},"*='Specifieke informatie A'!P84","*=Parameters!$L$6",null,"zvrx07","a",null,"TY2V01"]
[null,null,null,null,{"$f":"\"zvrx08_a_4_TY2V01\"","v":"zvrx08_a_4_TY2V01"},"*='Specifieke informatie A'!P85","*=Parameters!$L$6",null,"zvrx08","a",null,"TY2V01"]
[null,null,null,null,{"$f":"\"zvrx09_a_4_TY2V01\"","v":"zvrx09_a_4_TY2V01"},"*='Specifieke informatie A'!P86","*=Parameters!$L$6",null,"zvrx09","a",null,"TY2V01"]
[null,null,null,null,{"$f":"\"zvrx11_a_4_TY2V01\"","v":"zvrx11_a_4_TY2V01"},"*='Specifieke informatie A'!P87","*=Parameters!$L$6",null,"zvrx11","a",null,"TY2V01"]
[null,null,null,null,{"$f":"\"zvrx12_a_4_TY2V01\"","v":"zvrx12_a_4_TY2V01"},"*='Specifieke informatie A'!P88","*=Parameters!$L$6",null,"zvrx12","a",null,"TY2V01"]
[null,null,null,null,{"$f":"\"zvrx13_a_4_TY2V01\"","v":"zvrx13_a_4_TY2V01"},"*='Specifieke informatie A'!P89","*=Parameters!$L$6",null,"zvrx13","a",null,"TY2V01"]
[null,null,null,null,{"$f":"\"zvrx13_a703_4_TY2V01\"","v":"zvrx13_a703_4_TY2V01"},"*='Specifieke informatie A'!P90","*=Parameters!$L$6","Overige kosten- Transformatiemiddelen IZA- geaccepteerd","zvkx13","a703",null,"TY2V01"]
[null,null,null,null,{"$f":"\"zvrx15_a_4_TY2V01\"","v":"zvrx15_a_4_TY2V01"},"*='Specifieke informatie A'!P91","*=Parameters!$L$6",null,"zvrx15","a",null,"TY2V01"]
[null,null,null,null,{"$f":"\"zvrx15_a720v_4_TY2V01\"","v":"zvrx15_a720v_4_TY2V01"},"*='Specifieke informatie A'!P92","*=Parameters!$L$6","A720 Buitenland, Via Verzekeraar- geestelijke gezondheidszorgg- geaccepteerd","zvrx15","a720v",null,"TY2V01"]
[null,null,null,null,{"$f":"\"zvrx16_a_4_TY2V01\"","v":"zvrx16_a_4_TY2V01"},"*='Specifieke informatie A'!P93","*=Parameters!$L$6",null,"zvrx16","a",null,"TY2V01"]
[null,null,null,null,{"$f":"\"zvrx19_s999_4_TY2V01\"","v":"zvrx19_s999_4_TY2V01"},"*='Specifieke informatie A'!P97","*=Parameters!$L$6","A999 rekenpremies gedetineerden","zvrx19","s999",null,"TY2V01"]
[null,null,null,null,{"$f":"\"zvrx_a_5_TY2V01\"","v":"zvrx_a_5_TY2V01"},"*='Specifieke informatie A'!R75","*=Parameters!$L$7",null,"zvrx","a",null,"TY2V01"]
[null,null,null,null,{"$f":"\"zvrx01_a_5_TY2V01\"","v":"zvrx01_a_5_TY2V01"},"*='Specifieke informatie A'!R76","*=Parameters!$L$7",null,"zvrx01","a",null,"TY2V01"]
[null,null,null,null,{"$f":"\"zvrx02_a_5_TY2V01\"","v":"zvrx02_a_5_TY2V01"},"*='Specifieke informatie A'!R77","*=Parameters!$L$7",null,"zvrx02","a",null,"TY2V01"]
[null,null,null,null,{"$f":"\"zvrx02_a520_5_TY2V01\"","v":"zvrx02_a520_5_TY2V01"},"*='Specifieke informatie A'!R78","*=Parameters!$L$7","A520 Kosten dure intramurale geneesmiddelen (artikel 1, regeling risicoverevening)- geaccepteerd","zvrx02","a520",null,"TY2V01"]
[null,null,null,null,{"$f":"\"zvrx03_a_5_TY2V01\"","v":"zvrx03_a_5_TY2V01"},"*='Specifieke informatie A'!R79","*=Parameters!$L$7",null,"zvrx03","a",null,"TY2V01"]
[null,null,null,null,{"$f":"\"zvrx04_a_5_TY2V01\"","v":"zvrx04_a_5_TY2V01"},"*='Specifieke informatie A'!R80","*=Parameters!$L$7",null,"zvrx04","a",null,"TY2V01"]
[null,null,null,null,{"$f":"\"zvrx05_a_5_TY2V01\"","v":"zvrx05_a_5_TY2V01"},"*='Specifieke informatie A'!R81","*=Parameters!$L$7",null,"zvrx05","a",null,"TY2V01"]
[null,null,null,null,{"$f":"\"zvrx06_a_5_TY2V01\"","v":"zvrx06_a_5_TY2V01"},"*='Specifieke informatie A'!R82","*=Parameters!$L$7",null,"zvrx06","a",null,"TY2V01"]
[null,null,null,null,{"$f":"\"zvrx06_a6121_5_TY2V01\"","v":"zvrx06_a6121_5_TY2V01"},"*='Specifieke informatie A'!R83","*=Parameters!$L$7","A612.1 Kosten ADD-ON'S- dure intramurale geneesmiddelen- geaccepteerd","zvrx06","a6121",null,"TY2V01"]
[null,null,null,null,{"$f":"\"zvrx07_a_5_TY2V01\"","v":"zvrx07_a_5_TY2V01"},"*='Specifieke informatie A'!R84","*=Parameters!$L$7",null,"zvrx07","a",null,"TY2V01"]
[null,null,null,null,{"$f":"\"zvrx08_a_5_TY2V01\"","v":"zvrx08_a_5_TY2V01"},"*='Specifieke informatie A'!R85","*=Parameters!$L$7",null,"zvrx08","a",null,"TY2V01"]
[null,null,null,null,{"$f":"\"zvrx09_a_5_TY2V01\"","v":"zvrx09_a_5_TY2V01"},"*='Specifieke informatie A'!R86","*=Parameters!$L$7",null,"zvrx09","a",null,"TY2V01"]
[null,null,null,null,{"$f":"\"zvrx11_a_5_TY2V01\"","v":"zvrx11_a_5_TY2V01"},"*='Specifieke informatie A'!R87","*=Parameters!$L$7",null,"zvrx11","a",null,"TY2V01"]
[null,null,null,null,{"$f":"\"zvrx12_a_5_TY2V01\"","v":"zvrx12_a_5_TY2V01"},"*='Specifieke informatie A'!R88","*=Parameters!$L$7",null,"zvrx12","a",null,"TY2V01"]
[null,null,null,null,{"$f":"\"zvrx13_a_5_TY2V01\"","v":"zvrx13_a_5_TY2V01"},"*='Specifieke informatie A'!R89","*=Parameters!$L$7",null,"zvrx13","a",null,"TY2V01"]
[null,null,null,null,{"$f":"\"zvrx13_a703_5_TY2V01\"","v":"zvrx13_a703_5_TY2V01"},"*='Specifieke informatie A'!R90","*=Parameters!$L$7","Overige kosten- Transformatiemiddelen IZA- geaccepteerd","zvkx13","a703",null,"TY2V01"]
[null,null,null,null,{"$f":"\"zvrx15_a_5_TY2V01\"","v":"zvrx15_a_5_TY2V01"},"*='Specifieke informatie A'!R91","*=Parameters!$L$7",null,"zvrx15","a",null,"TY2V01"]
[null,null,null,null,{"$f":"\"zvrx15_a720v_5_TY2V01\"","v":"zvrx15_a720v_5_TY2V01"},"*='Specifieke informatie A'!R92","*=Parameters!$L$7","A720 Buitenland, Via Verzekeraar- geestelijke gezondheidszorgg- geaccepteerd","zvrx15","a720v",null,"TY2V01"]
[null,null,null,null,{"$f":"\"zvrx16_a_5_TY2V01\"","v":"zvrx16_a_5_TY2V01"},"*='Specifieke informatie A'!R93","*=Parameters!$L$7",null,"zvrx16","a",null,"TY2V01"]
[null,null,null,null,{"$f":"\"zvrx19_s999_5_TY2V01\"","v":"zvrx19_s999_5_TY2V01"},"*='Specifieke informatie A'!R97","*=Parameters!$L$7","A999 rekenpremies gedetineerden","zvrx19","s999",null,"TY2V01"]
[null,null,null,null,{"$f":"\"zvrx_a_6_TY2V01\"","v":"zvrx_a_6_TY2V01"},"*='Specifieke informatie A'!T75","*=Parameters!$L$8",null,"zvrx","a",null,"TY2V01"]
[null,null,null,null,{"$f":"\"zvrx01_a_6_TY2V01\"","v":"zvrx01_a_6_TY2V01"},"*='Specifieke informatie A'!T76","*=Parameters!$L$8",null,"zvrx01","a",null,"TY2V01"]
[null,null,null,null,{"$f":"\"zvrx02_a_6_TY2V01\"","v":"zvrx02_a_6_TY2V01"},"*='Specifieke informatie A'!T77","*=Parameters!$L$8",null,"zvrx02","a",null,"TY2V01"]
[null,null,null,null,{"$f":"\"zvrx02_a520_6_TY2V01\"","v":"zvrx02_a520_6_TY2V01"},"*='Specifieke informatie A'!T78","*=Parameters!$L$8","A520 Kosten dure intramurale geneesmiddelen (artikel 1, regeling risicoverevening)- geaccepteerd","zvrx02","a520",null,"TY2V01"]
[null,null,null,null,{"$f":"\"zvrx03_a_6_TY2V01\"","v":"zvrx03_a_6_TY2V01"},"*='Specifieke informatie A'!T79","*=Parameters!$L$8",null,"zvrx03","a",null,"TY2V01"]
[null,null,null,null,{"$f":"\"zvrx04_a_6_TY2V01\"","v":"zvrx04_a_6_TY2V01"},"*='Specifieke informatie A'!T80","*=Parameters!$L$8",null,"zvrx04","a",null,"TY2V01"]
[null,null,null,null,{"$f":"\"zvrx05_a_6_TY2V01\"","v":"zvrx05_a_6_TY2V01"},"*='Specifieke informatie A'!T81","*=Parameters!$L$8",null,"zvrx05","a",null,"TY2V01"]
[null,null,null,null,{"$f":"\"zvrx06_a_6_TY2V01\"","v":"zvrx06_a_6_TY2V01"},"*='Specifieke informatie A'!T82","*=Parameters!$L$8",null,"zvrx06","a",null,"TY2V01"]
[null,null,null,null,{"$f":"\"zvrx06_a6121_6_TY2V01\"","v":"zvrx06_a6121_6_TY2V01"},"*='Specifieke informatie A'!T83","*=Parameters!$L$8","A612.1 Kosten ADD-ON'S- dure intramurale geneesmiddelen- geaccepteerd","zvrx06","a6121",null,"TY2V01"]
[null,null,null,null,{"$f":"\"zvrx07_a_6_TY2V01\"","v":"zvrx07_a_6_TY2V01"},"*='Specifieke informatie A'!T84","*=Parameters!$L$8",null,"zvrx07","a",null,"TY2V01"]
[null,null,null,null,{"$f":"\"zvrx08_a_6_TY2V01\"","v":"zvrx08_a_6_TY2V01"},"*='Specifieke informatie A'!T85","*=Parameters!$L$8",null,"zvrx08","a",null,"TY2V01"]
[null,null,null,null,{"$f":"\"zvrx09_a_6_TY2V01\"","v":"zvrx09_a_6_TY2V01"},"*='Specifieke informatie A'!T86","*=Parameters!$L$8",null,"zvrx09","a",null,"TY2V01"]
[null,null,null,null,{"$f":"\"zvrx11_a_6_TY2V01\"","v":"zvrx11_a_6_TY2V01"},"*='Specifieke informatie A'!T87","*=Parameters!$L$8",null,"zvrx11","a",null,"TY2V01"]
[null,null,null,null,{"$f":"\"zvrx12_a_6_TY2V01\"","v":"zvrx12_a_6_TY2V01"},"*='Specifieke informatie A'!T88","*=Parameters!$L$8",null,"zvrx12","a",null,"TY2V01"]
[null,null,null,null,{"$f":"\"zvrx13_a_6_TY2V01\"","v":"zvrx13_a_6_TY2V01"},"*='Specifieke informatie A'!T89","*=Parameters!$L$8",null,"zvrx13","a",null,"TY2V01"]
[null,null,null,null,{"$f":"\"zvrx13_a703_6_TY2V01\"","v":"zvrx13_a703_6_TY2V01"},"*='Specifieke informatie A'!T90","*=Parameters!$L$8","Overige kosten- Transformatiemiddelen IZA- geaccepteerd","zvkx13","a703",null,"TY2V01"]
[null,null,null,null,{"$f":"\"zvrx15_a_6_TY2V01\"","v":"zvrx15_a_6_TY2V01"},"*='Specifieke informatie A'!T91","*=Parameters!$L$8",null,"zvrx15","a",null,"TY2V01"]
[null,null,null,null,{"$f":"\"zvrx15_a720v_6_TY2V01\"","v":"zvrx15_a720v_6_TY2V01"},"*='Specifieke informatie A'!T92","*=Parameters!$L$8","A720 Buitenland, Via Verzekeraar- geestelijke gezondheidszorgg- geaccepteerd","zvrx15","a720v",null,"TY2V01"]
[null,null,null,null,{"$f":"\"zvrx16_a_6_TY2V01\"","v":"zvrx16_a_6_TY2V01"},"*='Specifieke informatie A'!T93","*=Parameters!$L$8",null,"zvrx16","a",null,"TY2V01"]
[null,null,null,null,{"$f":"\"zvrx19_s999_6_TY2V01\"","v":"zvrx19_s999_6_TY2V01"},"*='Specifieke informatie A'!T97","*=Parameters!$L$8","A999 rekenpremies gedetineerden","zvrx19","s999",null,"TY2V01"]

{"sheet":"Parameters","index":10,"n_rows":62,"n_cols":12,"rows_kept":62,"cut":false,"hidden":true,"merged":[[0,10,0,11]]}
[null,null,null,null,"Alle mogelijke modelovereenkomsten 2023 waaruit gekozen kan worden",null,null,null,null,null,"Weergave van de gekozen modelovereenkomsten (voor het doorsluizen naar Blad1)"]
["Kwartaal:",null,null,null,"nummer DWH","Naam modelovereenkomst","verzekeraar","Combi","nummer DWH",null,"Overeenkomst","Keuze"]
["Jaar:",2025,null,null,80,"De Friesland Alles Verzorgd Polis","De Friesland Zorgverzekeraar N.V.",{"$f":"E3&\"  \"&F3","v":"80  De Friesland Alles Verzorgd Polis"},80,null,1,{"$f":"IFERROR(VLOOKUP('Specifieke informatie A'!I72,Parameters!$H$2:$I$68,2,FALSE),\"\")","v":""}]
["Wet:","ZVW",null,null,109,"De Friesland Zelf Bewust Polis","De Friesland Zorgverzekeraar N.V.","109  De Friesland Zelf Bewust Polis",109,null,2,{"$f":"IFERROR(VLOOKUP('Specifieke informatie A'!K72,Parameters!$H$2:$I$68,2,FALSE),\"\")","v":""}]
["Document:",{"$f":"CONCATENATE(\"JS\",jaar_id,wet_id,\".\",kwartaal_id,revisie_id)","v":"JS2025ZVW.B"},null,null,104,"FBTO Zorgverzekering Basis Plus","FBTO Zorgverzekeringen N.V.","104  FBTO Zorgverzekering Basis Plus",104,null,3,{"$f":"IFERROR(VLOOKUP('Specifieke informatie A'!M72,Parameters!$H$2:$I$68,2,FALSE),\"\")","v":""}]
["Revisie:","B",null,null,105,"FBTO Zorgverzekering Basis Vrij","FBTO Zorgverzekeringen N.V.","105  FBTO Zorgverzekering Basis Vrij",105,null,4,{"$f":"IFERROR(VLOOKUP('Specifieke informatie A'!O$72,Parameters!$H$2:$I$68,2,FALSE),\"\")","v":""}]
["Revisiedatum:","2026-03-20",null,null,130,"FBTO Zorgverzekering Basis","FBTO Zorgverzekeringen N.V.","130  FBTO Zorgverzekering Basis",130,null,5,{"$f":"IFERROR(VLOOKUP('Specifieke informatie A'!Q$72,Parameters!$H$2:$I$68,2,FALSE),\"\")","v":""}]
["Versie:",{"$f":"CONCATENATE(document_id,)","v":"JS2025ZVW.B"},null,null,27,"Interpolis ZorgActief ","Interpolis Zorgverzekeringen N.V.","27  Interpolis ZorgActief ",27,null,6,{"$f":"IFERROR(VLOOKUP('Specifieke informatie A'!S$72,Parameters!$H$2:$I$68,2,FALSE),\"\")","v":""}]
[null,null,null,null,113,"Interpolis ZorgCompact","Interpolis Zorgverzekeringen N.V.","113  Interpolis ZorgCompact",113]
[null,null,null,null,55,"Zilveren Kruis Basis Zeker","Zilveren Kruis Zorgverzekeringen N.V.","55  Zilveren Kruis Basis Zeker",55]
[null,null,null,null,66,"Zilveren Kruis Basis Exclusief","Zilveren Kruis Zorgverzekeringen N.V.","66  Zilveren Kruis Basis Exclusief",66]
["NUMMER_UO","NAAM_UO","FORMAT_UO1",null,85,"Zilveren Kruis Basis Budget","Zilveren Kruis Zorgverzekeringen N.V.","85  Zilveren Kruis Basis Budget",85]
["0000","KIES UW UZOVI-NUMMER",{"$f":"CONCATENATE(A13,\" \",B13)","v":"0000 KIES UW UZOVI-NUMMER"},null,91,"Pro Life Principe Polis (natura)","Zilveren Kruis Zorgverzekeringen N.V.","91  Pro Life Principe Polis (natura)",91]
["0101","UNIVÉ ZORG",{"$f":"CONCATENATE(A14,\" \",B14)","v":"0101 UNIVÉ ZORG"},null,114,"Pro Life Principe Polis Budget","Zilveren Kruis Zorgverzekeringen N.V.","114  Pro Life Principe Polis Budget",114]
["0104","CENTRALE ZORGVERZEKERINGEN NZV N.V.","0104 CENTRALE ZORGVERZEKERINGEN NZV N.V.",null,108,"ZieZo Basis","Zilveren Kruis Zorgverzekeringen N.V.","108  ZieZo Basis",108]
["0201","OHRA ZORGVERZEKERINGEN N.V.","0201 OHRA ZORGVERZEKERINGEN N.V.",null,83,"ik kies zelf van A.S.R. Vrije Keuze combinatie","ASR Basis Ziektekostenverzekeringen N.V.","83  ik kies zelf van A.S.R. Vrije Keuze combinatie",83]
["0403","ASR ","0403 ASR ",null,122,"ik kies zelf van A.S.R. Goede Keuze natura","ASR Basis Ziektekostenverzekeringen N.V.","122  ik kies zelf van A.S.R. Goede Keuze natura",122]
["0699","IZA","0699 IZA",null,96,"a.s.r. Eigen Keuze","ASR Basis Ziektekostenverzekeringen N.V.","96  a.s.r. Eigen Keuze",96]
["0736","UMC","0736 UMC",null,121,"a.s.r. Ruime Keuze","ASR Basis Ziektekostenverzekeringen N.V.","121  a.s.r. Ruime Keuze",121]
["3311","ZILVEREN KRUIS","3311 ZILVEREN KRUIS",null,19,"NN Zorgverzekering Combinatie","Centrale Ziektekostenverzekering NZV NV","19  NN Zorgverzekering Combinatie",19]
["3313","INTERPOLIS","3313 INTERPOLIS",null,133,"NN Zorgverzekering Natura (Zorg Voordelig) ","Centrale Ziektekostenverzekering NZV NV","133  NN Zorgverzekering Natura (Zorg Voordelig) ",133]
["3332","MENZIS","3332 MENZIS",null,33,"OHRA Zorgverzekering Combinatie","OHRA Zorgverzekeringen N.V.","33  OHRA Zorgverzekering Combinatie",33]
["3333","ANDERZORG","3333 ANDERZORG",null,14,"CZ Zorg op maatpolis (Natura)","CZ Zorgverzekeringen N.V.","14  CZ Zorg op maatpolis (Natura)",14]
["3343","ONVZ",{"$f":"CONCATENATE(A24,\" \",B24)","v":"3343 ONVZ"},null,15,"CZ Zorgkeuzepolis (Restitutie)","CZ Zorgverzekeringen N.V.","15  CZ Zorgkeuzepolis (Restitutie)",15]
["3347","SALLAND ZORGVERZEKERAAR",{"$f":"CONCATENATE(A25,\" \",B25)","v":"3347 SALLAND ZORGVERZEKERAAR"},null,73,"CZdirect (Natura)","CZ Zorgverzekeringen N.V.","73  CZdirect (Natura)",73]
["3351","FBTO",{"$f":"CONCATENATE(A26,\" \",B26)","v":"3351 FBTO"},null,97,"CZ Zorgbewustpolis (Natura)","CZ Zorgverzekeringen N.V.","97  CZ Zorgbewustpolis (Natura)",97]
["3358","DE FRIESLAND",{"$f":"CONCATENATE(A27,\" \",B27)","v":"3358 DE FRIESLAND"},null,123,"CZ Just Basic (Natura Just)","CZ Zorgverzekeringen N.V.","123  CZ Just Basic (Natura Just)",123]
["3359","EUCARE INSURANCE PCC LTD","3359 EUCARE INSURANCE PCC LTD",null,20,"DSW polisvoorwaarden","OWM DSW Zorgverzekeraar U.A.","20  DSW polisvoorwaarden",20]
["7029","DSW","7029 DSW",null,44,"Stad Holland polisvoorwaarden","OWM Stad Holland Zorgverzekeraar U.A.","44  Stad Holland polisvoorwaarden",44]
["7037","STAD HOLLAND","7037 STAD HOLLAND",null,42,"Salland Basisverzekering","Eno Zorgverzekeraar N.V.","42  Salland Basisverzekering",42]
["7085","ZORG EN ZEKERHEID","7085 ZORG EN ZEKERHEID",null,110,"HollandZorg Basisverzekering","Eno Zorgverzekeraar N.V.","110  HollandZorg Basisverzekering",110]
["7095","VGZ ZORGVERZEKERAAR","7095 VGZ ZORGVERZEKERAAR",null,115,"Basisverzekering Natura","EUCARE Insurance PCC Limited","115  Basisverzekering Natura",115]
["7119","CZ ZORGVERZEKERINGEN N.V.","7119 CZ ZORGVERZEKERINGEN N.V.",null,116,"Basisverzekering Restitutie","EUCARE Insurance PCC Limited","116  Basisverzekering Restitutie",116]
[null,null,null,null,118,"Basisverzekering Bewust Verzekerd","EUCARE Insurance PCC Limited","118  Basisverzekering Bewust Verzekerd",118]
[null,null,null,null,126,"Basisverzekering Natura Select","EUCARE Insurance PCC Limited","126  Basisverzekering Natura Select",126]
[null,null,null,null,134,"Basisverzekering Bewust Verzekerd Restitutie ","EUCARE Insurance PCC Limited","134  Basisverzekering Bewust Verzekerd Restitutie ",134]
[null,null,null,null,5,"Anderzorg Basis","AnderZorg N.V.","5  Anderzorg Basis",5]
[null,null,null,null,31,"Menzis Basis","Menzis Zorgverzekeraar N.V.","31  Menzis Basis",31]
[null,null,null,null,32,"Menzis Basis Vrij","Menzis Zorgverzekeraar N.V.","32  Menzis Basis Vrij",32]
[null,null,null,null,102,"Hema Basisverzekering","Menzis Zorgverzekeraar N.V.","102  Hema Basisverzekering",102]
[null,null,null,null,103,"Menzis Basis Voordelig","Menzis Zorgverzekeraar N.V.","103  Menzis Basis Voordelig",103]
[null,null,null,null,132,"VinkVink Basisverzekering","Menzis Zorgverzekeraar N.V.","132  VinkVink Basisverzekering",132]
[null,null,null,null,39,"ONVZ Vrije Keuze Basisverzekering","ONVZ Ziektekostenverzekeraar N.V.","39  ONVZ Vrije Keuze Basisverzekering",39]
[null,null,null,null,127,"Jaaah basis","ONVZ Ziektekostenverzekeraar N.V.","127  Jaaah basis",127]
[null,null,null,null,74,"IZA Eigen Keuze","IZA Zorgverzekeraar N.V.","74  IZA Eigen Keuze",74]
[null,null,null,null,98,"IZA Ruime Keuze","IZA Zorgverzekeraar N.V.","98  IZA Ruime Keuze",98]
[null,null,null,null,128,"IZA Basis Keuze","IZA Zorgverzekeraar N.V.","128  IZA Basis Keuze",128]
[null,null,null,null,50,"Univé Zorg Geregeld polis ","N.V. Univé Zorg","50  Univé Zorg Geregeld polis ",50]
[null,null,null,null,51,"Univé Zorg Vrij polis ","N.V. Univé Zorg","51  Univé Zorg Vrij polis ",51]
[null,null,null,null,65,"Univé Gewoon ZEKUR Zorg","N.V. Univé Zorg","65  Univé Gewoon ZEKUR Zorg",65]
[null,null,null,null,107,"Univé Zorg Select Polis","N.V. Univé Zorg","107  Univé Zorg Select Polis",107]
[null,null,null,null,136,"Univé Zorg Basis Natura ","N.V. Univé Zorg","136  Univé Zorg Basis Natura ",136]
[null,null,null,null,47,"UMC Eigen Keuze","N.V. Zorgverzekeraar UMC","47  UMC Eigen Keuze",47]
[null,null,null,null,125,"UMC Ruime Keuze","N.V. Zorgverzekeraar UMC","125  UMC Ruime Keuze",125]
[null,null,null,null,53,"VGZ Ruime Keuze","VGZ Zorgverzekeraar N.V.","53  VGZ Ruime Keuze",53]
[null,null,null,null,54,"VGZ Eigen Keuze","VGZ Zorgverzekeraar N.V.","54  VGZ Eigen Keuze",54]
[null,null,null,null,82,"VGZ Bewuzt Basis","VGZ Zorgverzekeraar N.V.","82  VGZ Bewuzt Basis",82]
[null,null,null,null,124,"VGZ Basis Keuze","VGZ Zorgverzekeraar N.V.","124  VGZ Basis Keuze",124]
[null,null,null,null,57,"Zorg en Zekerheid Zorg Vrij Polis","OWM Zorgverzekeraar Zorg en Zekerheid U.A.","57  Zorg en Zekerheid Zorg Vrij Polis",57]
[null,null,null,null,58,"Zorg en Zekerheid Zorg Zeker Polis","OWM Zorgverzekeraar Zorg en Zekerheid U.A.","58  Zorg en Zekerheid Zorg Zeker Polis",58]
[null,null,null,null,84,"Zorg en Zekerheid Zorg Gemak Polis","OWM Zorgverzekeraar Zorg en Zekerheid U.A.","84  Zorg en Zekerheid Zorg Gemak Polis",84]
[null,null,null,null,131,"ZEM Polis","OWM Zorgverzekeraar Zorg en Zekerheid U.A.","131  ZEM Polis",131]